account_party,address,code,date,document_number,expense_code_name,expense_code_name_short,id,party_cell,party_cell_code,party_cell_geoobject,purpose,source_bank_account_number,source_bank_account_type,sum,target_legal_personality,target_legal_personality_code,target_type
Опозиційний Блок,"Київ, вулиця Госпітальна, 12Г",70,2016-12-30,67040600,Банківські послуги,Інші витрати,369595,Черкаська обласна організація,39880926,Черкаська область,Плата за обслуговування тарифного пакету за березень 2016 р.,26002301144523,current,99.00,"АТ ""Ощадбанк""",00032129,юридична особа
Опозиційний Блок,"Запорізька область, Запоріжжя, Південне шосе, 72",79,2016-12-30,105,"Оренда будинків і приміщень та експлуатаційні витрати (прибирання, страхування орендованих будинків, охорона, сигналізація, ремонт, вивіз сміття, тощо)",Оренда нерухомості,369285,Запорізька обласна організація,37526809,Запорізька область,Оплата за оренду приміщення,2600612837,current,9159.00,"ПАТ ""Запоріжсталь""",00191230,юридична особа
Опозиційний Блок,"Запорізька область, Запоріжжя, Південне шосе, 72",79,2016-12-30,106,"Оренда будинків і приміщень та експлуатаційні витрати (прибирання, страхування орендованих будинків, охорона, сигналізація, ремонт, вивіз сміття, тощо)",Оренда нерухомості,369284,Запорізька обласна організація,37526809,Запорізька область,Оплата за комунальні послуги,2600612837,current,5765.45,"ПАТ ""Запоріжсталь""",00191230,юридична особа
Опозиційний Блок,"Донецька область, Соледар, вулиця Паркова, 3-А",44,2016-12-29,273134963,Повернення невикористаних коштів з виборчого фонду,Поверненні,369700,Бахмутська районна організація,39907559,Донецька область,перерахування невикористаних коштів вибор.фонду,26008300990180,current,82.04,Соледарська міська рада,04052873,юридична особа
Опозиційний Блок,"Дніпропетровська область, Дніпро́, вулиця Курсантська, 24",70,2016-12-29,26989,Банківські послуги,Інші витрати,369546,Одеська обласна організація,39705145,Одеська область,розрахункове обслуговування рахунку,26007010349074,current,4.00,"ПАТ ""Банк Восток""",26237202,юридична особа
Опозиційний Блок,"Дніпропетровська область, Дніпро́, вулиця Курсантська, 24",70,2016-12-29,390306,Банківські послуги,Інші витрати,369545,Одеська обласна організація,39705145,Одеська область,розрахункове обслуговування рахунку,26007010349074,current,100.00,"ПАТ ""Банк Восток""",26237202,юридична особа
Опозиційний Блок,"Одеська область, Одеса",52,2016-12-29,485,Інша реклама (без класифікації),Реклама (без класифікації),369469,Одеська обласна організація,39705145,Одеська область,проведення рекламної компанії,26007010349074,current,11900.00,Новицький Олександр Олександрович,,фізична особа
Опозиційний Блок,"Одеська область, Одеса",52,2016-12-29,496,Інша реклама (без класифікації),Реклама (без класифікації),369468,Одеська обласна організація,39705145,Одеська область,проведення рекламної компанії,26007010349074,current,4900.00,Кордюк Олена Анатоліївна,,фізична особа
Опозиційний Блок,"Київ, вулиця Михайла Грушевського, 1Д",70,2016-12-28,ЬЛБ8І00047,Банківські послуги,Інші витрати,370095,Словʼянська районна організація,39923236,Донецька область,Комісія банку,26054053605552,current,95.00,"ПАТ КБ ""Приватбанк""",14360570,юридична особа
Опозиційний Блок,"Одеська область, Одеса, вулиця Краснова, 6/1",70,2016-12-28,3,Банківські послуги,Інші витрати,369414,Кіровоградська обласна організація,39662568,Кіровоградська область,Розрахункове касове обслуговування,26000010007869,current,75.00,"АБ ""Південний""",20953647,юридична особа
Опозиційний Блок,"Одеська область, Одеса, вулиця Краснова, 6/1",70,2016-12-28,2,Банківські послуги,Інші витрати,369413,Кіровоградська обласна організація,39662568,Кіровоградська область,Розрахункове касове обслуговування,26000010007869,current,50.00,"АБ ""Південний""",20953647,юридична особа
Опозиційний Блок,"Одеська область, Одеса, вулиця Краснова, 6/1",70,2016-12-28,1,Банківські послуги,Інші витрати,369412,Кіровоградська обласна організація,39662568,Кіровоградська область,Розрахункове касове обслуговування,26000010007869,current,6.00,"АБ ""Південний""",20953647,юридична особа
Опозиційний Блок,"Запорізька область, Запоріжжя, вулиця Сєдова, 16",58,2016-12-28,104,"Виготовлення друкованих матеріалів (плакатів, листівок, буклетів та інших агітаційних матеріалів)",Друкована агітація,369283,Запорізька обласна організація,37526809,Запорізька область,Оплата за друк газети,2600612837,current,41575.68,"ТОВ ВД ""Кераміст""",31122120,юридична особа
Опозиційний Блок,"Одеська область, Одеса, Фонтанська дорога, 11",70,2016-12-28,ТД/01/90,Банківські послуги,Інші витрати,368887,Центральний офіс,37120464,Україна,Комісія банку,26008001030506,current,6.00,"Київська філія АТ ""Місто банк""",26410346,юридична особа
Опозиційний Блок,"Дніпропетровська область, Дніпро́, проспект Олександра Поля, 104А",74,2016-12-27,чек 364066,"Придбання канцтоварів, паперу, інших предметів і матеріалів, а також госп товари",Придбання канцтоварів та госп. товарів,370042,Маріупольська міська організація,39905107,Донецька область,"миючі засоби,серветки",2600214189,current,186.83,"ТОВ ""РУШ""",32007740,юридична особа
Опозиційний Блок,"Київ, вулиця Андріївська, 4",70,2016-12-27,806274670,Банківські послуги,Інші витрати,370041,Маріупольська міська організація,39905107,Донецька область,комісія,2600214189,current,0.85,"ПАТ ""ПУМБ""",14282829,юридична особа
Опозиційний Блок,"Київ, вулиця Госпітальна, 12Г",70,2016-12-27,272592299,Банківські послуги,Інші витрати,369699,Бахмутська районна організація,39907559,Донецька область,Комісія банку,26008300990180,current,75.00,"АТ ""Ощадбанк""",00032129,юридична особа
Опозиційний Блок,"Одеська область, Одеса, Фонтанська дорога, 11",70,2016-12-27,14,Банківські послуги,Інші витрати,369328,Київська обласна організація,39756467,Київська область,"Абонентська плата за використання системи ""Интернет-банкинг "" за 12.2016р. згідно тарифів банку.Без ПДВ.",26006001030575,current,115.00,"Київська філія АТ ""Місто банк""",26410346,юридична особа
Опозиційний Блок,"Запорізька область, Запоріжжя, Південне шосе, 2А",53,2016-12-27,103,Витрати на розміщення зовнішньої реклами,Зовнішня реклама,369282,Запорізька обласна організація,37526809,Запорізька область,Оплата за розміщення зовнішньої реклами,2600612837,current,13560.00,"КП ""Запор. Міське інвес. Агенство""",25217812,юридична особа
Опозиційний Блок,"Київ, вулиця Михайла Ломоносова, 22, 15",43,2016-12-27,47,Інші витрати,Інші витрати,368886,Центральний офіс,37120464,Україна,"сплата боргу ВП № 51049273 (судовий збір 4019,40грн, виконав чий збір 401,94 грн, витрати з орг. вик. дій 400,0 грн) Без НДС.",26008001030506,current,4821.34,Голосіївський Районний Відділ Державної Виконавчої Служби Міста Київ,34999976,юридична особа
Опозиційний Блок,"Київ, вулиця Михайла Ломоносова, 22, 15",43,2016-12-27,48,Інші витрати,Інші витрати,368885,Центральний офіс,37120464,Україна,"сплата боргу ВП № 51276578 (борг на користь держави 3654,0 г рн, виконавчий збір 365,40 грн, витрати з орг. вик. дій 400, 0 грн) Без НДС.",26008001030506,current,4419.40,Голосіївський Районний Відділ Державної Виконавчої Служби Міста Київ,34999976,юридична особа
Опозиційний Блок,"Київ, вулиця Михайла Ломоносова, 22, 15",43,2016-12-27,46,Інші витрати,Інші витрати,368884,Центральний офіс,37120464,Україна,"сплата боргу ВП № 51276006 (борг 1218грн, виконавчий збір 12 1,80 грн, витрати з орг. вик. дій 385,0 грн) Без НДС.",26008001030506,current,1724.80,Голосіївський Районний Відділ Державної Виконавчої Служби Міста Київ,34999976,юридична особа
Опозиційний Блок,"Одеська область, Одеса, Фонтанська дорога, 11",70,2016-12-27,124,Банківські послуги,Інші витрати,368883,Центральний офіс,37120464,Україна,"абонентська плата за використання системи ""Інтернет-банкінг """,26008001030506,current,115.00,"Київська філія АТ ""Місто банк""",26410346,юридична особа
Опозиційний Блок,"Київ, вулиця Андріївська, 4",70,2016-12-26,139,Банківські послуги,Інші витрати,370040,Маріупольська міська організація,39905107,Донецька область,комісія,2600214189,current,42.98,"ПАТ ""ПУМБ""",14282829,юридична особа
Опозиційний Блок,"Донецька область, Маріуполь",84,2016-12-26,138,"Заробітна плата, премії","Заробітна плата, лікарняні, вагітності, відрядження, компенсації",369807,Маріупольська міська організація,39905107,Донецька область,Заробітна плата,2600214189,current,1851.50,Виборнова Наталя Михайлівна,,фізична особа
Опозиційний Блок,"Донецька область, Маріуполь",84,2016-12-26,138,"Заробітна плата, премії","Заробітна плата, лікарняні, вагітності, відрядження, компенсації",369806,Маріупольська міська організація,39905107,Донецька область,Заробітна плата,2600214189,current,1006.25,Петренко Наталія Дмитрівна,,фізична особа
Опозиційний Блок,"Донецька область, Маріуполь",84,2016-12-26,138,"Заробітна плата, премії","Заробітна плата, лікарняні, вагітності, відрядження, компенсації",369805,Маріупольська міська організація,39905107,Донецька область,Заробітна плата,2600214189,current,2576.00,Нагорна Ірина Вікторівна,,фізична особа
Опозиційний Блок,"Донецька область, Маріуполь",84,2016-12-26,138,"Заробітна плата, премії","Заробітна плата, лікарняні, вагітності, відрядження, компенсації",369804,Маріупольська міська організація,39905107,Донецька область,Заробітна плата,2600214189,current,706.01,Коновалова Євгенія Абрамівна,,фізична особа
Опозиційний Блок,"Київ, вулиця Кирилівська, 102",43,2016-12-26,4,Інші витрати,Інші витрати,369411,Кіровоградська обласна організація,39662568,Кіровоградська область,"Сплата за обробку даних для видачі сертифікатів ЕЦП та постачання КП ""Freedom""зг.рах.ТКВП02 7918 від 23.12.16р.",26000010007869,current,60.00,"ТОВ ""Центр сертифікації ключів ""Україна""",36865753,юридична особа
Опозиційний Блок,"Київ, провулок Євгена Гуцала, 3",76,2016-12-26,102,Послуги зв’язку,Послуги зв’язку,369281,Запорізька обласна організація,37526809,Запорізька область,Оплата за послуги звʼязку,2600612837,current,10.00,"ПАТ ""Фарлеп-інвест""",19199961,юридична особа
Опозиційний Блок,"Київ, вулиця Михайла Грушевського, 1Д",70,2016-12-23,№1223L0Q4H У,Банківські послуги,Інші витрати,369673,Чернігівська обласна організація,37418136,Чернігівська область,Комісія за обслуговування рахунку,26003051415812,current,3.00,"ПАТ КБ ""Приватбанк""",14360570,юридична особа
Опозиційний Блок,"Чернігівська область, Чернігів",79,2016-12-23,35,"Оренда будинків і приміщень та експлуатаційні витрати (прибирання, страхування орендованих будинків, охорона, сигналізація, ремонт, вивіз сміття, тощо)",Оренда нерухомості,369672,Чернігівська обласна організація,37418136,Чернігівська область,Орендна плата,26003051415812,current,500.00,Придеснянський готельно-туристичний комплекс,03358918,юридична особа
Опозиційний Блок,"Запорізька область, Запоріжжя, вулиця Сталеварів, 19",53,2016-12-23,100,Витрати на розміщення зовнішньої реклами,Зовнішня реклама,369280,Запорізька обласна організація,37526809,Запорізька область,Оплата за розміщення зовнішньої реклами,2600612837,current,1700.00,"ТОВ ""Флайт, ЛТД""",22135640,юридична особа
Опозиційний Блок,"Запорізька область, Запоріжжя, Червона вулиця, 1",58,2016-12-23,101,"Виготовлення друкованих матеріалів (плакатів, листівок, буклетів та інших агітаційних матеріалів)",Друкована агітація,369279,Запорізька обласна організація,37526809,Запорізька область,Оплата за виготолення плакатів,2600612837,current,2350.00,"ПП ""Штріх""",30543566,юридична особа
Опозиційний Блок,"Донецька область, Покровськ",74,2016-12-22,5,"Придбання канцтоварів, паперу, інших предметів і матеріалів, а також госп товари",Придбання канцтоварів та госп. товарів,370084,Покровська міська організація,39949060,Донецька область,канцтовари,26005300845391,current,547.25,Колосова О Д,,фізична особа
Опозиційний Блок,"Донецька область, Покровськ",82,2016-12-22,4,"Гонорари, в тому числі за надані консультаційні послуги","Гонорари, в тому числі за надані консультаційні послуги",370083,Покровська міська організація,39949060,Донецька область,нотаріальне засвідчення справжності підписів,26005300845391,current,400.00,Власенко Марина Іванівна,,фізична особа
Опозиційний Блок,"Донецька область, Маріуполь, вулиця Артема, 33",75,2016-12-22,чек 61058830,Поштові послуги та поширення друкованих матеріалів,Поштові послуги та поширення друкованих матеріалів,370039,Маріупольська міська організація,39905107,Донецька область,відправлення агітаційних матеріалів,2600214189,current,27.00,"ТОВ ""Пост-фінанс""",38324133,юридична особа
Опозиційний Блок,,74,2016-12-22,чек 00105166,"Придбання канцтоварів, паперу, інших предметів і матеріалів, а також госп товари",Придбання канцтоварів та госп. товарів,370038,Маріупольська міська організація,39905107,Донецька область,папір для принтера,2600214189,current,82.49,Прилипко Віктор Іванович,,фізична особа
Опозиційний Блок,"Київ, вулиця Андріївська, 4",70,2016-12-22,204216662,Банківські послуги,Інші витрати,370037,Маріупольська міська організація,39905107,Донецька область,комісія,2600214189,current,2.00,"ПАТ ""ПУМБ""",14282829,юридична особа
Опозиційний Блок,"Київ, вулиця Андріївська, 4",70,2016-12-22,822197089,Банківські послуги,Інші витрати,370036,Маріупольська міська організація,39905107,Донецька область,комісія,2600214189,current,2.00,"ПАТ ""ПУМБ""",14282829,юридична особа
Опозиційний Блок,"Київ, вулиця Кирилівська, 102",43,2016-12-22,135,Інші витрати,Інші витрати,370035,Маріупольська міська організація,39905107,Донецька область,сертифікати ключів,2600214189,current,348.00,"ТОВ ""Центр сертифікації ключів ""Україна""",36865753,юридична особа
Опозиційний Блок,,72,2016-12-22,136,"Придбання, ремонт офісної техніки та програмного забезпечення (Бухгалтерські програми, Ліга.закон, домени)",Придбання офісної техніки та програмного забезпечення,370034,Маріупольська міська організація,39905107,Донецька область,"Супроводження ПЗ ""Соната""",2600214189,current,650.00,Чабан Олександр Сергійович,,фізична особа
Опозиційний Блок,"Київ, вулиця Андріївська, 4",70,2016-12-22,768784753,Банківські послуги,Інші витрати,370033,Маріупольська міська організація,39905107,Донецька область,комісія,2600214189,current,0.85,"ПАТ ""ПУМБ""",14282829,юридична особа
Опозиційний Блок,"Київ, вулиця Кирилівська, 102",43,2016-12-21,7,Інші витрати,Інші витрати,369410,Кіровоградська обласна організація,39662568,Кіровоградська область,"За державну реєстрацію інформаційного вісника Регіональної організації Політичної партії ""Оппозиційний Блок в Кіровоградській області ""За мир і розвиток""""",26000010007869,current,408.00,"ТОВ ""Центр сертифікації ключів ""Україна""",36865753,юридична особа
Опозиційний Блок,"Донецька область, Краматорськ, бульвар Машинобудівників, 22",43,2016-12-20,3,Інші витрати,Інші витрати,370088,Покровська міська організація,39949060,Донецька область,державна реєстрація змін до відомостей про юридичну особу,26005300845391,current,410.00,УДКСУ у м. Краматорську Донецької області,37944338,юридична особа
Опозиційний Блок,"Київ, вулиця Андріївська, 4",70,2016-12-20,40078752,Банківські послуги,Інші витрати,370032,Маріупольська міська організація,39905107,Донецька область,комісія,2600214189,current,2.00,"ПАТ ""ПУМБ""",14282829,юридична особа
Опозиційний Блок,"Київ, вулиця Ревуцького, 46",76,2016-12-20,134,Послуги зв’язку,Послуги зв’язку,370031,Маріупольська міська організація,39905107,Донецька область,послуги інтернет,2600214189,current,256.00,"ТОВ ""ТВП Формат""",40196287,юридична особа
Опозиційний Блок,"Закарпатська область, Ужгород, вулиця Гойди, 10",70,2016-12-20,171142,Банківські послуги,Інші витрати,369166,Закарпатська обласна організація,38222036,Закарпатська область,Комісія за розрахунково-касове обслуговування,26003016000800,current,10.65,"ПАТ ""Комінвестбанк""",19355562,юридична особа
Опозиційний Блок,"Одеська область, Одеса, Фонтанська дорога, 11",70,2016-12-20,ТД/01/26,Банківські послуги,Інші витрати,368882,Центральний офіс,37120464,Україна,Комісія банку,26008001030506,current,2.00,"Київська філія АТ ""Місто банк""",26410346,юридична особа
Опозиційний Блок,"Київ, вулиця Джона Маккейна, 39",76,2016-12-19,40,Послуги зв’язку,Послуги зв’язку,368881,Центральний офіс,37120464,Україна,послуги звʼязку,26008001030506,current,2963.18,"ТОВ ""Компанія ""Конфіденційні телекомунікації України""",31305512,юридична особа
Опозиційний Блок,"Донецька область, Бахмут, вулиця Миру, 6",80,2016-12-16,2,"Транспортні послуги (квитки, пасажирські перевезення і т.д.)","Транспортні послуги (квитки, пасажирські перевезення і т.д.)",369678,Бахмутська районна організація,39907559,Донецька область,орендна плата за транпортний засіб,26008300990180,current,3200.00,"ПАТ ""Вістек""",31226457,юридична особа
Опозиційний Блок,"Дніпропетровська область, Дніпро́, вулиця Курсантська, 24",70,2016-12-16,229536,Банківські послуги,Інші витрати,369544,Одеська обласна організація,39705145,Одеська область,розрахункове обслуговування рахунку,26007010349074,current,6.00,"ПАТ ""Банк Восток""",26237202,юридична особа
Опозиційний Блок,"Одеська область, Одеса, вулиця Канатна, 1",82,2016-12-16,484,"Гонорари, в тому числі за надані консультаційні послуги","Гонорари, в тому числі за надані консультаційні послуги",369543,Одеська обласна організація,39705145,Одеська область,за бухгалтерське обслуговування,26007010349074,current,1000.00,"ТОВ ""КФ ""Профіт фінанс""",39563816,юридична особа
Опозиційний Блок,"Одеська область, Одеса",52,2016-12-16,483,Інша реклама (без класифікації),Реклама (без класифікації),369467,Одеська обласна організація,39705145,Одеська область,проведення рекламної компанії,26007010349074,current,4900.00,Кордюк Олена Анатоліївна,,фізична особа
Опозиційний Блок,"Одеська область, Одеса",52,2016-12-16,482,Інша реклама (без класифікації),Реклама (без класифікації),369466,Одеська обласна організація,39705145,Одеська область,проведення рекламної компанії,26007010349074,current,11900.00,Новицький Олександр Олександрович,,фізична особа
Опозиційний Блок,"Запорізька область, Запоріжжя, вулиця Сєдова, 16",58,2016-12-16,99,"Виготовлення друкованих матеріалів (плакатів, листівок, буклетів та інших агітаційних матеріалів)",Друкована агітація,369278,Запорізька обласна організація,37526809,Запорізька область,Оплата за друк газети,2600612837,current,41679.36,"ТОВ ВД ""Кераміст""",31122120,юридична особа
Опозиційний Блок,"Донецька область, Маріуполь, вулиця Італійська, 84",79,2016-12-15,132,"Оренда будинків і приміщень та експлуатаційні витрати (прибирання, страхування орендованих будинків, охорона, сигналізація, ремонт, вивіз сміття, тощо)",Оренда нерухомості,370030,Маріупольська міська організація,39905107,Донецька область,Послуги охорони,2600214189,current,83.63,Маріупольський міжрайонний відділ управління поліції охорони в Донецькій області,40109084,юридична особа
Опозиційний Блок,"Донецька область, Маріуполь, вулиця Італійська, 84",79,2016-12-15,133,"Оренда будинків і приміщень та експлуатаційні витрати (прибирання, страхування орендованих будинків, охорона, сигналізація, ремонт, вивіз сміття, тощо)",Оренда нерухомості,370029,Маріупольська міська організація,39905107,Донецька область,Послуги охорони,2600214189,current,423.73,Маріупольський міжрайонний відділ управління поліції охорони в Донецькій області,40109084,юридична особа
Опозиційний Блок,"Донецька область, Маріуполь, вулиця Соборна, 7",79,2016-12-15,131,"Оренда будинків і приміщень та експлуатаційні витрати (прибирання, страхування орендованих будинків, охорона, сигналізація, ремонт, вивіз сміття, тощо)",Оренда нерухомості,370028,Маріупольська міська організація,39905107,Донецька область,За холодну воду,2600214189,current,45.84,"КП ""мвувкг""",03361508,юридична особа
Опозиційний Блок,"Київ, вулиця Андріївська, 4",70,2016-12-15,683451670,Банківські послуги,Інші витрати,370027,Маріупольська міська організація,39905107,Донецька область,комісія,2600214189,current,2.00,"ПАТ ""ПУМБ""",14282829,юридична особа
Опозиційний Блок,"Київ, вулиця Андріївська, 4",70,2016-12-15,969229461,Банківські послуги,Інші витрати,370026,Маріупольська міська організація,39905107,Донецька область,комісія,2600214189,current,0.85,"ПАТ ""ПУМБ""",14282829,юридична особа
Опозиційний Блок,"Київ, вулиця Андріївська, 4",70,2016-12-15,593800034,Банківські послуги,Інші витрати,370025,Маріупольська міська організація,39905107,Донецька область,комісія,2600214189,current,0.85,"ПАТ ""ПУМБ""",14282829,юридична особа
Опозиційний Блок,"Кіровоградська область, Кропивницький, Садова вулиця, 88",58,2016-12-15,6,"Виготовлення друкованих матеріалів (плакатів, листівок, буклетів та інших агітаційних матеріалів)",Друкована агітація,369409,Кіровоградська обласна організація,39662568,Кіровоградська область,Поліграфічні послуги зг.рах.№1865 від 06.12.2016р.,26000010007869,current,3072.00,"ТОВ ""Поліграф-Центр""",23696346,юридична особа
Опозиційний Блок,"Київ, вулиця Андріївська, 4",70,2016-12-14,8495_3500,Банківські послуги,Інші витрати,370081,Мангушська районна організація,39929882,Донецька область,Комісія банку,2600115288,current,120.00,"ПАТ ""ПУМБ""",14282829,юридична особа
Опозиційний Блок,"Донецька область, Маріуполь, проспект Миру, 68",63,2016-12-14,128,Податок на доходи,Податкові платежі,370024,Маріупольська міська організація,39905107,Донецька область,ПДФО,2600214189,current,2593.98,УДКСУ у м. Маріуполі Донецької області,37989721,юридична особа
Опозиційний Блок,"Донецька область, Маріуполь, проспект Миру, 68",61,2016-12-14,129,Військовий збір,Податкові платежі,370023,Маріупольська міська організація,39905107,Донецька область,"Військовий збір 1,5%",2600214189,current,226.50,УДКСУ у м. Маріуполі Донецької області,37989721,юридична особа
Опозиційний Блок,"Київ, вулиця Андріївська, 4",70,2016-12-14,130,Банківські послуги,Інші витрати,370022,Маріупольська міська організація,39905107,Донецька область,комісія,2600214189,current,42.98,"ПАТ ""ПУМБ""",14282829,юридична особа
Опозиційний Блок,"Київ, вулиця Андріївська, 4",70,2016-12-14,2.69880794,Банківські послуги,Інші витрати,370021,Маріупольська міська організація,39905107,Донецька область,комісія,2600214189,current,2.00,"ПАТ ""ПУМБ""",14282829,юридична особа
Опозиційний Блок,"Київ, вулиця Андріївська, 4",70,2016-12-14,69901847,Банківські послуги,Інші витрати,370020,Маріупольська міська організація,39905107,Донецька область,комісія,2600214189,current,2.00,"ПАТ ""ПУМБ""",14282829,юридична особа
Опозиційний Блок,"Донецька область, Маріуполь, вулиця 130-ї Таганрозької Дивізії, 114",62,2016-12-14,127,Сплата ЄСВ,Податкові платежі,370019,Маріупольська міська організація,39905107,Донецька область,ЄСВ 22%,2600214189,current,3322.00,Маріупольська ОДПІ,39883670,юридична особа
Опозиційний Блок,"Донецька область, Маріуполь",84,2016-12-14,126,"Заробітна плата, премії","Заробітна плата, лікарняні, вагітності, відрядження, компенсації",369803,Маріупольська міська організація,39905107,Донецька область,Заробітна плата,2600214189,current,1851.50,Виборнова Наталя Михайлівна,,фізична особа
Опозиційний Блок,"Донецька область, Маріуполь",84,2016-12-14,126,"Заробітна плата, премії","Заробітна плата, лікарняні, вагітності, відрядження, компенсації",369802,Маріупольська міська організація,39905107,Донецька область,Заробітна плата,2600214189,current,1006.25,Петренко Наталія Дмитрівна,,фізична особа
Опозиційний Блок,"Донецька область, Маріуполь",84,2016-12-14,126,"Заробітна плата, премії","Заробітна плата, лікарняні, вагітності, відрядження, компенсації",369801,Маріупольська міська організація,39905107,Донецька область,Заробітна плата,2600214189,current,2576.00,Нагорна Ірина Вікторівна,,фізична особа
Опозиційний Блок,"Донецька область, Маріуполь",84,2016-12-14,126,"Заробітна плата, премії","Заробітна плата, лікарняні, вагітності, відрядження, компенсації",369800,Маріупольська міська організація,39905107,Донецька область,Заробітна плата,2600214189,current,706.01,Коновалова Євгенія Абрамівна,,фізична особа
Опозиційний Блок,"Київ, вулиця Андріївська, 4",70,2016-12-14,Пакеті_14.1 2.16.11.1808,Банківські послуги,Інші витрати,369277,Запорізька обласна організація,37526809,Запорізька область,Комісія банку,2600612837,current,120.00,"ПАТ ""ПУМБ""",14282829,юридична особа
Опозиційний Блок,"Київ, вулиця Андріївська, 4",70,2016-12-13,2.41801607,Банківські послуги,Інші витрати,370018,Маріупольська міська організація,39905107,Донецька область,комісія,2600214189,current,2.00,"ПАТ ""ПУМБ""",14282829,юридична особа
Опозиційний Блок,"Київ, вулиця Андріївська, 4",70,2016-12-13,573107709,Банківські послуги,Інші витрати,370017,Маріупольська міська організація,39905107,Донецька область,комісія,2600214189,current,0.85,"ПАТ ""ПУМБ""",14282829,юридична особа
Опозиційний Блок,,74,2016-12-13,чек 00098454,"Придбання канцтоварів, паперу, інших предметів і матеріалів, а також госп товари",Придбання канцтоварів та госп. товарів,370016,Маріупольська міська організація,39905107,Донецька область,канцтовари,2600214189,current,86.45,Прилипко Віктор Іванович,,фізична особа
Опозиційний Блок,"Київ, вулиця Андріївська, 4",70,2016-12-13,328354037,Банківські послуги,Інші витрати,370015,Маріупольська міська організація,39905107,Донецька область,комісія,2600214189,current,38.60,"ПАТ ""ПУМБ""",14282829,юридична особа
Опозиційний Блок,"Київ, вулиця Андріївська, 4",70,2016-12-13,105581505,Банківські послуги,Інші витрати,370014,Маріупольська міська організація,39905107,Донецька область,комісія,2600214189,current,0.85,"ПАТ ""ПУМБ""",14282829,юридична особа
Опозиційний Блок,"Донецька область, Маріуполь, вулиця Гризодубової, 1",79,2016-12-13,125,"Оренда будинків і приміщень та експлуатаційні витрати (прибирання, страхування орендованих будинків, охорона, сигналізація, ремонт, вивіз сміття, тощо)",Оренда нерухомості,370013,Маріупольська міська організація,39905107,Донецька область,за теплову енергію,2600214189,current,11755.65,"КП ""Маріупольтепломережа""",33760279,юридична особа
Опозиційний Блок,"Донецька область, Бахмут, вулиця Миру, 67",51,2016-12-13,14,Оплата ефірного часу на ТБ,Телереклама,369698,Бахмутська районна організація,39907559,Донецька область,розміщення відеоматеріалу,26008300990180,current,9180.00,"ТОВ ТРК ""Заказ""",22034318,юридична особа
Опозиційний Блок,"Донецька область, Бахмут, вулиця Миру, 67",51,2016-12-13,15,Оплата ефірного часу на ТБ,Телереклама,369697,Бахмутська районна організація,39907559,Донецька область,розміщення відеоматеріалу,26008300990180,current,4140.00,"ТОВ ТРК ""Заказ""",22034318,юридична особа
Опозиційний Блок,"Донецька область, Бахмут, вулиця Свободи, 1",51,2016-12-13,16,Оплата ефірного часу на ТБ,Телереклама,369696,Бахмутська районна організація,39907559,Донецька область,виготовлення та розміщення відеоматеріалу,26008300990180,current,6744.00,"КП ""ТРК ""Бахмут""",22034442,юридична особа
Опозиційний Блок,"Донецька область, Донецьк, вулиця Овнатаняна, 4",49,2016-12-13,17,Публікування матеріалів у друкованих ЗМІ,Реклама в друкованих ЗМІ,369695,Бахмутська районна організація,39907559,Донецька область,агітаційні матеріали,26008300990180,current,3888.00,"ДП РГ ""Собитія""",31132825,юридична особа
Опозиційний Блок,"Донецька область, Бахмут, вулиця Миру, 49",49,2016-12-13,18,Публікування матеріалів у друкованих ЗМІ,Реклама в друкованих ЗМІ,369694,Бахмутська районна організація,39907559,Донецька область,політична реклама,26008300990180,current,3713.34,"РГ ""Вперед""",31680401,юридична особа
Опозиційний Блок,"Донецька область, Костянтинівка, вулиця Богдана Хмельницького, 21а",49,2016-12-13,10,Публікування матеріалів у друкованих ЗМІ,Реклама в друкованих ЗМІ,369693,Бахмутська районна організація,39907559,Донецька область,розміщення політичних інформаційно-рекламних матеріалів,26008300990180,current,8100.00,"ТОВ ""Відродження Донбасу""",39835915,юридична особа
Опозиційний Блок,"Донецька область, Костянтинівка, вулиця Богдана Хмельницького, 21а",49,2016-12-13,11,Публікування матеріалів у друкованих ЗМІ,Реклама в друкованих ЗМІ,369692,Бахмутська районна організація,39907559,Донецька область,розміщення політичних інформаційно-рекламних матеріалів,26008300990180,current,8100.00,"ТОВ ""Відродження Донбасу""",39835915,юридична особа
Опозиційний Блок,"Донецька область, Костянтинівка, вулиця Богдана Хмельницького, 21а",49,2016-12-13,12,Публікування матеріалів у друкованих ЗМІ,Реклама в друкованих ЗМІ,369691,Бахмутська районна організація,39907559,Донецька область,розміщення політичних інформаційно-рекламних матеріалів,26008300990180,current,2340.00,"ТОВ ""Відродження Донбасу""",39835915,юридична особа
Опозиційний Блок,"Київ, вулиця Деревообробна, 7",58,2016-12-13,13,"Виготовлення друкованих матеріалів (плакатів, листівок, буклетів та інших агітаційних матеріалів)",Друкована агітація,369690,Бахмутська районна організація,39907559,Донецька область,листівки,26008300990180,current,1560.00,"ТОВ ""Прінт Маркет""",38654734,юридична особа
Опозиційний Блок,"Донецька область, Маріуполь, вулиця Георгіївська, 10",75,2016-12-12,чек 000044942,Поштові послуги та поширення друкованих матеріалів,Поштові послуги та поширення друкованих матеріалів,370012,Маріупольська міська організація,39905107,Донецька область,відправлення агітаційних матеріалів,2600214189,current,143.00,"ТОВ ""Пост-фінанс""",38324133,юридична особа
Опозиційний Блок,"Київ, вулиця Андріївська, 4",70,2016-12-12,373820383,Банківські послуги,Інші витрати,370011,Маріупольська міська організація,39905107,Донецька область,комісія,2600214189,current,0.85,"ПАТ ""ПУМБ""",14282829,юридична особа
Опозиційний Блок,"Одеська область, Одеса, Фонтанська дорога, 11",70,2016-12-12,ТД/01/34,Банківські послуги,Інші витрати,368880,Центральний офіс,37120464,Україна,Комісія банку,26008001030506,current,6.00,"Київська філія АТ ""Місто банк""",26410346,юридична особа
Опозиційний Блок,"Дніпропетровська область, Дніпро́",84,2016-12-11,П/Д72,"Заробітна плата, премії","Заробітна плата, лікарняні, вагітності, відрядження, компенсації",368905,Дніпропетровська обласна організація,39750015,Дніпропетровська область,"Перерахування заробітної плати за листопад 2016 року {2415,00 грн) згідно дог. № 260899816 від 07.07.2015 року та реєстру № 13 від 09.12.2016 р, без ПДВ",2600813320,current,2415.00,Гончаренко Наталія Вікторівна,,фізична особа
Опозиційний Блок,"Донецька область, Бахмут, вулиця Свободи, 1",51,2016-12-09,13,Оплата ефірного часу на ТБ,Телереклама,369689,Бахмутська районна організація,39907559,Донецька область,виготовлення та розміщення відеоматеріалу,26008300990180,current,16800.00,"КП ""ТРК ""Бахмут""",22034442,юридична особа
Опозиційний Блок,"Чернігівська область, Чернігів",79,2016-12-09,33,"Оренда будинків і приміщень та експлуатаційні витрати (прибирання, страхування орендованих будинків, охорона, сигналізація, ремонт, вивіз сміття, тощо)",Оренда нерухомості,369671,Чернігівська обласна організація,37418136,Чернігівська область,Орендна плата,26003051415812,current,12015.00,Чернігівська Міськспоживспілка,40268466,юридична особа
Опозиційний Блок,"Дніпропетровська область, Дніпро́, вулиця Янтарна, 40",79,2016-12-09,80,"Оренда будинків і приміщень та експлуатаційні витрати (прибирання, страхування орендованих будинків, охорона, сигналізація, ремонт, вивіз сміття, тощо)",Оренда нерухомості,369045,Дніпропетровська обласна організація,39750015,Дніпропетровська область,"Передплата за комунальні послуги за грудень 2016 року, згідно рах. № 301104 від 30.11.2016 року, у т.ч. ПДВ 20% = 2 500,00 грн.",2600813320,current,15000.00,"ТОВ ""Комунгосп-сервіс""",36208390,юридична особа
Опозиційний Блок,"Дніпропетровська область, Дніпро́, вулиця Янтарна, 40",79,2016-12-09,81,"Оренда будинків і приміщень та експлуатаційні витрати (прибирання, страхування орендованих будинків, охорона, сигналізація, ремонт, вивіз сміття, тощо)",Оренда нерухомості,369044,Дніпропетровська обласна організація,39750015,Дніпропетровська область,"Передплата за комунальні послуги за грудень 2016 року, згідно pax, № 301104 від 30.11.2016 року, у т.ч. ПДВ 20% = 2 500,00 грн.",2600813320,current,15000.00,"ТОВ ""Комунгосп-сервіс""",36208390,юридична особа
Опозиційний Блок,"Київ, вулиця Андріївська, 4",70,2016-12-09,TR.12591325.7 6191253,Банківські послуги,Інші витрати,369043,Дніпропетровська обласна організація,39750015,Дніпропетровська область,Договорное списание комиссии за платеж в пользу клиента др. банка с-но п. 2.14 тарифов ПУМБ по дог. 260854602 от 24/06/2015,2600813320,current,2.00,"ПАТ ""ПУМБ""",14282829,юридична особа
Опозиційний Блок,"Київ, вулиця Андріївська, 4",70,2016-12-09,TR.12591325.8 9421555,Банківські послуги,Інші витрати,369042,Дніпропетровська обласна організація,39750015,Дніпропетровська область,Договорное списание комиссии за платеж в пользу клиента др. банка с-но п. 2.14 тарифов ПУМБ по дог. 260854602 от 24/06/2015,2600813320,current,2.00,"ПАТ ""ПУМБ""",14282829,юридична особа
Опозиційний Блок,"Дніпропетровська область, Дніпро́, вулиця Янтарна, 40",79,2016-12-09,82,"Оренда будинків і приміщень та експлуатаційні витрати (прибирання, страхування орендованих будинків, охорона, сигналізація, ремонт, вивіз сміття, тощо)",Оренда нерухомості,369041,Дніпропетровська обласна організація,39750015,Дніпропетровська область,"Передплата за комунальні послуги за грудень 2016 року, згідно pax. № 301104 від 2016-11-30 року, у т.ч. ПДВ 20% = 518,91 грн.",2600813320,current,3113.43,"ТОВ ""Комунгосп-сервіс""",36208390,юридична особа
Опозиційний Блок,"Київ, вулиця Андріївська, 4",70,2016-12-09,TR.12591325.9 8182772,Банківські послуги,Інші витрати,369040,Дніпропетровська обласна організація,39750015,Дніпропетровська область,Договорное списание комиссии за платеж в пользу клиента др. банка с-но п. 2.14 тарифов ПУМБ по дог. 260854602 от 24/06/2015,2600813320,current,2.00,"ПАТ ""ПУМБ""",14282829,юридична особа
Опозиційний Блок,"Київ, вулиця Андріївська, 4",70,2016-12-09,78,Банківські послуги,Інші витрати,369039,Дніпропетровська обласна організація,39750015,Дніпропетровська область,"Комісія за зарахування банком коштів на КР співробітн. зг. заявки № 13 від 2016-12-09р, дог.№ 260899816 від 2015-07-07 р. (12,08 грн), без ПДВ",2600813320,current,12.08,"ПАТ ""ПУМБ""",14282829,юридична особа
Опозиційний Блок,"Дніпропетровська область, Дніпро́, площа Шевченка, 7",61,2016-12-09,75,Військовий збір,Податкові платежі,369038,Дніпропетровська обласна організація,39750015,Дніпропетровська область,"Військовий збір за листопад 2016 року, без ПДВ",2600813320,current,45.00,УДКСУ у Соборному районі м. Дніпра,37989269,юридична особа
Опозиційний Блок,"Київ, вулиця Андріївська, 4",70,2016-12-09,ТІЇ. 125913 25.8 5995183,Банківські послуги,Інші витрати,369037,Дніпропетровська обласна організація,39750015,Дніпропетровська область,Договорное списание комиссии за платеж в пользу клиента др. банка с-но п. 2.14 тарифов ПУМБ по дог. 260854602 от 24/06/2015,2600813320,current,2.00,"ПАТ ""ПУМБ""",14282829,юридична особа
Опозиційний Блок,"Дніпропетровська область, Дніпро́, вулиця Високовольтна, 24",62,2016-12-09,76,Сплата ЄСВ,Податкові платежі,369036,Дніпропетровська обласна організація,39750015,Дніпропетровська область,"*"";""101"";""39260741"";""нарахуванн я ЄСВ 22,00% на зарплату за листопад 2016 року, без ПДВ",2600813320,current,660.00,ДПІ у Соборному районі м. Дніпро ГУ ДФС у Дніпропетровській області,39545734,юридична особа
Опозиційний Блок,"Київ, вулиця Андріївська, 4",70,2016-12-09,ТІЇ.12591325.9 3371733,Банківські послуги,Інші витрати,369035,Дніпропетровська обласна організація,39750015,Дніпропетровська область,Договорное списание комиссии за платеж в пользу клиента др. банка с-но п. 2.14 тарифов ПУМБ по дог. 260854602 от 24/06/2015,2600813320,current,2.00,"ПАТ ""ПУМБ""",14282829,юридична особа
Опозиційний Блок,"Дніпропетровська область, Дніпро́, площа Шевченка, 7",63,2016-12-09,77,Податок на доходи,Податкові платежі,369034,Дніпропетровська обласна організація,39750015,Дніпропетровська область,"НДФЛ 18% за листопад 2016 року, без ПДВ",2600813320,current,540.00,УДКСУ у Соборному районі м. Дніпра,37989269,юридична особа
Опозиційний Блок,"Київ, вулиця Андріївська, 4",70,2016-12-09,TR.12591325.6 1986760,Банківські послуги,Інші витрати,369033,Дніпропетровська обласна організація,39750015,Дніпропетровська область,Договорное списание комиссии за платеж в пользу клиента др. банка с-но п. 2.14 тарифов ПУМБ по дог. 260854602 от 24/06/2015,2600813320,current,2.00,"ПАТ ""ПУМБ""",14282829,юридична особа
Опозиційний Блок,"Дніпропетровська область, Дніпро́",84,2016-12-09,п/д 79,"Заробітна плата, премії","Заробітна плата, лікарняні, вагітності, відрядження, компенсації",368907,Дніпропетровська обласна організація,39750015,Дніпропетровська область,"Перерахування заробітної плати за листопад 2016 року {2415,00 грн) згідно дог. № 260899816 від 07.07.2015 року та реєстру № 13 від 09.12.2016 р, без ПДВ",2600813320,current,2415.00,Гончаренко Наталія Вікторівна,,фізична особа
Опозиційний Блок,"Одеська область, Одеса, Фонтанська дорога, 11",70,2016-12-09,ТД/01/31,Банківські послуги,Інші витрати,368879,Центральний офіс,37120464,Україна,Комісія банку,26008001030506,current,2.00,"Київська філія АТ ""Місто банк""",26410346,юридична особа
Опозиційний Блок,"Київ, вулиця Михайла Ломоносова, 22, 15",43,2016-12-09,44,Інші витрати,Інші витрати,368878,Центральний офіс,37120464,Україна,"сплата боргу ВП № 51049273 (судовий збір 4019,40грн, виконав чий збір 401,94 грн, витрати з орг. вик. дій 400,0 грн) Без НДС.",26008001030506,current,4821.34,Голосіївський Районний Відділ Державної Виконавчої Служби Міста Київ,34999976,юридична особа
Опозиційний Блок,"Київ, вулиця Михайла Ломоносова, 22, 15",43,2016-12-09,45,Інші витрати,Інші витрати,368877,Центральний офіс,37120464,Україна,"сплата боргу ВП № 51276578 (борг на користь держави 3654,0 г рн, виконавчий збір 365,40 грн, витрати з орг. вик. дій 400, 0 грн) Без НДС.",26008001030506,current,4419.40,Голосіївський Районний Відділ Державної Виконавчої Служби Міста Київ,34999976,юридична особа
Опозиційний Блок,Київ,79,2016-12-09,42,"Оренда будинків і приміщень та експлуатаційні витрати (прибирання, страхування орендованих будинків, охорона, сигналізація, ремонт, вивіз сміття, тощо)",Оренда нерухомості,368795,Центральний офіс,37120464,Україна,Оренда приміщення,26008001030506,current,397991.00,Яковенко Світлана Анатоліївна,,фізична особа
Опозиційний Блок,"Київ, провулок Євгена Гуцала, 3",76,2016-12-08,96,Послуги зв’язку,Послуги зв’язку,369276,Запорізька обласна організація,37526809,Запорізька область,Оплата за послуги звʼязку,2600612837,current,544.80,"ПАТ ""Фарлеп-інвест""",19199961,юридична особа
Опозиційний Блок,"Київ, провулок Євгена Гуцала, 3",76,2016-12-08,95,Послуги зв’язку,Послуги зв’язку,369275,Запорізька обласна організація,37526809,Запорізька область,Оплата за послуги звʼязку,2600612837,current,660.00,"ПАТ ""Фарлеп-інвест""",19199961,юридична особа
Опозиційний Блок,"м. Запоріжжя, вул. Чуйкова, буд. 20, кв. 158",79,2016-12-08,97,"Оренда будинків і приміщень та експлуатаційні витрати (прибирання, страхування орендованих будинків, охорона, сигналізація, ремонт, вивіз сміття, тощо)",Оренда нерухомості,369195,Запорізька обласна організація,37526809,Запорізька область,Оплата за оренду приміщення,2600612837,current,2500.00,Черкашина Л І,2046524805,фізична особа
Опозиційний Блок,"м. Запоріжжя, вул. Чуйкова, буд. 20, кв. 158",79,2016-12-08,98,"Оренда будинків і приміщень та експлуатаційні витрати (прибирання, страхування орендованих будинків, охорона, сигналізація, ремонт, вивіз сміття, тощо)",Оренда нерухомості,369194,Запорізька обласна організація,37526809,Запорізька область,Оплата за комунальні послуги,2600612837,current,1257.05,Черкашина Л І,2046524805,фізична особа
Опозиційний Блок,"Київ, вулиця Михайла Ломоносова, 22, 15",43,2016-12-08,43,Інші витрати,Інші витрати,368876,Центральний офіс,37120464,Україна,"сплата боргу ВП № 51276006 (борг 1218грн, виконавчий збір 12 1,80 грн, витрати з орг. вик. дій 385,0 грн) Без НДС.",26008001030506,current,1724.80,Голосіївський Районний Відділ Державної Виконавчої Служби Міста Київ,34999976,юридична особа
Опозиційний Блок,"Донецька область, Бахмут, вулиця Свободи, 1",51,2016-12-07,9,Оплата ефірного часу на ТБ,Телереклама,369688,Бахмутська районна організація,39907559,Донецька область,виготовлення та розміщення відеоматеріалу,26008300990180,current,2928.00,"КП ""ТРК ""Бахмут""",22034442,юридична особа
Опозиційний Блок,"Донецька область, Донецьк, вулиця Овнатаняна, 4",49,2016-12-06,6,Публікування матеріалів у друкованих ЗМІ,Реклама в друкованих ЗМІ,369687,Бахмутська районна організація,39907559,Донецька область,агітаційні матеріали,26008300990180,current,3408.00,"ДП РГ ""Собитія""",31132825,юридична особа
Опозиційний Блок,"Донецька область, Бахмут, вулиця Миру, 49",49,2016-12-06,5,Публікування матеріалів у друкованих ЗМІ,Реклама в друкованих ЗМІ,369686,Бахмутська районна організація,39907559,Донецька область,політична реклама,26008300990180,current,5118.28,"РГ ""Вперед""",31680401,юридична особа
Опозиційний Блок,"Донецька область, Бахмут, вулиця Свободи, 1",51,2016-12-06,8,Оплата ефірного часу на ТБ,Телереклама,369685,Бахмутська районна організація,39907559,Донецька область,виготовлення та розміщення відеоматеріалу,26008300990180,current,5760.00,"КП ""ТРК ""Бахмут""",22034442,юридична особа
Опозиційний Блок,"Донецька область, Донецьк, вулиця Овнатаняна, 4",49,2016-12-06,7,Публікування матеріалів у друкованих ЗМІ,Реклама в друкованих ЗМІ,369684,Бахмутська районна організація,39907559,Донецька область,агітаційні матеріали,26008300990180,current,480.00,"ДП РГ ""Собитія""",31132825,юридична особа
Опозиційний Блок,"Київ, вулиця Андріївська, 4",70,2016-12-05,707.1155,Банківські послуги,Інші витрати,370010,Маріупольська міська організація,39905107,Донецька область,комісія,2600214189,current,100.00,"ПАТ ""ПУМБ""",14282829,юридична особа
Опозиційний Блок,"Київ, вулиця Андріївська, 4",70,2016-12-05,TR.12591568.R КО.707.,Банківські послуги,Інші витрати,369032,Дніпропетровська обласна організація,39750015,Дніпропетровська область,Договорное списание комиссии за осуществление операций посредством СДО с-но тарифов ПУМБ ( 260854810 от 24/06/2015 )■,2600813320,current,100.00,"ПАТ ""ПУМБ""",14282829,юридична особа
Опозиційний Блок,"Київ, вулиця Михайла Грушевського, 1Д",70,2016-12-02,№ Л86Ъи69/цр,Банківські послуги,Інші витрати,369670,Чернігівська обласна організація,37418136,Чернігівська область,Комісія за обслуговування рахунку,26003051415812,current,100.00,"ПАТ КБ ""Приватбанк""",14360570,юридична особа
Опозиційний Блок,"Дніпропетровська область, Дніпро́, вулиця Курсантська, 24",70,2016-12-02,26989,Банківські послуги,Інші витрати,369542,Одеська обласна організація,39705145,Одеська область,розрахункове обслуговування рахунку,26007010349074,current,8.00,"ПАТ ""Банк Восток""",26237202,юридична особа
Опозиційний Блок,"Одеська область, Одеса, вулиця Канатна, 1",82,2016-12-02,481,"Гонорари, в тому числі за надані консультаційні послуги","Гонорари, в тому числі за надані консультаційні послуги",369541,Одеська обласна організація,39705145,Одеська область,за бухгалтерське обслуговування,26007010349074,current,1000.00,"ТОВ ""КФ ""Профіт фінанс""",39563816,юридична особа
Опозиційний Блок,"Одеська область, Одеса",52,2016-12-02,479,Інша реклама (без класифікації),Реклама (без класифікації),369465,Одеська обласна організація,39705145,Одеська область,проведення рекламної компанії,26007010349074,current,11900.00,Новицький Олександр Олександрович,,фізична особа
Опозиційний Блок,"Одеська область, Одеса",52,2016-12-02,480,Інша реклама (без класифікації),Реклама (без класифікації),369464,Одеська обласна організація,39705145,Одеська область,проведення рекламної компанії,26007010349074,current,4900.00,Кордюк Олена Анатоліївна,,фізична особа
Опозиційний Блок,"Одеська область, Одеса",52,2016-12-02,478,Інша реклама (без класифікації),Реклама (без класифікації),369463,Одеська обласна організація,39705145,Одеська область,проведення рекламної компанії,26007010349074,current,2800.00,Кордюк Олена Анатоліївна,,фізична особа
Опозиційний Блок,"Київ, вулиця Михайла Грушевського, 1Д",70,2016-12-02,А56ЬиОуу5р,Банківські послуги,Інші витрати,369066,Житомирська обласна організація,39929086,Житомирська область,Комісія банку за обслуговування рахунку,26008055807991,current,100.00,"ПАТ КБ ""Приватбанк""",14360570,юридична особа
Опозиційний Блок,"Одеська область, Одеса, Фонтанська дорога, 11",70,2016-12-02,6/284,Банківські послуги,Інші витрати,368875,Центральний офіс,37120464,Україна,Комісія банку,26008001030506,current,75.00,"Київська філія АТ ""Місто банк""",26410346,юридична особа
Опозиційний Блок,"Одеська область, Одеса, Фонтанська дорога, 11",70,2016-12-02,5/284,Банківські послуги,Інші витрати,368874,Центральний офіс,37120464,Україна,Комісія банку,26008001030506,current,45.00,"Київська філія АТ ""Місто банк""",26410346,юридична особа
Опозиційний Блок,"Київ, вулиця Андріївська, 4",70,2016-12-01,635041749,Банківські послуги,Інші витрати,370009,Маріупольська міська організація,39905107,Донецька область,комісія,2600214189,current,0.85,"ПАТ ""ПУМБ""",14282829,юридична особа
Опозиційний Блок,,74,2016-12-01,чек 0040,"Придбання канцтоварів, паперу, інших предметів і матеріалів, а також госп товари",Придбання канцтоварів та госп. товарів,370008,Маріупольська міська організація,39905107,Донецька область,пакети для сміття,2600214189,current,59.65,Петіфорова Анна Володимирівна,,фізична особа
Опозиційний Блок,"Донецька область, Маріуполь, вулиця Артема, 33",75,2016-12-01,чек 57143917,Поштові послуги та поширення друкованих матеріалів,Поштові послуги та поширення друкованих матеріалів,370007,Маріупольська міська організація,39905107,Донецька область,відправлення агітаційних матеріалів,2600214189,current,393.00,"ТОВ ""Пост-фінанс""",38324133,юридична особа
Опозиційний Блок,"Запорізька область, Запоріжжя, вулиця Перемоги, 5, 43",58,2016-12-01,94,"Виготовлення друкованих матеріалів (плакатів, листівок, буклетів та інших агітаційних матеріалів)",Друкована агітація,369274,Запорізька обласна організація,37526809,Запорізька область,Оплата за листівки,2600612837,current,15230.00,"ТОВ ""Мєга-мікс""",30744406,юридична особа
Опозиційний Блок,"Київ, вулиця Госпітальна, 12Г",70,2016-11-30,267654599,Банківські послуги,Інші витрати,369683,Бахмутська районна організація,39907559,Донецька область,Комісія банку,26008300990180,current,20.00,"АТ ""Ощадбанк""",00032129,юридична особа
Опозиційний Блок,"Донецька область, Бахмут, вулиця Миру, 49",49,2016-11-30,4,Публікування матеріалів у друкованих ЗМІ,Реклама в друкованих ЗМІ,369682,Бахмутська районна організація,39907559,Донецька область,політична реклама,26008300990180,current,3713.34,"РГ ""Вперед""",31680401,юридична особа
Опозиційний Блок,"Донецька область, Костянтинівка, вулиця Богдана Хмельницького, 21а",49,2016-11-30,3,Публікування матеріалів у друкованих ЗМІ,Реклама в друкованих ЗМІ,369681,Бахмутська районна організація,39907559,Донецька область,розміщення політичних інформаційно-рекламних матеріалів,26008300990180,current,8100.00,"ТОВ ""Відродження Донбасу""",39835915,юридична особа
Опозиційний Блок,"Донецька область, Костянтинівка, вулиця Богдана Хмельницького, 21а",49,2016-11-30,2,Публікування матеріалів у друкованих ЗМІ,Реклама в друкованих ЗМІ,369680,Бахмутська районна організація,39907559,Донецька область,розміщення інформаційно-рекламних матеріалів,26008300990180,current,450.00,"ТОВ ""Відродження Донбасу""",39835915,юридична особа
Опозиційний Блок,"Донецька область, Бахмутський район",58,2016-11-30,і,"Виготовлення друкованих матеріалів (плакатів, листівок, буклетів та інших агітаційних матеріалів)",Друкована агітація,369679,Бахмутська районна організація,39907559,Донецька область,За листівки,26008300990180,current,1500.00,Клиновський О О,,фізична особа
Опозиційний Блок,"Київ, вулиця Госпітальна, 12Г",70,2016-11-30,65033833,Банківські послуги,Інші витрати,369594,Черкаська обласна організація,39880926,Черкаська область,Плата за обслуговування тарифного пакету за лютий 2016 р.,26002301144523,current,99.00,"АТ ""Ощадбанк""",00032129,юридична особа
Опозиційний Блок,"Одеська область, Одеса, вулиця Краснова, 6/1",70,2016-11-30,3,Банківські послуги,Інші витрати,369408,Кіровоградська обласна організація,39662568,Кіровоградська область,Розрахункове касове обслуговування,26000010007869,current,75.00,"АБ ""Південний""",20953647,юридична особа
Опозиційний Блок,"Одеська область, Одеса, вулиця Краснова, 6/1",70,2016-11-30,2,Банківські послуги,Інші витрати,369407,Кіровоградська обласна організація,39662568,Кіровоградська область,Розрахункове касове обслуговування,26000010007869,current,50.00,"АБ ""Південний""",20953647,юридична особа
Опозиційний Блок,"Одеська область, Одеса, вулиця Краснова, 6/1",70,2016-11-30,1,Банківські послуги,Інші витрати,369406,Кіровоградська обласна організація,39662568,Кіровоградська область,Розрахункове касове обслуговування,26000010007869,current,12.00,"АБ ""Південний""",20953647,юридична особа
Опозиційний Блок,"Закарпатська область, Ужгород, вулиця Митна, 56",61,2016-11-30,107,Військовий збір,Податкові платежі,369165,Закарпатська обласна організація,38222036,Закарпатська область,*;38222036;11010000 Утримання військового збору з заробітної плати за 2016 без ПДВ,26003016000800,current,192.00,УДКСУ в Ужгородському районі Закарпатської області,38015605,юридична особа
Опозиційний Блок,"Закарпатська область, Ужгород, вулиця Гойди, 10",70,2016-11-30,171142,Банківські послуги,Інші витрати,369164,Закарпатська обласна організація,38222036,Закарпатська область,Комісія за розрахунково-касове обслуговування,26003016000800,current,5.00,"ПАТ ""Комінвестбанк""",19355562,юридична особа
Опозиційний Блок,"Закарпатська область, Ужгород, вулиця Другетів, 60",76,2016-11-30,113,Послуги зв’язку,Послуги зв’язку,369163,Закарпатська обласна організація,38222036,Закарпатська область,Абонплата за послуги інтернетз-но рах № 0014998 від 31.10.16 Без ПДВ,26003016000800,current,537.00,"ТОВ ""Корсі""",22104527,юридична особа
Опозиційний Блок,"Київ, вулиця Михайла Грушевського, 1Д",70,2016-11-30,1130ЬШО8У,Банківські послуги,Інші витрати,369065,Житомирська обласна організація,39929086,Житомирська область,Комісія банку за обслуговування рахунку,26008055807991,current,3.00,"ПАТ КБ ""Приватбанк""",14360570,юридична особа
Опозиційний Блок,"Київ, вулиця Андріївська, 4",70,2016-11-29,121,Банківські послуги,Інші витрати,370006,Маріупольська міська організація,39905107,Донецька область,комісія,2600214189,current,42.70,"ПАТ ""ПУМБ""",14282829,юридична особа
Опозиційний Блок,"Донецька область, Маріуполь",84,2016-11-29,120,"Заробітна плата, премії","Заробітна плата, лікарняні, вагітності, відрядження, компенсації",369799,Маріупольська міська організація,39905107,Донецька область,Заробітна плата,2600214189,current,1851.50,Виборнова Наталя Михайлівна,,фізична особа
Опозиційний Блок,"Донецька область, Маріуполь",84,2016-11-29,120,"Заробітна плата, премії","Заробітна плата, лікарняні, вагітності, відрядження, компенсації",369798,Маріупольська міська організація,39905107,Донецька область,Заробітна плата,2600214189,current,1006.25,Петренко Наталія Дмитрівна,,фізична особа
Опозиційний Блок,"Донецька область, Маріуполь",84,2016-11-29,120,"Заробітна плата, премії","Заробітна плата, лікарняні, вагітності, відрядження, компенсації",369797,Маріупольська міська організація,39905107,Донецька область,Заробітна плата,2600214189,current,2576.00,Нагорна Ірина Вікторівна,,фізична особа
Опозиційний Блок,"Донецька область, Маріуполь",84,2016-11-29,120,"Заробітна плата, премії","Заробітна плата, лікарняні, вагітності, відрядження, компенсації",369796,Маріупольська міська організація,39905107,Донецька область,Заробітна плата,2600214189,current,665.76,Коновалова Євгенія Абрамівна,,фізична особа
Опозиційний Блок,"Житомирська область, Житомир, вулиця Велика Бердичівська, 72",52,2016-11-29,48,Інша реклама (без класифікації),Реклама (без класифікації),369063,Житомирська обласна організація,39929086,Житомирська область,розміщення інформаційних матеріалів,26008055807991,current,600.00,"ТОВ ""Медіа-проспект""",38500053,юридична особа
Опозиційний Блок,"Київ, вулиця Михайла Грушевського, 1Д",70,2016-11-28,11281ЛЕАРУ,Банківські послуги,Інші витрати,369064,Житомирська обласна організація,39929086,Житомирська область,Комісія банку за обслуговування рахунку,26008055807991,current,3.00,"ПАТ КБ ""Приватбанк""",14360570,юридична особа
Опозиційний Блок,"Житомирська область, Житомир, вулиця Велика Бердичівська, 72",52,2016-11-27,47,Інша реклама (без класифікації),Реклама (без класифікації),369062,Житомирська обласна організація,39929086,Житомирська область,розміщення інформаційних матеріалів,26008055807991,current,600.00,"ТОВ ""Медіа-проспект""",38500053,юридична особа
Опозиційний Блок,"Київ, вулиця Ревуцького, 46",76,2016-11-25,118,Послуги зв’язку,Послуги зв’язку,370005,Маріупольська міська організація,39905107,Донецька область,послуги інтернет,2600214189,current,256.00,"ТОВ ""ТВП Формат""",40196287,юридична особа
Опозиційний Блок,"Дніпропетровська область, Дніпро́, вулиця Херсонська, 26",76,2016-11-25,119,Послуги зв’язку,Послуги зв’язку,370004,Маріупольська міська організація,39905107,Донецька область,Телекомунікаційні послуги,2600214189,current,185.00,"ПАТ ""Укртелеком""",21560766,юридична особа
Опозиційний Блок,"Київ, вулиця Андріївська, 4",70,2016-11-25,976423343,Банківські послуги,Інші витрати,370003,Маріупольська міська організація,39905107,Донецька область,комісія,2600214189,current,2.00,"ПАТ ""ПУМБ""",14282829,юридична особа
Опозиційний Блок,"Київ, вулиця Андріївська, 4",70,2016-11-25,141096602,Банківські послуги,Інші витрати,370002,Маріупольська міська організація,39905107,Донецька область,комісія,2600214189,current,2.00,"ПАТ ""ПУМБ""",14282829,юридична особа
Опозиційний Блок,"Кіровоградська область, Кропивницький, Садова вулиця, 88",58,2016-11-24,5,"Виготовлення друкованих матеріалів (плакатів, листівок, буклетів та інших агітаційних матеріалів)",Друкована агітація,369405,Кіровоградська обласна організація,39662568,Кіровоградська область,Поліграфічні послуги зг.рах.№1795 від 21.11.2016р.,26000010007869,current,3600.00,"ТОВ ""Поліграф-Центр""",23696346,юридична особа
Опозиційний Блок,"Одеська область, Одеса, Фонтанська дорога, 11",70,2016-11-24,15,Банківські послуги,Інші витрати,369327,Київська обласна організація,39756467,Київська область,"Абонентська плата за використання системи ""Интернет-банкинг"" за 11.2016р.згідно тарифів банку.Без ПДВ.",26006001030575,current,115.00,"Київська філія АТ ""Місто банк""",26410346,юридична особа
Опозиційний Блок,"Запорізька область, Запоріжжя, вулиця Сєдова, 16",58,2016-11-23,93,"Виготовлення друкованих матеріалів (плакатів, листівок, буклетів та інших агітаційних матеріалів)",Друкована агітація,369273,Запорізька обласна організація,37526809,Запорізька область,Оплата за друк газети,2600612837,current,19937.28,"ТОВ ВД ""Кераміст""",31122120,юридична особа
Опозиційний Блок,"Київ, вулиця Михайла Грушевського, 1Д",70,2016-11-22,11221ЛТІГгУ,Банківські послуги,Інші витрати,369060,Житомирська обласна організація,39929086,Житомирська область,Комісія банку за обслуговування рахунку,26008055807991,current,3.00,"ПАТ КБ ""Приватбанк""",14360570,юридична особа
Опозиційний Блок,"Вінницька область, Тульчинський район, Тульчин, вулиця Леонтовича, 1",59,2016-11-22,3,Грошова застава,Грошова застава,368894,Вінницька обласна організація,37618150,Вінницька область,грошова застава,2600815360,current,969.00,Тульчинська МВК Тульчинського р-ну В/о,33868277,юридична особа
Опозиційний Блок,"Вінницька область, Барський район, Бар",59,2016-11-22,2,Грошова застава,Грошова застава,368893,Вінницька обласна організація,37618150,Вінницька область,грошова застава,2600815360,current,805.00,Барська МВК,34081082,юридична особа
Опозиційний Блок,"Вінницька область, Немирівський район, Немирів, вулиця Леніна, 26",59,2016-11-22,1,Грошова застава,Грошова застава,368892,Вінницька обласна організація,37618150,Вінницька область,грошова застава,2600815360,current,659.00,Немирівська МВК,33845179,юридична особа
Опозиційний Блок,"Київ, вулиця Андріївська, 4",70,2016-11-22,13062184.88 314336,Банківські послуги,Інші витрати,368891,Вінницька обласна організація,37618150,Вінницька область,Комісія банку,2600815360,current,10.00,"ПАТ ""ПУМБ""",14282829,юридична особа
Опозиційний Блок,"Київ, вулиця Андріївська, 4",70,2016-11-22,13062184.52 499.11,Банківські послуги,Інші витрати,368890,Вінницька обласна організація,37618150,Вінницька область,Комісія банку,2600815360,current,120.00,"ПАТ ""ПУМБ""",14282829,юридична особа
Опозиційний Блок,"Київ, вулиця Андріївська, 4",70,2016-11-22,13062184.52 477.11,Банківські послуги,Інші витрати,368889,Вінницька обласна організація,37618150,Вінницька область,Комісія банку,2600815360,current,120.00,"ПАТ ""ПУМБ""",14282829,юридична особа
Опозиційний Блок,"Київ, вулиця Михайла Грушевського, 1Д",70,2016-11-21,1121Ь3Б01 У,Банківські послуги,Інші витрати,370094,Словʼянська районна організація,39923236,Донецька область,Комісія банку,26054053605552,current,3.00,"ПАТ КБ ""Приватбанк""",14360570,юридична особа
Опозиційний Блок,"Донецька область, Миколаївка, вулиця Енергетиків",59,2016-11-21,4,Грошова застава,Грошова застава,370093,Словʼянська районна організація,39923236,Донецька область,Грошова застава для вибочого списку кандидатів у депутати Миколаївської міської ради,26054053605552,current,692.00,Миколаївська МВК Словʼянського р-ну Д/о.,40946796,юридична особа
Опозиційний Блок,"Київ, вулиця Михайла Грушевського, 1Д",70,2016-11-21,1121А5439А,Банківські послуги,Інші витрати,370092,Словʼянська районна організація,39923236,Донецька область,Комісія банку,26054053605552,current,5.00,"ПАТ КБ ""Приватбанк""",14360570,юридична особа
Опозиційний Блок,"Київ, вулиця Михайла Грушевського, 1Д",70,2016-11-21,№П21L0C4Q У,Банківські послуги,Інші витрати,369669,Чернігівська обласна організація,37418136,Чернігівська область,Комісія за обслуговування рахунку,26003051415812,current,3.00,"ПАТ КБ ""Приватбанк""",14360570,юридична особа
Опозиційний Блок,"Чернігівська область, Сновський район, Сновськ",59,2016-11-21,32,Грошова застава,Грошова застава,369668,Чернігівська обласна організація,37418136,Чернігівська область,грошова застава,26003051415812,current,1134.00,Сновська МВК,34208839,юридична особа
Опозиційний Блок,"Херсонська область, Херсон",53,2016-11-21,7,Витрати на розміщення зовнішньої реклами,Зовнішня реклама,369582,Херсонська обласна організація,37542218,Херсонська область,обслуговування рекламоносія,2600915358,current,37026.00,"ТОВ ""Преміум Медіа Груп""",34716807,юридична особа
Опозиційний Блок,"Херсонська область, Херсон",53,2016-11-21,6,Витрати на розміщення зовнішньої реклами,Зовнішня реклама,369581,Херсонська обласна організація,37542218,Херсонська область,Послуги по розміщенню рекламного зображення та обслуговування рекламоносія,2600915358,current,15132.00,"ТОВ ""Преміум Медіа Груп""",34716807,юридична особа
Опозиційний Блок,"Херсонська область, Херсон",53,2016-11-21,5,Витрати на розміщення зовнішньої реклами,Зовнішня реклама,369580,Херсонська обласна організація,37542218,Херсонська область,Виготовоення рекламних плакатів,2600915358,current,4550.00,"ТОВ ""РТМ-Україна""",31282375,юридична особа
Опозиційний Блок,"Херсонська область, Херсон",53,2016-11-21,4,Витрати на розміщення зовнішньої реклами,Зовнішня реклама,369579,Херсонська обласна організація,37542218,Херсонська область,Розміщення зовнішньої реклами,2600915358,current,35880.00,"ТОВ ""РТМ-Україна""",31282375,юридична особа
Опозиційний Блок,"м. Запоріжжя, вул. Чуйкова, буд. 20, кв. 158",79,2016-11-21,91,"Оренда будинків і приміщень та експлуатаційні витрати (прибирання, страхування орендованих будинків, охорона, сигналізація, ремонт, вивіз сміття, тощо)",Оренда нерухомості,369193,Запорізька обласна організація,37526809,Запорізька область,Оплата за комунальні послуги,2600612837,current,857.57,Черкашина Л І,2046524805,фізична особа
Опозиційний Блок,"м. Запоріжжя, вул. Чуйкова, буд. 20, кв. 158",79,2016-11-21,92,"Оренда будинків і приміщень та експлуатаційні витрати (прибирання, страхування орендованих будинків, охорона, сигналізація, ремонт, вивіз сміття, тощо)",Оренда нерухомості,369192,Запорізька обласна організація,37526809,Запорізька область,Оплата за оренду приміщення,2600612837,current,2500.00,Черкашина Л І,2046524805,фізична особа
Опозиційний Блок,"Закарпатська область, Ужгород, вулиця Гойди, 10",70,2016-11-21,171142,Банківські послуги,Інші витрати,369162,Закарпатська обласна організація,38222036,Закарпатська область,Комісія за розрахунково-касове обслуговування,26003016000800,current,75.00,"ПАТ ""Комінвестбанк""",19355562,юридична особа
Опозиційний Блок,"Житомирська область, Коростишівський район, Коростишів, вулиця Володимирська, 1",59,2016-11-21,46,Грошова застава,Грошова застава,369061,Житомирська обласна організація,39929086,Житомирська область,Грошова застава за списки у кандидати Коростишівської міської ради,26008055807991,current,1307.00,Коростишівська МВК Коростишівського району Житомирської області,34022053,юридична особа
Опозиційний Блок,"Житомирська область, Олевський район, Олевськ, вулиця Володимирська, 2",59,2016-11-21,46,Грошова застава,Грошова застава,369059,Житомирська обласна організація,39929086,Житомирська область,Грошова застава за кандидата на посаду голови м. Олевська,26008055807991,current,1554.00,Олевська міська виборча комісія,34008945,юридична особа
Опозиційний Блок,"Житомирська область, Олевський район, Олевськ, вулиця Володимирська, 2",59,2016-11-21,45,Грошова застава,Грошова застава,369058,Житомирська обласна організація,39929086,Житомирська область,Грошова застава за списки у кандидати Олевської міської ради,26008055807991,current,1554.00,Олевська міська виборча комісія,34008945,юридична особа
Опозиційний Блок,"Київ, вулиця Михайла Грушевського, 1Д",70,2016-11-21,11211ЛКХ>\¥У,Банківські послуги,Інші витрати,369057,Житомирська обласна організація,39929086,Житомирська область,Комісія банку за обслуговування рахунку,26008055807991,current,3.00,"ПАТ КБ ""Приватбанк""",14360570,юридична особа
Опозиційний Блок,"Житомирська область, Баранівський район, Баранівка, вулиця Соборна, 20",59,2016-11-21,44,Грошова застава,Грошова застава,369056,Житомирська обласна організація,39929086,Житомирська область,Грошова застава за списки у кандидати Баранівської міської ради,26008055807991,current,1092.00,Баранівська міська виборча комісія,33985192,юридична особа
Опозиційний Блок,"Київ, вулиця Михайла Грушевського, 1Д",70,2016-11-21,шіиквиу,Банківські послуги,Інші витрати,369055,Житомирська обласна організація,39929086,Житомирська область,Комісія банку за обслуговування рахунку,26008055807991,current,3.00,"ПАТ КБ ""Приватбанк""",14360570,юридична особа
Опозиційний Блок,"Київ, вулиця Михайла Грушевського, 1Д",70,2016-11-21,1ШІЛКЕЮУ,Банківські послуги,Інші витрати,369054,Житомирська обласна організація,39929086,Житомирська область,Комісія банку за обслуговування рахунку,26008055807991,current,3.00,"ПАТ КБ ""Приватбанк""",14360570,юридична особа
Опозиційний Блок,"Київ, вулиця Михайла Грушевського, 1Д",70,2016-11-21,1121А9ЮиА,Банківські послуги,Інші витрати,369053,Житомирська обласна організація,39929086,Житомирська область,Комісія банку за обслуговування рахунку,26008055807991,current,5.00,"ПАТ КБ ""Приватбанк""",14360570,юридична особа
Опозиційний Блок,"Київ, вулиця Андріївська, 4",70,2016-11-21,73,Банківські послуги,Інші витрати,369031,Дніпропетровська обласна організація,39750015,Дніпропетровська область,"Комісія за зарахування банком коштів на КР співробітн. зг. заявки № 12 від 21.11.09.2016р, дог.N9 260899816 від 07.07.2015 р. (12,08 грн), без ПДВ.",2600813320,current,12.08,"ПАТ ""ПУМБ""",14282829,юридична особа
Опозиційний Блок,"Дніпропетровська область, Дніпро́",84,2016-11-21,П/Д74,"Заробітна плата, премії","Заробітна плата, лікарняні, вагітності, відрядження, компенсації",368906,Дніпропетровська обласна організація,39750015,Дніпропетровська область,"Перерахування заробітної плати за жовтень 2016 року {2415,00 грн) згідно дог. № 260899816 від 07.07.2015 року та реєстру № 12 від 21.11.2016 р, без ПДВ",2600813320,current,2415.00,Гончаренко Наталія Вікторівна,,фізична особа
Опозиційний Блок,"Київ, вулиця Андріївська, 4",70,2016-11-18,731849048,Банківські послуги,Інші витрати,370001,Маріупольська міська організація,39905107,Донецька область,комісія,2600214189,current,2.00,"ПАТ ""ПУМБ""",14282829,юридична особа
Опозиційний Блок,"Донецька область, Маріуполь, вулиця Соборна, 7",79,2016-11-18,117,"Оренда будинків і приміщень та експлуатаційні витрати (прибирання, страхування орендованих будинків, охорона, сигналізація, ремонт, вивіз сміття, тощо)",Оренда нерухомості,370000,Маріупольська міська організація,39905107,Донецька область,За холодну воду,2600214189,current,30.55,"КП ""мвувкг""",03361508,юридична особа
Опозиційний Блок,"Київ, вулиця Михайла Грушевського, 1Д",70,2016-11-18,№Ш8L0DLC У,Банківські послуги,Інші витрати,369667,Чернігівська обласна організація,37418136,Чернігівська область,Комісія за обслуговування рахунку,26003051415812,current,3.00,"ПАТ КБ ""Приватбанк""",14360570,юридична особа
Опозиційний Блок,"Чернігівська область, Корюківський район, Корюківка",59,2016-11-18,31,Грошова застава,Грошова застава,369666,Чернігівська обласна організація,37418136,Чернігівська область,грошова застава,26003051415812,current,825.00,Корюківська МВК,33903778,юридична особа
Опозиційний Блок,"Київ, вулиця Михайла Грушевського, 1Д",70,2016-11-18,№Ш8L0DJX У,Банківські послуги,Інші витрати,369665,Чернігівська обласна організація,37418136,Чернігівська область,Комісія за обслуговування рахунку,26003051415812,current,3.00,"ПАТ КБ ""Приватбанк""",14360570,юридична особа
Опозиційний Блок,"Чернігівська область, Корюківський район, Корюківка",59,2016-11-18,30,Грошова застава,Грошова застава,369664,Чернігівська обласна організація,37418136,Чернігівська область,грошова застава,26003051415812,current,825.00,Корюківська МВК,33903778,юридична особа
Опозиційний Блок,"Київ, вулиця Михайла Грушевського, 1Д",70,2016-11-17,№Ш7L0BF9 У,Банківські послуги,Інші витрати,369663,Чернігівська обласна організація,37418136,Чернігівська область,Комісія за обслуговування рахунку,26003051415812,current,3.00,"ПАТ КБ ""Приватбанк""",14360570,юридична особа
Опозиційний Блок,"Чернігівська область, Носівський район, Носівка",59,2016-11-17,29,Грошова застава,Грошова застава,369662,Чернігівська обласна організація,37418136,Чернігівська область,грошова застава,26003051415812,current,1020.00,Носівська МВК,34209434,юридична особа
Опозиційний Блок,"Київ, вулиця Госпітальна, 12Г",70,2016-11-17,99662965,Банківські послуги,Інші витрати,369556,Сумська обласна організація,39673391,Сумська область,Комісія за обслуговування рахунку,26001300953074,current,5.00,"АТ ""Ощадбанк""",00032129,юридична особа
Опозиційний Блок,"Сумська область, Ямпільський район, Дружба",59,2016-11-17,54,Грошова застава,Грошова застава,369555,Сумська обласна організація,39673391,Сумська область,Грошова застава за виборчий список кандидатів в депутати,26001300953074,current,253.00,Дружбівська міська виборча комісія,34112838,юридична особа
Опозиційний Блок,"Київ, вулиця Андріївська, 4",70,2016-11-15,1116.11406,Банківські послуги,Інші витрати,370080,Мангушська районна організація,39929882,Донецька область,Комісія банку,2600115288,current,120.00,"ПАТ ""ПУМБ""",14282829,юридична особа
Опозиційний Блок,"Київ, вулиця Андріївська, 4",70,2016-11-15,896684726,Банківські послуги,Інші витрати,369999,Маріупольська міська організація,39905107,Донецька область,комісія,2600214189,current,2.00,"ПАТ ""ПУМБ""",14282829,юридична особа
Опозиційний Блок,"Київ, вулиця Андріївська, 4",70,2016-11-15,887506752,Банківські послуги,Інші витрати,369998,Маріупольська міська організація,39905107,Донецька область,комісія,2600214189,current,72.60,"ПАТ ""ПУМБ""",14282829,юридична особа
Опозиційний Блок,"Київ, вулиця Андріївська, 4",70,2016-11-15,268043188,Банківські послуги,Інші витрати,369997,Маріупольська міська організація,39905107,Донецька область,комісія,2600214189,current,2.00,"ПАТ ""ПУМБ""",14282829,юридична особа
Опозиційний Блок,"Київ, вулиця Андріївська, 4",70,2016-11-15,545491550,Банківські послуги,Інші витрати,369996,Маріупольська міська організація,39905107,Донецька область,комісія,2600214189,current,2.00,"ПАТ ""ПУМБ""",14282829,юридична особа
Опозиційний Блок,"Київ, вулиця Андріївська, 4",70,2016-11-15,115,Банківські послуги,Інші витрати,369995,Маріупольська міська організація,39905107,Донецька область,комісія,2600214189,current,42.70,"ПАТ ""ПУМБ""",14282829,юридична особа
Опозиційний Блок,"Донецька область, Маріуполь, проспект Миру, 68",63,2016-11-15,112,Податок на доходи,Податкові платежі,369994,Маріупольська міська організація,39905107,Донецька область,ПДФО,2600214189,current,2575.98,УДКСУ у м. Маріуполі Донецької області,37989721,юридична особа
Опозиційний Блок,"Донецька область, Маріуполь, вулиця 130-ї Таганрозької Дивізії, 114",62,2016-11-15,113,Сплата ЄСВ,Податкові платежі,369993,Маріупольська міська організація,39905107,Донецька область,ЄСВ 22%,2600214189,current,3300.00,Маріупольська ОДПІ,39883670,юридична особа
Опозиційний Блок,"Донецька область, Маріуполь, проспект Миру, 68",61,2016-11-15,114,Військовий збір,Податкові платежі,369992,Маріупольська міська організація,39905107,Донецька область,"Військовий збір 1,5%",2600214189,current,225.00,УДКСУ у м. Маріуполі Донецької області,37989721,юридична особа
Опозиційний Блок,"Донецька область, Маріуполь",84,2016-11-15,116,"Заробітна плата, премії","Заробітна плата, лікарняні, вагітності, відрядження, компенсації",369795,Маріупольська міська організація,39905107,Донецька область,Заробітна плата,2600214189,current,1851.50,Виборнова Наталя Михайлівна,,фізична особа
Опозиційний Блок,"Донецька область, Маріуполь",84,2016-11-15,116,"Заробітна плата, премії","Заробітна плата, лікарняні, вагітності, відрядження, компенсації",369794,Маріупольська міська організація,39905107,Донецька область,Заробітна плата,2600214189,current,1006.25,Петренко Наталія Дмитрівна,,фізична особа
Опозиційний Блок,"Донецька область, Маріуполь",84,2016-11-15,116,"Заробітна плата, премії","Заробітна плата, лікарняні, вагітності, відрядження, компенсації",369793,Маріупольська міська організація,39905107,Донецька область,Заробітна плата,2600214189,current,665.76,Коновалова Євгенія Абрамівна,,фізична особа
Опозиційний Блок,"Донецька область, Маріуполь",84,2016-11-15,116,"Заробітна плата, премії","Заробітна плата, лікарняні, вагітності, відрядження, компенсації",369792,Маріупольська міська організація,39905107,Донецька область,Заробітна плата,2600214189,current,2576.00,Нагорна Ірина Вікторівна,,фізична особа
Опозиційний Блок,"Київ, вулиця Андріївська, 4",70,2016-11-15,1116.7751,Банківські послуги,Інші витрати,369578,Херсонська обласна організація,37542218,Херсонська область,договірне списання сум комісії,2600915358,current,120.00,"ПАТ ""ПУМБ""",14282829,юридична особа
Опозиційний Блок,"Київ, вулиця Андріївська, 4",70,2016-11-15,Пакетьіі 1 16.13265,Банківські послуги,Інші витрати,369272,Запорізька обласна організація,37526809,Запорізька область,Комісія банку,2600612837,current,120.00,"ПАТ ""ПУМБ""",14282829,юридична особа
Опозиційний Блок,"Запорізька область, Приморський район, Приморськ, вулиця Центральна, 7",59,2016-11-15,90,Грошова застава,Грошова застава,369271,Запорізька обласна організація,37526809,Запорізька область,Оплата грошової застави,2600612837,current,718.00,Приморська МВК,34126945,юридична особа
Опозиційний Блок,"Київ, вулиця Андріївська, 4",70,2016-11-14,1116.11406,Банківські послуги,Інші витрати,370079,Мангушська районна організація,39929882,Донецька область,Комісія банку,2600115288,current,120.00,"ПАТ ""ПУМБ""",14282829,юридична особа
Опозиційний Блок,"Донецька область, Маріуполь, вулиця Войнич, 2",79,2016-11-14,110,"Оренда будинків і приміщень та експлуатаційні витрати (прибирання, страхування орендованих будинків, охорона, сигналізація, ремонт, вивіз сміття, тощо)",Оренда нерухомості,369991,Маріупольська міська організація,39905107,Донецька область,за електроенергію,2600214189,current,2363.88,"ПАТ ""ДТЕК Донецькобленерго""",00131268,юридична особа
Опозиційний Блок,"Київ, вулиця Андріївська, 4",70,2016-11-14,697947222,Банківські послуги,Інші витрати,369990,Маріупольська міська організація,39905107,Донецька область,комісія,2600214189,current,2.00,"ПАТ ""ПУМБ""",14282829,юридична особа
Опозиційний Блок,"Київ, вулиця Михайла Грушевського, 1Д",70,2016-11-14,№ 1114Ь1а1УУ,Банківські послуги,Інші витрати,369661,Чернігівська обласна організація,37418136,Чернігівська область,Комісія за обслуговування рахунку,26003051415812,current,3.00,"ПАТ КБ ""Приватбанк""",14360570,юридична особа
Опозиційний Блок,"Чернігівська область, Козелецький район, Остер",59,2016-11-14,№ 28,Грошова застава,Грошова застава,369660,Чернігівська обласна організація,37418136,Чернігівська область,грошова застава,26003051415812,current,370.00,Остерська МВК,34179342,юридична особа
Опозиційний Блок,"Київ, вулиця Андріївська, 4",70,2016-11-14,11 16.7751,Банківські послуги,Інші витрати,369583,Херсонська обласна організація,37542218,Херсонська область,договірне списання сум комісії,2600915358,current,120.00,"ПАТ ""ПУМБ""",14282829,юридична особа
Опозиційний Блок,"Київ, вулиця Андріївська, 4",70,2016-11-14,1116.7751,Банківські послуги,Інші витрати,369577,Херсонська обласна організація,37542218,Херсонська область,договірне списання сум комісії,2600915358,current,120.00,"ПАТ ""ПУМБ""",14282829,юридична особа
Опозиційний Блок,"Кіровоградська область, Кропивницький, Садова вулиця, 88",58,2016-11-14,21,"Виготовлення друкованих матеріалів (плакатів, листівок, буклетів та інших агітаційних матеріалів)",Друкована агітація,369404,Кіровоградська обласна організація,39662568,Кіровоградська область,Поліграфічні послуги зг.рах№1753 від 11.11.2016р.,26000010007869,current,3072.00,"ТОВ ""Поліграф-Центр""",23696346,юридична особа
Опозиційний Блок,"Київ, вулиця Андріївська, 4",70,2016-11-14,Пакеты_11 16.13265,Банківські послуги,Інші витрати,369270,Запорізька обласна організація,37526809,Запорізька область,Комісія банку,2600612837,current,120.00,"ПАТ ""ПУМБ""",14282829,юридична особа
Опозиційний Блок,"Київ, вулиця Госпітальна, 12Г",70,2016-11-10,100768609,Банківські послуги,Інші витрати,369557,Сумська обласна організація,39673391,Сумська область,Комісія за обслуговування рахунку,26001300953074,current,10.00,"АТ ""Ощадбанк""",00032129,юридична особа
Опозиційний Блок,"Київ, вулиця Андріївська, 4",70,2016-11-09,494776202,Банківські послуги,Інші витрати,369989,Маріупольська міська організація,39905107,Донецька область,комісія,2600214189,current,0.85,"ПАТ ""ПУМБ""",14282829,юридична особа
Опозиційний Блок,"Київ, вулиця Андріївська, 4",70,2016-11-09,378951985,Банківські послуги,Інші витрати,369988,Маріупольська міська організація,39905107,Донецька область,комісія,2600214189,current,0.85,"ПАТ ""ПУМБ""",14282829,юридична особа
Опозиційний Блок,"Донецька область, Маріуполь, вулиця Італійська, 84",79,2016-11-09,108,"Оренда будинків і приміщень та експлуатаційні витрати (прибирання, страхування орендованих будинків, охорона, сигналізація, ремонт, вивіз сміття, тощо)",Оренда нерухомості,369987,Маріупольська міська організація,39905107,Донецька область,Послуги охорони,2600214189,current,423.73,Маріупольський міжрайонний відділ управління поліції охорони в Донецькій області,40109084,юридична особа
Опозиційний Блок,"Донецька область, Маріуполь, вулиця Італійська, 84",79,2016-11-09,109,"Оренда будинків і приміщень та експлуатаційні витрати (прибирання, страхування орендованих будинків, охорона, сигналізація, ремонт, вивіз сміття, тощо)",Оренда нерухомості,369986,Маріупольська міська організація,39905107,Донецька область,Послуги охорони,2600214189,current,83.63,Маріупольський міжрайонний відділ управління поліції охорони в Донецькій області,40109084,юридична особа
Опозиційний Блок,"Дніпропетровська область, Дніпро́, вулиця Янтарна, 40",79,2016-11-09,69,"Оренда будинків і приміщень та експлуатаційні витрати (прибирання, страхування орендованих будинків, охорона, сигналізація, ремонт, вивіз сміття, тощо)",Оренда нерухомості,369030,Дніпропетровська обласна організація,39750015,Дніпропетровська область,"Передплата за комунальні послуги за листопад 2016 року, згідно рах. № 311004 від 31.10.2016 року, у т.ч. ПДВ 20% = 2 500,00 грн.",2600813320,current,15000.00,"ТОВ ""Комунгосп-сервіс""",36208390,юридична особа
Опозиційний Блок,"Київ, вулиця Андріївська, 4",70,2016-11-09,TR.12591325.9 1926114,Банківські послуги,Інші витрати,369029,Дніпропетровська обласна організація,39750015,Дніпропетровська область,Договорное списание комиссии за платеж в пользу клиента др. банка с-но п. 2.14 тарифов ПУМБ по дог. 260854602 от 2015-06-24,2600813320,current,2.00,"ПАТ ""ПУМБ""",14282829,юридична особа
Опозиційний Блок,"Дніпропетровська область, Дніпро́",79,2016-11-09,70,"Оренда будинків і приміщень та експлуатаційні витрати (прибирання, страхування орендованих будинків, охорона, сигналізація, ремонт, вивіз сміття, тощо)",Оренда нерухомості,369028,Дніпропетровська обласна організація,39750015,Дніпропетровська область,"Передплата за комунальні послуги за листопад 2016 року, згідно рах. № 311004 від 2016-10-31 року, у т.ч. ПДВ 20% = 2 500,00 грн.",2600813320,current,15000.00,"ТОВ ""Комунгосп-сервіс""",36208390,юридична особа
Опозиційний Блок,"Київ, вулиця Андріївська, 4",70,2016-11-09,TR.12591325.9 1926114,Банківські послуги,Інші витрати,369027,Дніпропетровська обласна організація,39750015,Дніпропетровська область,Договорное списание комиссии за платеж в пользу клиента др. банка с-но п. 2.14 тарифов ПУМБ по дог. 260854602 от 24/06/2015,2600813320,current,2.00,"ПАТ ""ПУМБ""",14282829,юридична особа
Опозиційний Блок,"Дніпропетровська область, Дніпро́, вулиця Янтарна, 40",79,2016-11-09,71,"Оренда будинків і приміщень та експлуатаційні витрати (прибирання, страхування орендованих будинків, охорона, сигналізація, ремонт, вивіз сміття, тощо)",Оренда нерухомості,369026,Дніпропетровська обласна організація,39750015,Дніпропетровська область,"Передплата за комунальні послуги за листопад 2016 року, згідно рах. № 311004 від 31.10.2016 року, у т.ч. ПДВ 20% = 547,86 грн.",2600813320,current,3287.16,"ТОВ ""Комунгосп-сервіс""",36208390,юридична особа
Опозиційний Блок,"Київ, вулиця Андріївська, 4",70,2016-11-09,TR.12591325.7 9028425,Банківські послуги,Інші витрати,369025,Дніпропетровська обласна організація,39750015,Дніпропетровська область,Договорное списание комиссии за платеж в пользу клиента др. банка с-но п. 2.14 тарифов ПУМБ по дог. 260854602 от 24/06/2015,2600813320,current,2.00,"ПАТ ""ПУМБ""",14282829,юридична особа
Опозиційний Блок,"Київ, вулиця Андріївська, 4",70,2016-11-09,TR.12591325.5 3315458,Банківські послуги,Інші витрати,369024,Дніпропетровська обласна організація,39750015,Дніпропетровська область,Договорное списание комиссии за платеж в пользу клиента др. банка с-но п. 2.14 тарифов ПУМБ по дог. 260854602 от 24/06/2015,2600813320,current,2.00,"ПАТ ""ПУМБ""",14282829,юридична особа
Опозиційний Блок,"Київ, вулиця Андріївська, 4",70,2016-11-09,TR.12591325.9 7254081,Банківські послуги,Інші витрати,369023,Дніпропетровська обласна організація,39750015,Дніпропетровська область,Договорное списание комиссии за платеж в пользу клиента др. банка с-но п. 2.14 тарифов ПУМБ по дог. 260854602 от 24/06/2015,2600813320,current,2.00,"ПАТ ""ПУМБ""",14282829,юридична особа
Опозиційний Блок,"Дніпропетровська область, Дніпро́, вулиця Високовольтна, 24",62,2016-11-09,67,Сплата ЄСВ,Податкові платежі,369022,Дніпропетровська обласна організація,39750015,Дніпропетровська область,"*"";""101"";""39260741"";""нарахуванн я ЄСВ 22,00% на зарплату за жовтень 2016 року, без ПДВ.",2600813320,current,660.00,ДПІ у Соборному районі м. Дніпро ГУ ДФС у Дніпропетровській області,39545734,юридична особа
Опозиційний Блок,"Київ, вулиця Андріївська, 4",70,2016-11-09,ТВ.12591325.7 6130282,Банківські послуги,Інші витрати,369021,Дніпропетровська обласна організація,39750015,Дніпропетровська область,Договорное списание комиссии за платеж в пользу клиента др. банка с-но п. 2.14 тарифов ПУМБ по дог. 260854602 от 24/06/2015,2600813320,current,2.00,"ПАТ ""ПУМБ""",14282829,юридична особа
Опозиційний Блок,"Дніпропетровська область, Дніпро́, площа Шевченка, 7",63,2016-11-09,68,Податок на доходи,Податкові платежі,369020,Дніпропетровська обласна організація,39750015,Дніпропетровська область,"НДФЛ 18% за жовтень 2016 року, без ПДВ",2600813320,current,540.00,УДКСУ у Соборному районі м. Дніпра,37989269,юридична особа
Опозиційний Блок,"Дніпропетровська область, Дніпро́, площа Шевченка, 7",61,2016-11-09,66,Військовий збір,Податкові платежі,369019,Дніпропетровська обласна організація,39750015,Дніпропетровська область,"Військовий збір за жовтень 2016 року, без ПДВ",2600813320,current,45.00,УДКСУ у Соборному районі м. Дніпра,37989269,юридична особа
Опозиційний Блок,"Київ, вулиця Андріївська, 4",70,2016-11-07,707.11364,Банківські послуги,Інші витрати,369985,Маріупольська міська організація,39905107,Донецька область,комісія,2600214189,current,100.00,"ПАТ ""ПУМБ""",14282829,юридична особа
Опозиційний Блок,"Київ, вулиця Андріївська, 4",70,2016-11-07,707.127,Банківські послуги,Інші витрати,369718,Володарська районна організація,39913123,Донецька область,комісія,2600614183,current,100.00,"ПАТ ""ПУМБ""",14282829,юридична особа
Опозиційний Блок,"Київ, провулок Євгена Гуцала, 3",76,2016-11-07,88,Послуги зв’язку,Послуги зв’язку,369269,Запорізька обласна організація,37526809,Запорізька область,Оплата за послуги звʼязку,2600612837,current,544.80,"ПАТ ""Фарлеп-інвест""",19199961,юридична особа
Опозиційний Блок,"Київ, провулок Євгена Гуцала, 3",76,2016-11-07,89,Послуги зв’язку,Послуги зв’язку,369268,Запорізька обласна організація,37526809,Запорізька область,Оплата за послуги звʼязку,2600612837,current,660.00,"ПАТ ""Фарлеп-інвест""",19199961,юридична особа
Опозиційний Блок,"Київ, вулиця Андріївська, 4",70,2016-11-07,ТІЇ.12591568.ІЗ КО.707.,Банківські послуги,Інші витрати,369018,Дніпропетровська обласна організація,39750015,Дніпропетровська область,Договорное списание комиссии за осуществление операций посредством СДО с-но тарифов ПУМБ ( 260854810 от 2015-06-24 )■,2600813320,current,100.00,"ПАТ ""ПУМБ""",14282829,юридична особа
Опозиційний Блок,"Дніпропетровська область, Дніпро́, вулиця Херсонська, 26",76,2016-11-04,107,Послуги зв’язку,Послуги зв’язку,369984,Маріупольська міська організація,39905107,Донецька область,Телекомунікаційні послуги,2600214189,current,180.00,"ПАТ ""Укртелеком""",21560766,юридична особа
Опозиційний Блок,"Київ, вулиця Андріївська, 4",70,2016-11-04,436398447,Банківські послуги,Інші витрати,369983,Маріупольська міська організація,39905107,Донецька область,комісія,2600214189,current,2.00,"ПАТ ""ПУМБ""",14282829,юридична особа
Опозиційний Блок,"Запорізька область, Запоріжжя, вулиця Сєдова, 16",58,2016-11-04,87,"Виготовлення друкованих матеріалів (плакатів, листівок, буклетів та інших агітаційних матеріалів)",Друкована агітація,369267,Запорізька обласна організація,37526809,Запорізька область,Оплата за друк газети,2600612837,current,17540.16,"ТОВ ВД ""Кераміст""",31122120,юридична особа
Опозиційний Блок,"Дніпропетровська область, Дніпро́, вулиця Курсантська, 24",70,2016-11-02,27417,Банківські послуги,Інші витрати,369539,Одеська обласна організація,39705145,Одеська область,розрахункове обслуговування рахунку,26007010349074,current,2.00,"ПАТ ""Банк Восток""",26237202,юридична особа
Опозиційний Блок,"Одеська область, Одеса, вулиця Канатна, 1",82,2016-11-02,477,"Гонорари, в тому числі за надані консультаційні послуги","Гонорари, в тому числі за надані консультаційні послуги",369538,Одеська обласна організація,39705145,Одеська область,за бухгалтерське обслуговування,26007010349074,current,2000.00,"ТОВ ""КФ ""Профіт фінанс""",39563816,юридична особа
Опозиційний Блок,"Одеська область, Одеса, Фонтанська дорога, 11",70,2016-11-02,1/282,Банківські послуги,Інші витрати,368873,Центральний офіс,37120464,Україна,"абонентська плата за використання системи ""Інтернет-банкінг """,26008001030506,current,115.00,"Київська філія АТ ""Місто банк""",26410346,юридична особа
Опозиційний Блок,"Одеська область, Одеса, Фонтанська дорога, 11",70,2016-11-02,ТД/01/29,Банківські послуги,Інші витрати,368872,Центральний офіс,37120464,Україна,Комісія банку,26008001030506,current,2.00,"Київська філія АТ ""Місто банк""",26410346,юридична особа
Опозиційний Блок,"Донецька область, Мангушський район, Мангуш, проспект Миру, 60",79,2016-11-01,9,"Оренда будинків і приміщень та експлуатаційні витрати (прибирання, страхування орендованих будинків, охорона, сигналізація, ремонт, вивіз сміття, тощо)",Оренда нерухомості,370078,Мангушська районна організація,39929882,Донецька область,Оренда приміщення,2600115288,current,300.00,Відділ культури і туризму Мангушської РДА,00183638,юридична особа
Опозиційний Блок,"Донецька область, Мангушський район, Мангуш, проспект Миру, 60",79,2016-11-01,8,"Оренда будинків і приміщень та експлуатаційні витрати (прибирання, страхування орендованих будинків, охорона, сигналізація, ремонт, вивіз сміття, тощо)",Оренда нерухомості,370077,Мангушська районна організація,39929882,Донецька область,Оренда приміщення,2600115288,current,300.00,Відділ культури і туризму Мангушської РДА,00183638,юридична особа
Опозиційний Блок,"Донецька область, Мангушський район, Мангуш, проспект Миру, 60",79,2016-11-01,7,"Оренда будинків і приміщень та експлуатаційні витрати (прибирання, страхування орендованих будинків, охорона, сигналізація, ремонт, вивіз сміття, тощо)",Оренда нерухомості,370076,Мангушська районна організація,39929882,Донецька область,Оренда приміщення,2600115288,current,300.00,Відділ культури і туризму Мангушської РДА,00183638,юридична особа
Опозиційний Блок,"Київ, вулиця Андріївська, 4",70,2016-11-01,45184994,Банківські послуги,Інші витрати,370075,Мангушська районна організація,39929882,Донецька область,Комісія банку,2600115288,current,10.00,"ПАТ ""ПУМБ""",14282829,юридична особа
Опозиційний Блок,"Київ, вулиця Михайла Грушевського, 1Д",70,2016-11-01,№ Л86ау4Ь71р,Банківські послуги,Інші витрати,369659,Чернігівська обласна організація,37418136,Чернігівська область,Комісія за обслуговування рахунку,26003051415812,current,100.00,"ПАТ КБ ""Приватбанк""",14360570,юридична особа
Опозиційний Блок,Київ,79,2016-11-01,41,"Оренда будинків і приміщень та експлуатаційні витрати (прибирання, страхування орендованих будинків, охорона, сигналізація, ремонт, вивіз сміття, тощо)",Оренда нерухомості,368794,Центральний офіс,37120464,Україна,Оренда приміщення,26008001030506,current,395214.00,Яковенко Світлана Анатоліївна,,фізична особа
Опозиційний Блок,"Полтавська область, Кременчук, Соборна вулиця, 23",70,2016-10-31,144357,Банківські послуги,Інші витрати,370098,Кременчуцька міська організація,39966510,Полтавська область,послуги банку,26001001039589,current,300.00,"Кременчуцька філія ПАТ ""Кристалбанк""",39544699,юридична особа
Опозиційний Блок,"Київ, вулиця Госпітальна, 12Г",70,2016-10-31,273421334,Банківські послуги,Інші витрати,370089,Покровська міська організація,39949060,Донецька область,Комісія банку,26005300845391,current,30.00,"АТ ""Ощадбанк""",00032129,юридична особа
Опозиційний Блок,"Київ, вулиця Госпітальна, 12Г",70,2016-10-31,262499765,Банківські послуги,Інші витрати,370087,Покровська міська організація,39949060,Донецька область,Комісія банку,26005300845391,current,10.00,"АТ ""Ощадбанк""",00032129,юридична особа
Опозиційний Блок,"Донецька область, Покровськ",84,2016-10-31,2,"Заробітна плата, премії","Заробітна плата, лікарняні, вагітності, відрядження, компенсації",370082,Покровська міська організація,39949060,Донецька область,"відшкодування коштів на сплату витрат, згідно авансовому звіту",26005300845391,current,330.00,Мацегора Дмитро Миколайович,,фізична особа
Опозиційний Блок,"Київ, вулиця Андріївська, 4",70,2016-10-31,106,Банківські послуги,Інші витрати,369982,Маріупольська міська організація,39905107,Донецька область,комісія,2600214189,current,42.70,"ПАТ ""ПУМБ""",14282829,юридична особа
Опозиційний Блок,"Донецька область, Маріуполь",84,2016-10-31,105,"Заробітна плата, премії","Заробітна плата, лікарняні, вагітності, відрядження, компенсації",369791,Маріупольська міська організація,39905107,Донецька область,Заробітна плата,2600214189,current,1006.25,Петренко Наталія Дмитрівна,,фізична особа
Опозиційний Блок,"Донецька область, Маріуполь",84,2016-10-31,105,"Заробітна плата, премії","Заробітна плата, лікарняні, вагітності, відрядження, компенсації",369790,Маріупольська міська організація,39905107,Донецька область,Заробітна плата,2600214189,current,665.76,Коновалова Євгенія Абрамівна,,фізична особа
Опозиційний Блок,"Донецька область, Маріуполь",84,2016-10-31,105,"Заробітна плата, премії","Заробітна плата, лікарняні, вагітності, відрядження, компенсації",369789,Маріупольська міська організація,39905107,Донецька область,Заробітна плата,2600214189,current,1851.50,Виборнова Наталя Михайлівна,,фізична особа
Опозиційний Блок,"Донецька область, Маріуполь",84,2016-10-31,105,"Заробітна плата, премії","Заробітна плата, лікарняні, вагітності, відрядження, компенсації",369788,Маріупольська міська організація,39905107,Донецька область,Заробітна плата,2600214189,current,2576.00,Нагорна Ірина Вікторівна,,фізична особа
Опозиційний Блок,"Київ, вулиця Госпітальна, 12Г",70,2016-10-31,63173877,Банківські послуги,Інші витрати,369593,Черкаська обласна організація,39880926,Черкаська область,Плата за обслуговування тарифного пакету за січень 2016 р.,26002301144523,current,99.00,"АТ ""Ощадбанк""",00032129,юридична особа
Опозиційний Блок,"Дніпропетровська область, Дніпро́, вулиця Курсантська, 24",70,2016-10-31,374723,Банківські послуги,Інші витрати,369537,Одеська обласна організація,39705145,Одеська область,розрахункове обслуговування рахунку,26007010349074,current,2.00,"ПАТ ""Банк Восток""",26237202,юридична особа
Опозиційний Блок,"Одеська область, Одеса, вулиця Канатна, 1",82,2016-10-31,476,"Гонорари, в тому числі за надані консультаційні послуги","Гонорари, в тому числі за надані консультаційні послуги",369536,Одеська обласна організація,39705145,Одеська область,за бухгалтерське обслуговування,26007010349074,current,2000.00,"ТОВ ""КФ ""Профіт фінанс""",39563816,юридична особа
Опозиційний Блок,"Дніпропетровська область, Дніпро́, вулиця Курсантська, 24",70,2016-10-31,352052,Банківські послуги,Інші витрати,369535,Одеська обласна організація,39705145,Одеська область,розрахункове обслуговування рахунку,26007010349074,current,100.00,"ПАТ ""Банк Восток""",26237202,юридична особа
Опозиційний Блок,"Одеська область, Одеса, вулиця Краснова, 6/1",70,2016-10-31,3,Банківські послуги,Інші витрати,369403,Кіровоградська обласна організація,39662568,Кіровоградська область,Розрахункове касове обслуговування,26000010007869,current,75.00,"АБ ""Південний""",20953647,юридична особа
Опозиційний Блок,"Одеська область, Одеса, вулиця Краснова, 6/1",70,2016-10-31,2,Банківські послуги,Інші витрати,369402,Кіровоградська обласна організація,39662568,Кіровоградська область,Розрахункове касове обслуговування,26000010007869,current,50.00,"АБ ""Південний""",20953647,юридична особа
Опозиційний Блок,"Одеська область, Одеса, вулиця Краснова, 6/1",70,2016-10-31,1,Банківські послуги,Інші витрати,369401,Кіровоградська обласна організація,39662568,Кіровоградська область,Розрахункове касове обслуговування,26000010007869,current,6.00,"АБ ""Південний""",20953647,юридична особа
Опозиційний Блок,"Одеська область, Одеса, Фонтанська дорога, 11",70,2016-10-31,ТД/01/32,Банківські послуги,Інші витрати,368871,Центральний офіс,37120464,Україна,"абонентська плата за використання системи ""Інтернет-банкінг """,26008001030506,current,2.00,"Київська філія АТ ""Місто банк""",26410346,юридична особа
Опозиційний Блок,"Дніпропетровська область, Дніпро́, вулиця Курсантська, 24",70,2016-10-30,362517,Банківські послуги,Інші витрати,369540,Одеська обласна організація,39705145,Одеська область,розрахункове обслуговування рахунку,26007010349074,current,100.00,"ПАТ ""Банк Восток""",26237202,юридична особа
Опозиційний Блок,"Київ, вулиця Андріївська, 4",70,2016-10-28,707296678,Банківські послуги,Інші витрати,369981,Маріупольська міська організація,39905107,Донецька область,комісія,2600214189,current,0.85,"ПАТ ""ПУМБ""",14282829,юридична особа
Опозиційний Блок,,74,2016-10-28,чек 00087812,"Придбання канцтоварів, паперу, інших предметів і матеріалів, а також госп товари",Придбання канцтоварів та госп. товарів,369980,Маріупольська міська організація,39905107,Донецька область,папір для прінтера,2600214189,current,81.49,Прилипко Віктор Іванович,,фізична особа
Опозиційний Блок,"Донецька область, Маріуполь, вулиця Артема, 33",75,2016-10-28,чек 50379696,Поштові послуги та поширення друкованих матеріалів,Поштові послуги та поширення друкованих матеріалів,369979,Маріупольська міська організація,39905107,Донецька область,доставка документів,2600214189,current,54.00,"ТОВ ""Пост-фінанс""",38324133,юридична особа
Опозиційний Блок,Київ,79,2016-10-28,39,"Оренда будинків і приміщень та експлуатаційні витрати (прибирання, страхування орендованих будинків, охорона, сигналізація, ремонт, вивіз сміття, тощо)",Оренда нерухомості,368793,Центральний офіс,37120464,Україна,Оренда приміщення,26008001030506,current,394056.00,Яковенко Світлана Анатоліївна,,фізична особа
Опозиційний Блок,"Одеська область, Одеса, Фонтанська дорога, 11",70,2016-10-27,10/282,Банківські послуги,Інші витрати,369326,Київська обласна організація,39756467,Київська область,"Комісія за надання довідки з встановлення обігу коштів за пе ріод до шести місяців, згідно п.1.4.2 тарифів банку. Без ПДВ",26006001030575,current,70.00,"Київська філія АТ ""Місто банк""",26410346,юридична особа
Опозиційний Блок,"Запорізька область, Запоріжжя, вулиця Сєдова, 16",58,2016-10-27,86,"Виготовлення друкованих матеріалів (плакатів, листівок, буклетів та інших агітаційних матеріалів)",Друкована агітація,369266,Запорізька обласна організація,37526809,Запорізька область,Оплата за друк газети,2600612837,current,17540.16,"ТОВ ВД ""Кераміст""",31122120,юридична особа
Опозиційний Блок,"Київ, вулиця Андріївська, 4",70,2016-10-26,,Банківські послуги,Інші витрати,369445,Миколаївська обласна організація,39751851,Миколаївська область,послуги банка,2600313370,current,49.68,"ПАТ ""ПУМБ""",14282829,юридична особа
Опозиційний Блок,"Київ, вулиця Андріївська, 4",70,2016-10-25,767100681,Банківські послуги,Інші витрати,369978,Маріупольська міська організація,39905107,Донецька область,комісія,2600214189,current,0.85,"ПАТ ""ПУМБ""",14282829,юридична особа
Опозиційний Блок,"Дніпропетровська область, Дніпро́, проспект Олександра Поля, 104А",74,2016-10-25,чек 00231697,"Придбання канцтоварів, паперу, інших предметів і матеріалів, а також госп товари",Придбання канцтоварів та госп. товарів,369977,Маріупольська міська організація,39905107,Донецька область,"миючі засоби,серветки",2600214189,current,263.90,"ТОВ ""РУШ""",32007740,юридична особа
Опозиційний Блок,"Одеська область, Одеса, Фонтанська дорога, 11",70,2016-10-25,14,Банківські послуги,Інші витрати,369325,Київська обласна організація,39756467,Київська область,"Абонентська плата за використання системи ""Интернет-банкинг "" за 10.2016р. згідно тарифів банку.Без ПДВ.",26006001030575,current,115.00,"Київська філія АТ ""Місто банк""",26410346,юридична особа
Опозиційний Блок,"Київ, провулок Євгена Гуцала, 3",76,2016-10-25,85,Послуги зв’язку,Послуги зв’язку,369265,Запорізька обласна організація,37526809,Запорізька область,Оплата за послуги звʼязку,2600612837,current,46.80,"ПАТ ""Фарлеп-інвест""",19199961,юридична особа
Опозиційний Блок,"Одеська область, Одеса, Фонтанська дорога, 11",70,2016-10-25,45,Банківські послуги,Інші витрати,368870,Центральний офіс,37120464,Україна,,26008001030506,current,115.00,"Київська філія АТ ""Місто банк""",26410346,юридична особа
Опозиційний Блок,"Київ, вулиця Андріївська, 4",70,2016-10-24,582399594,Банківські послуги,Інші витрати,369976,Маріупольська міська організація,39905107,Донецька область,комісія,2600214189,current,2.00,"ПАТ ""ПУМБ""",14282829,юридична особа
Опозиційний Блок,"Київ, вулиця Ревуцького, 46",76,2016-10-24,101,Послуги зв’язку,Послуги зв’язку,369975,Маріупольська міська організація,39905107,Донецька область,послуги інтернет,2600214189,current,256.00,"ТОВ ""ТВП Формат""",40196287,юридична особа
Опозиційний Блок,"Одеська область, Одеса, Фонтанська дорога, 11",70,2016-10-21,6/284,Банківські послуги,Інші витрати,368869,Центральний офіс,37120464,Україна,"Комісія банку абонентська плата за використання системи ""Інтернет-банкінг """,26008001030506,current,25.00,"Київська філія АТ ""Місто банк""",26410346,юридична особа
Опозиційний Блок,"Київ, вулиця Андріївська, 4",70,2016-10-20,305345639,Банківські послуги,Інші витрати,369974,Маріупольська міська організація,39905107,Донецька область,комісія,2600214189,current,0.85,"ПАТ ""ПУМБ""",14282829,юридична особа
Опозиційний Блок,"Київ, вулиця Андріївська, 4",70,2016-10-20,997307915,Банківські послуги,Інші витрати,369973,Маріупольська міська організація,39905107,Донецька область,комісія,2600214189,current,2.00,"ПАТ ""ПУМБ""",14282829,юридична особа
Опозиційний Блок,"Донецька область, Маріуполь, вулиця Соборна, 7",79,2016-10-20,99,"Оренда будинків і приміщень та експлуатаційні витрати (прибирання, страхування орендованих будинків, охорона, сигналізація, ремонт, вивіз сміття, тощо)",Оренда нерухомості,369972,Маріупольська міська організація,39905107,Донецька область,За холодну воду,2600214189,current,38.84,"КП ""мвувкг""",03361508,юридична особа
Опозиційний Блок,"Донецька область, Маріуполь, вулиця Артема, 33",75,2016-10-20,чек 50379696,Поштові послуги та поширення друкованих матеріалів,Поштові послуги та поширення друкованих матеріалів,369971,Маріупольська міська організація,39905107,Донецька область,доставка документів,2600214189,current,75.00,"ТОВ ""Пост-фінанс""",38324133,юридична особа
Опозиційний Блок,"Дніпропетровська область, Дніпро́, вулиця Курсантська, 24",70,2016-10-20,/242834,Банківські послуги,Інші витрати,369534,Одеська обласна організація,39705145,Одеська область,сплата за надання довідки,26007010349074,current,75.00,"ПАТ ""Банк Восток""",26237202,юридична особа
Опозиційний Блок,"Закарпатська область, Ужгород, вулиця Гойди, 10",70,2016-10-20,171142,Банківські послуги,Інші витрати,369161,Закарпатська обласна організація,38222036,Закарпатська область,Комісія за розрахунково-касове обслуговування,26003016000800,current,75.00,"ПАТ ""Комінвестбанк""",19355562,юридична особа
Опозиційний Блок,"Київ, вулиця Андріївська, 4",70,2016-10-17,813394978,Банківські послуги,Інші витрати,369970,Маріупольська міська організація,39905107,Донецька область,комісія,2600214189,current,2.00,"ПАТ ""ПУМБ""",14282829,юридична особа
Опозиційний Блок,"Донецька область, Маріуполь, вулиця Войнич, 2",79,2016-10-17,98,"Оренда будинків і приміщень та експлуатаційні витрати (прибирання, страхування орендованих будинків, охорона, сигналізація, ремонт, вивіз сміття, тощо)",Оренда нерухомості,369969,Маріупольська міська організація,39905107,Донецька область,за електроенергію,2600214189,current,2363.00,"ПАТ ""ДТЕК Донецькобленерго""",00131268,юридична особа
Опозиційний Блок,"Київ, вулиця Андріївська, 4",70,2016-10-17,96,Банківські послуги,Інші витрати,369968,Маріупольська міська організація,39905107,Донецька область,комісія,2600214189,current,42.70,"ПАТ ""ПУМБ""",14282829,юридична особа
Опозиційний Блок,"Донецька область, Маріуполь, проспект Миру, 68",61,2016-10-17,94,Військовий збір,Податкові платежі,369967,Маріупольська міська організація,39905107,Донецька область,"Військовий збір 1,5%",2600214189,current,225.00,УДКСУ у м. Маріуполі Донецької області,37989721,юридична особа
Опозиційний Блок,"Донецька область, Маріуполь, проспект Миру, 68",63,2016-10-17,95,Податок на доходи,Податкові платежі,369966,Маріупольська міська організація,39905107,Донецька область,ПДФО,2600214189,current,2575.98,УДКСУ у м. Маріуполі Донецької області,37989721,юридична особа
Опозиційний Блок,"Донецька область, Маріуполь, вулиця 130-ї Таганрозької Дивізії, 114",62,2016-10-17,93,Сплата ЄСВ,Податкові платежі,369965,Маріупольська міська організація,39905107,Донецька область,ЄСВ 22%,2600214189,current,3300.00,Маріупольська ОДПІ,39883670,юридична особа
Опозиційний Блок,"Київ, вулиця Андріївська, 4",70,2016-10-17,323960861,Банківські послуги,Інші витрати,369964,Маріупольська міська організація,39905107,Донецька область,комісія,2600214189,current,2.00,"ПАТ ""ПУМБ""",14282829,юридична особа
Опозиційний Блок,"Київ, вулиця Андріївська, 4",70,2016-10-17,547654902,Банківські послуги,Інші витрати,369963,Маріупольська міська організація,39905107,Донецька область,комісія,2600214189,current,2.00,"ПАТ ""ПУМБ""",14282829,юридична особа
Опозиційний Блок,"Київ, вулиця Андріївська, 4",70,2016-10-17,2.5449743,Банківські послуги,Інші витрати,369962,Маріупольська міська організація,39905107,Донецька область,комісія,2600214189,current,2.00,"ПАТ ""ПУМБ""",14282829,юридична особа
Опозиційний Блок,"Київ, вулиця Андріївська, 4",70,2016-10-17,792867019,Банківські послуги,Інші витрати,369961,Маріупольська міська організація,39905107,Донецька область,комісія,2600214189,current,39.10,"ПАТ ""ПУМБ""",14282829,юридична особа
Опозиційний Блок,"Донецька область, Маріуполь",84,2016-10-17,97,"Заробітна плата, премії","Заробітна плата, лікарняні, вагітності, відрядження, компенсації",369787,Маріупольська міська організація,39905107,Донецька область,Заробітна плата,2600214189,current,665.76,Коновалова Євгенія Абрамівна,,фізична особа
Опозиційний Блок,"Донецька область, Маріуполь",84,2016-10-17,97,"Заробітна плата, премії","Заробітна плата, лікарняні, вагітності, відрядження, компенсації",369786,Маріупольська міська організація,39905107,Донецька область,Заробітна плата,2600214189,current,1851.50,Виборнова Наталя Михайлівна,,фізична особа
Опозиційний Блок,"Донецька область, Маріуполь",84,2016-10-17,97,"Заробітна плата, премії","Заробітна плата, лікарняні, вагітності, відрядження, компенсації",369785,Маріупольська міська організація,39905107,Донецька область,Заробітна плата,2600214189,current,1006.25,Петренко Наталія Дмитрівна,,фізична особа
Опозиційний Блок,"Донецька область, Маріуполь",84,2016-10-17,97,"Заробітна плата, премії","Заробітна плата, лікарняні, вагітності, відрядження, компенсації",369784,Маріупольська міська організація,39905107,Донецька область,Заробітна плата,2600214189,current,2576.00,Нагорна Ірина Вікторівна,,фізична особа
Опозиційний Блок,"Київ, вулиця Андріївська, 4",70,2016-10-13,1016.6555,Банківські послуги,Інші витрати,370074,Мангушська районна організація,39929882,Донецька область,Комісія банку,2600115288,current,120.00,"ПАТ ""ПУМБ""",14282829,юридична особа
Опозиційний Блок,"Київ, вулиця Андріївська, 4",70,2016-10-13,1016.103,Банківські послуги,Інші витрати,369576,Херсонська обласна організація,37542218,Херсонська область,договірне списання сум комісії,2600915358,current,120.00,"ПАТ ""ПУМБ""",14282829,юридична особа
Опозиційний Блок,"Запорізька область, Запоріжжя, Південне шосе, 72",79,2016-10-13,81,"Оренда будинків і приміщень та експлуатаційні витрати (прибирання, страхування орендованих будинків, охорона, сигналізація, ремонт, вивіз сміття, тощо)",Оренда нерухомості,369264,Запорізька обласна організація,37526809,Запорізька область,Оплата за комунальні послуги,2600612837,current,11760.53,"ПАТ ""Запоріжсталь""",00191230,юридична особа
Опозиційний Блок,"Запорізька область, Запоріжжя, Південне шосе, 72",79,2016-10-13,82,"Оренда будинків і приміщень та експлуатаційні витрати (прибирання, страхування орендованих будинків, охорона, сигналізація, ремонт, вивіз сміття, тощо)",Оренда нерухомості,369263,Запорізька обласна організація,37526809,Запорізька область,Оплата за комунальні послуги,2600612837,current,6199.57,"ПАТ ""Запоріжсталь""",00191230,юридична особа
Опозиційний Блок,"Запорізька область, Запоріжжя, Південне шосе, 72",79,2016-10-13,83,"Оренда будинків і приміщень та експлуатаційні витрати (прибирання, страхування орендованих будинків, охорона, сигналізація, ремонт, вивіз сміття, тощо)",Оренда нерухомості,369262,Запорізька обласна організація,37526809,Запорізька область,Оплата за оренду приміщення,2600612837,current,9201.60,"ПАТ ""Запоріжсталь""",00191230,юридична особа
Опозиційний Блок,"Запорізька область, Запоріжжя, Південне шосе, 72",79,2016-10-13,84,"Оренда будинків і приміщень та експлуатаційні витрати (прибирання, страхування орендованих будинків, охорона, сигналізація, ремонт, вивіз сміття, тощо)",Оренда нерухомості,369261,Запорізька обласна організація,37526809,Запорізька область,Оплата за оренду приміщення,2600612837,current,9193.08,"ПАТ ""Запоріжсталь""",00191230,юридична особа
Опозиційний Блок,"Київ, вулиця Андріївська, 4",70,2016-10-13,ПакетыЮ 16.2978,Банківські послуги,Інші витрати,369260,Запорізька обласна організація,37526809,Запорізька область,Комісія банку,2600612837,current,120.00,"ПАТ ""ПУМБ""",14282829,юридична особа
Опозиційний Блок,"Запорізька область, Запоріжжя, вулиця Сєдова, 16",58,2016-10-13,78,"Виготовлення друкованих матеріалів (плакатів, листівок, буклетів та інших агітаційних матеріалів)",Друкована агітація,369259,Запорізька обласна організація,37526809,Запорізька область,Оплата за друк газети,2600612837,current,17540.16,"ТОВ ВД ""Кераміст""",31122120,юридична особа
Опозиційний Блок,"м. Запоріжжя, вул. Чуйкова, буд. 20, кв. 158",79,2016-10-13,80,"Оренда будинків і приміщень та експлуатаційні витрати (прибирання, страхування орендованих будинків, охорона, сигналізація, ремонт, вивіз сміття, тощо)",Оренда нерухомості,369191,Запорізька обласна організація,37526809,Запорізька область,Оплата за комунальні послуги,2600612837,current,384.76,Черкашина Л І,2046524805,фізична особа
Опозиційний Блок,"м. Запоріжжя, вул. Чуйкова, буд. 20, кв. 158",79,2016-10-13,79,"Оренда будинків і приміщень та експлуатаційні витрати (прибирання, страхування орендованих будинків, охорона, сигналізація, ремонт, вивіз сміття, тощо)",Оренда нерухомості,369190,Запорізька обласна організація,37526809,Запорізька область,Оплата за оренду приміщення,2600612837,current,2500.00,Черкашина Л І,2046524805,фізична особа
Опозиційний Блок,"Донецька область, Маріуполь, вулиця Італійська, 84",79,2016-10-11,92,"Оренда будинків і приміщень та експлуатаційні витрати (прибирання, страхування орендованих будинків, охорона, сигналізація, ремонт, вивіз сміття, тощо)",Оренда нерухомості,369960,Маріупольська міська організація,39905107,Донецька область,Послуги охорони,2600214189,current,423.73,Маріупольський міжрайонний відділ управління поліції охорони в Донецькій області,40109084,юридична особа
Опозиційний Блок,"Донецька область, Маріуполь, вулиця Італійська, 84",79,2016-10-11,91,"Оренда будинків і приміщень та експлуатаційні витрати (прибирання, страхування орендованих будинків, охорона, сигналізація, ремонт, вивіз сміття, тощо)",Оренда нерухомості,369959,Маріупольська міська організація,39905107,Донецька область,Послуги охорони,2600214189,current,83.63,Маріупольський міжрайонний відділ управління поліції охорони в Донецькій області,40109084,юридична особа
Опозиційний Блок,"Київ, вулиця Андріївська, 4",70,2016-10-11,558227007,Банківські послуги,Інші витрати,369958,Маріупольська міська організація,39905107,Донецька область,комісія,2600214189,current,0.85,"ПАТ ""ПУМБ""",14282829,юридична особа
Опозиційний Блок,"Київ, вулиця Андріївська, 4",70,2016-10-11,155362446,Банківські послуги,Інші витрати,369957,Маріупольська міська організація,39905107,Донецька область,комісія,2600214189,current,0.85,"ПАТ ""ПУМБ""",14282829,юридична особа
Опозиційний Блок,"Київ, вулиця Госпітальна, 12Г",70,2016-10-11,258975888,Банківські послуги,Інші витрати,369725,Марʼїнська районна організація,39904009,Донецька область,за надання довідки,26001300831495,current,50.00,"АТ ""Ощадбанк""",00032129,юридична особа
Опозиційний Блок,"Київ, провулок Євгена Гуцала, 3",76,2016-10-10,76,Послуги зв’язку,Послуги зв’язку,369258,Запорізька обласна організація,37526809,Запорізька область,Оплата за послуги звʼязку,2600612837,current,600.00,"ПАТ ""Фарлеп-інвест""",19199961,юридична особа
Опозиційний Блок,"Київ, провулок Євгена Гуцала, 3",76,2016-10-10,77,Послуги зв’язку,Послуги зв’язку,369257,Запорізька обласна організація,37526809,Запорізька область,Оплата за послуги звʼязку,2600612837,current,498.00,"ПАТ ""Фарлеп-інвест""",19199961,юридична особа
Опозиційний Блок,"Київ, вулиця Андріївська, 4",70,2016-10-10,64,Банківські послуги,Інші витрати,369017,Дніпропетровська обласна організація,39750015,Дніпропетровська область,"Комісія за зарахування банком коштів на КР співробітн. зг. заявки № 10 від 10.10.09.2016р, дог.N9 260899816 від 07.07.2015 р. (12,08 грн), без ПДВ7, без ПДВ",2600813320,current,12.08,"ПАТ ""ПУМБ""",14282829,юридична особа
Опозиційний Блок,"Київ, вулиця Андріївська, 4",70,2016-10-10,ТГС12591325.8 8660214,Банківські послуги,Інші витрати,369016,Дніпропетровська обласна організація,39750015,Дніпропетровська область,Договорное списание комиссии за платеж в пользу клиента др. банка с-но п. 2.14 тарифов ПУМБ по дог. 260854602 от 24/06/2015,2600813320,current,2.00,"ПАТ ""ПУМБ""",14282829,юридична особа
Опозиційний Блок,"Київ, вулиця Андріївська, 4",70,2016-10-10,TR.12591325.2 6525349,Банківські послуги,Інші витрати,369015,Дніпропетровська обласна організація,39750015,Дніпропетровська область,Договорное списание комиссии за платеж в пользу клиента др. банка с-но п. 2.14 тарифов ПУМБ по дог. 260854602 от 24/06/2015,2600813320,current,2.00,"ПАТ ""ПУМБ""",14282829,юридична особа
Опозиційний Блок,"Дніпропетровська область, Дніпро́, вулиця Янтарна, 40",79,2016-10-10,62,"Оренда будинків і приміщень та експлуатаційні витрати (прибирання, страхування орендованих будинків, охорона, сигналізація, ремонт, вивіз сміття, тощо)",Оренда нерухомості,369014,Дніпропетровська обласна організація,39750015,Дніпропетровська область,"Передплата за комунальні послуги за жовтень 2016 року, згідно рах. № 260904 від 26.09.2016 року, у т.ч. ПДВ 20% = 916,67 грн.",2600813320,current,5500.00,"ТОВ ""Комунгосп-сервіс""",36208390,юридична особа
Опозиційний Блок,"Київ, вулиця Андріївська, 4",70,2016-10-10,TR.12591325.4 7095304,Банківські послуги,Інші витрати,369013,Дніпропетровська обласна організація,39750015,Дніпропетровська область,Договорное списание комиссии за платеж в пользу клиента др. банка с-но п. 2.14 тарифов ПУМБ по дог. 260854602 от 24/06/2015,2600813320,current,2.00,"ПАТ ""ПУМБ""",14282829,юридична особа
Опозиційний Блок,"Дніпропетровська область, Дніпро́, вулиця Янтарна, 40",79,2016-10-10,63,"Оренда будинків і приміщень та експлуатаційні витрати (прибирання, страхування орендованих будинків, охорона, сигналізація, ремонт, вивіз сміття, тощо)",Оренда нерухомості,369012,Дніпропетровська обласна організація,39750015,Дніпропетровська область,"Передплата за комунальні послуги за жовтень 2016 року, згідно рах. № 260904 від 26.09.2016 року, у т.ч. ПДВ 20% = 875,99 грн.",2600813320,current,5255.91,"ТОВ ""Комунгосп-сервіс""",36208390,юридична особа
Опозиційний Блок,"Дніпропетровська область, Дніпро́, вулиця Янтарна, 40",79,2016-10-10,61,"Оренда будинків і приміщень та експлуатаційні витрати (прибирання, страхування орендованих будинків, охорона, сигналізація, ремонт, вивіз сміття, тощо)",Оренда нерухомості,369011,Дніпропетровська обласна організація,39750015,Дніпропетровська область,"Передплата за комунальні послуги за жовтень 2016 року, згідно рах. № 260904 від 26.09.2016 року, у т.ч. ПДВ 20% = 1 566,67 грн.",2600813320,current,9400.00,"ТОВ ""Комунгосп-сервіс""",36208390,юридична особа
Опозиційний Блок,"Київ, вулиця Андріївська, 4",70,2016-10-10,"TR.12591325,4 9882900",Банківські послуги,Інші витрати,369010,Дніпропетровська обласна організація,39750015,Дніпропетровська область,Договорное списание комиссии за платеж в пользу клиента др. банка с-но п. 2.14 тарифов ПУМБ по дог. 260854602 от 24/06/2015,2600813320,current,2.00,"ПАТ ""ПУМБ""",14282829,юридична особа
Опозиційний Блок,"Дніпропетровська область, Дніпро́, вулиця Високовольтна, 24",62,2016-10-10,58,Сплата ЄСВ,Податкові платежі,369009,Дніпропетровська обласна організація,39750015,Дніпропетровська область,"*"";""101"";""39260741"";""нарахуванн я ЄСВ 22,00% на зарплату за вересень 2016 року , без ПДВ",2600813320,current,660.00,ДПІ у Соборному районі м. Дніпро ГУ ДФС у Дніпропетровській області,39545734,юридична особа
Опозиційний Блок,"Київ, вулиця Андріївська, 4",70,2016-10-10,ТК.12591325.7 1753329,Банківські послуги,Інші витрати,369008,Дніпропетровська обласна організація,39750015,Дніпропетровська область,Договорное списание комиссии за платеж в пользу клиента др. банка с-но п. 2.14 тарифов ПУМБ по дог. 260854602 от 24/06/2015,2600813320,current,2.00,"ПАТ ""ПУМБ""",14282829,юридична особа
Опозиційний Блок,"Київ, вулиця Андріївська, 4",70,2016-10-10,ТК.12591325.8 2535811,Банківські послуги,Інші витрати,369007,Дніпропетровська обласна організація,39750015,Дніпропетровська область,Договорное списание комиссии за платеж в пользу клиента др. банка с-но п. 2.14 тарифов ПУМБ по дог. 260854602 от 24/06/2015,2600813320,current,2.00,"ПАТ ""ПУМБ""",14282829,юридична особа
Опозиційний Блок,"Дніпропетровська область, Дніпро́, площа Шевченка, 7",61,2016-10-10,59,Військовий збір,Податкові платежі,369006,Дніпропетровська обласна організація,39750015,Дніпропетровська область,"Військовий збір за вересень 2016 року, без ПДВ",2600813320,current,45.00,УДКСУ у Соборному районі м. Дніпра,37989269,юридична особа
Опозиційний Блок,"Дніпропетровська область, Дніпро́, площа Шевченка, 7",63,2016-10-10,60,Податок на доходи,Податкові платежі,369005,Дніпропетровська обласна організація,39750015,Дніпропетровська область,"НДФЛ 18% за вересень 2016 року, без ПДВ",2600813320,current,540.00,УДКСУ у Соборному районі м. Дніпра,37989269,юридична особа
Опозиційний Блок,"Дніпропетровська область, Дніпро́",84,2016-10-10,п/д 65,"Заробітна плата, премії","Заробітна плата, лікарняні, вагітності, відрядження, компенсації",368904,Дніпропетровська обласна організація,39750015,Дніпропетровська область,"Перерахування заробітної плати за вересень 2016 року {2415,00 грн) згідно дог. № 260899816від 2015-07-07 року та реєстру № 10 від 2016-10-10 р, без ПДВ",2600813320,current,2415.00,Гончаренко Наталія Вікторівна,,фізична особа
Опозиційний Блок,"Кіровоградська область, Кропивницький, Садова вулиця, 88",58,2016-10-07,2,"Виготовлення друкованих матеріалів (плакатів, листівок, буклетів та інших агітаційних матеріалів)",Друкована агітація,369400,Кіровоградська обласна організація,39662568,Кіровоградська область,Поліграфічна послуга зг.рах.№1558 від 05.10.2016р.,26000010007869,current,2880.00,"ТОВ ""Поліграф-Центр""",23696346,юридична особа
Опозиційний Блок,"Київ, вулиця Кирилівська, 102",43,2016-10-07,4,Інші витрати,Інші витрати,369399,Кіровоградська обласна організація,39662568,Кіровоградська область,"Сплата за обробку даних для видачі сертифікатів ЕЦП та постачання КП ""Freedom""зг.рах.ТКВП02 1138 від 29.09.16р.",26000010007869,current,289.00,"ТОВ ""Центр сертифікації ключів ""Україна""",36865753,юридична особа
Опозиційний Блок,м. Кропивницький,72,2016-10-07,5,"Придбання, ремонт офісної техніки та програмного забезпечення (Бухгалтерські програми, Ліга.закон, домени)",Придбання офісної техніки та програмного забезпечення,369332,Кіровоградська обласна організація,39662568,Кіровоградська область,"Оплата рахю№ 5862 від 29.09.16р. Пакети оновлення МЕДок, інформаційні послуги.",26000010007869,current,1510.00,Кириллов Сергій Вікторович,,фізична особа
Опозиційний Блок,"Донецька область, Маріуполь, вулиця Артема, 33",75,2016-10-06,чек 47890057,Поштові послуги та поширення друкованих матеріалів,Поштові послуги та поширення друкованих матеріалів,369956,Маріупольська міська організація,39905107,Донецька область,доставка документів,2600214189,current,47.00,"ТОВ ""Пост-фінанс""",38324133,юридична особа
Опозиційний Блок,"Київ, вулиця Андріївська, 4",70,2016-10-06,158996186,Банківські послуги,Інші витрати,369955,Маріупольська міська організація,39905107,Донецька область,комісія,2600214189,current,0.85,"ПАТ ""ПУМБ""",14282829,юридична особа
Опозиційний Блок,"Донецька область, Маріуполь",83,2016-10-06,90,"Виплати працівникам (не зарплата): лікарняні, вагітності, відрядження, компенсації ","Заробітна плата, лікарняні, вагітності, відрядження, компенсації",369808,Маріупольська міська організація,39905107,Донецька область,"добові,відшкодування вартості проїзду",2600214189,current,1625.00,Нагорна Ірина Вікторівна,,фізична особа
Опозиційний Блок,"Київ, вулиця Борисоглібська, 5А",70,2016-10-06,2541147/16,Банківські послуги,Інші витрати,369425,Київська міська організація,37311846,Київ,За розрахупмни обслуговування,26008010263,current,150.00,"АБ ""Кліринговий дім""",21665382,юридична особа
Опозиційний Блок,"Закарпатська область, Ужгород, вулиця Гойди, 10",70,2016-10-06,171142,Банківські послуги,Інші витрати,369160,Закарпатська обласна організація,38222036,Закарпатська область,Комісія за розрахунково-касове обслуговування,26003016000800,current,2.50,"ПАТ ""Комінвестбанк""",19355562,юридична особа
Опозиційний Блок,"Закарпатська область, Ужгород, вулиця Другетів, 60",76,2016-10-06,111,Послуги зв’язку,Послуги зв’язку,369159,Закарпатська обласна організація,38222036,Закарпатська область,Абонплата за послуги інтернетз-но рах №0014452 від 31.08.16 Без ПДВ,26003016000800,current,1074.00,"ТОВ ""Корсі""",22104527,юридична особа
Опозиційний Блок,"Київ, вулиця Андріївська, 4",70,2016-10-05,707.11866,Банківські послуги,Інші витрати,369954,Маріупольська міська організація,39905107,Донецька область,комісія,2600214189,current,55.00,"ПАТ ""ПУМБ""",14282829,юридична особа
Опозиційний Блок,"Київ, вулиця Андріївська, 4",70,2016-10-05,707.119,Банківські послуги,Інші витрати,369717,Володарська районна організація,39913123,Донецька область,комісія,2600614183,current,55.00,"ПАТ ""ПУМБ""",14282829,юридична особа
Опозиційний Блок,"Чернігівська область, Чернігів",79,2016-10-05,27,"Оренда будинків і приміщень та експлуатаційні витрати (прибирання, страхування орендованих будинків, охорона, сигналізація, ремонт, вивіз сміття, тощо)",Оренда нерухомості,369658,Чернігівська обласна організація,37418136,Чернігівська область,Орендна плата,26003051415812,current,4005.00,Чернігівська Міськспоживспілка,40268466,юридична особа
Опозиційний Блок,"Київ, вулиця Борисоглібська, 5А",70,2016-10-05,2416071/16,Банківські послуги,Інші витрати,369424,Київська міська організація,37311846,Київ,За розрахупмни обслуговування,26008010263,current,10.00,"АБ ""Кліринговий дім""",21665382,юридична особа
Опозиційний Блок,"Київ, вулиця Андріївська, 4",70,2016-10-05,TR.12591.568.ІЗКО.707.,Банківські послуги,Інші витрати,369004,Дніпропетровська обласна організація,39750015,Дніпропетровська область,Договорное списзниє комиссии за осуществление операций посредством СДО с-но тарифов ПУМБ { 260854810 от 24/06/2015 )•,2600813320,current,55.00,"ПАТ ""ПУМБ""",14282829,юридична особа
Опозиційний Блок,"Дніпропетровська область, Дніпро́, вулиця Херсонська, 26",76,2016-10-04,89,Послуги зв’язку,Послуги зв’язку,369953,Маріупольська міська організація,39905107,Донецька область,Телекомунікаційні послуги,2600214189,current,10.00,"ПАТ ""Укртелеком""",21560766,юридична особа
Опозиційний Блок,"Київ, вулиця Андріївська, 4",70,2016-10-04,"ТЯ.12858232,93 3881094",Банківські послуги,Інші витрати,369952,Маріупольська міська організація,39905107,Донецька область,комісія,2600214189,current,2.00,"ПАТ ""ПУМБ""",14282829,юридична особа
Опозиційний Блок,Київ,51,2016-10-04,1,Оплата ефірного часу на ТБ,Телереклама,369423,Київська міська організація,37311846,Київ,За розміщення рек намного відеоматеріану,26008010263,current,11520.00,"КП ТРК ""Київ""",25195855,юридична особа
Опозиційний Блок,"Дніпропетровська область, Дніпро́, вулиця Курсантська, 24",70,2016-10-03,18891,Банківські послуги,Інші витрати,369533,Одеська обласна організація,39705145,Одеська область,розрахункове обслуговування рахунку,26007010349074,current,4.00,"ПАТ ""Банк Восток""",26237202,юридична особа
Опозиційний Блок,"Одеська область, Одеса",52,2016-10-03,474,Інша реклама (без класифікації),Реклама (без класифікації),369462,Одеська обласна організація,39705145,Одеська область,проведення рекламної компанії,26007010349074,current,11900.00,Новицький Олександр Олександрович,,фізична особа
Опозиційний Блок,"Одеська область, Одеса",52,2016-10-03,475,Інша реклама (без класифікації),Реклама (без класифікації),369461,Одеська обласна організація,39705145,Одеська область,проведення рекламної компанії,26007010349074,current,4900.00,Кордюк Олена Анатоліївна,,фізична особа
Опозиційний Блок,"Київ, вулиця Госпітальна, 12Г",70,2016-10-03,136652854,Банківські послуги,Інші витрати,369422,Луганська обласна організація,39697428,Луганська область,комісія за розрахункове обслуговування,26008301680625,current,100.00,"АТ ""Ощадбанк""",00032129,юридична особа
Опозиційний Блок,"Київ, вулиця Госпітальна, 12Г",70,2016-09-30,67040600,Банківські послуги,Інші витрати,369592,Черкаська обласна організація,39880926,Черкаська область,Плата за обслуговування тарифного пакету за березень 2016 р.,26002301144523,current,99.00,"АТ ""Ощадбанк""",00032129,юридична особа
Опозиційний Блок,"Дніпропетровська область, Дніпро́, вулиця Курсантська, 24",70,2016-09-30,351765,Банківські послуги,Інші витрати,369532,Одеська обласна організація,39705145,Одеська область,розрахункове обслуговування рахунку,26007010349074,current,100.00,"ПАТ ""Банк Восток""",26237202,юридична особа
Опозиційний Блок,"Київ, вулиця Андріївська, 4",70,2016-09-29,87,Банківські послуги,Інші витрати,369951,Маріупольська міська організація,39905107,Донецька область,комісія,2600214189,current,42.70,"ПАТ ""ПУМБ""",14282829,юридична особа
Опозиційний Блок,"Донецька область, Маріуполь",84,2016-09-29,88,"Заробітна плата, премії","Заробітна плата, лікарняні, вагітності, відрядження, компенсації",369783,Маріупольська міська організація,39905107,Донецька область,Заробітна плата,2600214189,current,1851.50,Виборнова Наталя Михайлівна,,фізична особа
Опозиційний Блок,"Донецька область, Маріуполь",84,2016-09-29,88,"Заробітна плата, премії","Заробітна плата, лікарняні, вагітності, відрядження, компенсації",369782,Маріупольська міська організація,39905107,Донецька область,Заробітна плата,2600214189,current,1006.25,Петренко Наталія Дмитрівна,,фізична особа
Опозиційний Блок,"Донецька область, Маріуполь",84,2016-09-29,88,"Заробітна плата, премії","Заробітна плата, лікарняні, вагітності, відрядження, компенсації",369781,Маріупольська міська організація,39905107,Донецька область,Заробітна плата,2600214189,current,2576.00,Нагорна Ірина Вікторівна,,фізична особа
Опозиційний Блок,"Донецька область, Маріуполь",84,2016-09-29,88,"Заробітна плата, премії","Заробітна плата, лікарняні, вагітності, відрядження, компенсації",369780,Маріупольська міська організація,39905107,Донецька область,Заробітна плата,2600214189,current,665.76,Коновалова Євгенія Абрамівна,,фізична особа
Опозиційний Блок,"Запорізька область, Запоріжжя, вулиця Сєдова, 16",58,2016-09-28,75,"Виготовлення друкованих матеріалів (плакатів, листівок, буклетів та інших агітаційних матеріалів)",Друкована агітація,369256,Запорізька обласна організація,37526809,Запорізька область,Оплата за друк газети,2600612837,current,17540.16,"ТОВ ВД ""Кераміст""",31122120,юридична особа
Опозиційний Блок,"Одеська область, Одеса, Фонтанська дорога, 11",70,2016-09-28,ТД/01/27,Банківські послуги,Інші витрати,368868,Центральний офіс,37120464,Україна,Комісія банку,26008001030506,current,4.00,"Київська філія АТ ""Місто банк""",26410346,юридична особа
Опозиційний Блок,"Київ, вулиця Бульварно-Кудрявська, 22",51,2016-09-27,37,Оплата ефірного часу на ТБ,Телереклама,368867,Центральний офіс,37120464,Україна,Розміщення рекламних матеріалів,26008001030506,current,55040.00,"ТОВ ""Інтер реклама центр""",30524103,юридична особа
Опозиційний Блок,Київ,79,2016-09-27,38,"Оренда будинків і приміщень та експлуатаційні витрати (прибирання, страхування орендованих будинків, охорона, сигналізація, ремонт, вивіз сміття, тощо)",Оренда нерухомості,368792,Центральний офіс,37120464,Україна,Оренда приміщення,26008001030506,current,399534.00,Яковенко Світлана Анатоліївна,,фізична особа
Опозиційний Блок,"Одеська область, Одеса, Фонтанська дорога, 11",70,2016-09-26,14,Банківські послуги,Інші витрати,369324,Київська обласна організація,39756467,Київська область,"Абонентська плата за використання системи ""Интернег-банкинг"" за 09.2016 р. згідно тарифів банку. Без ПДВ.",26006001030575,current,115.00,"Київська філія АТ ""Місто банк""",26410346,юридична особа
Опозиційний Блок,"Одеська область, Одеса, Фонтанська дорога, 11",70,2016-09-26,80,Банківські послуги,Інші витрати,368866,Центральний офіс,37120464,Україна,"Абонентська плата за використання системи ""Интернет-банкинг""",26008001030506,current,115.00,"Київська філія АТ ""Місто банк""",26410346,юридична особа
Опозиційний Блок,"Закарпатська область, Ужгород, вулиця Гойди, 10",70,2016-09-20,171142,Банківські послуги,Інші витрати,369158,Закарпатська обласна організація,38222036,Закарпатська область,Комісія за розрахунково-касове обслуговування,26003016000800,current,75.00,"ПАТ ""Комінвестбанк""",19355562,юридична особа
Опозиційний Блок,,74,2016-09-16,чек 00075282,"Придбання канцтоварів, паперу, інших предметів і матеріалів, а також госп товари",Придбання канцтоварів та госп. товарів,369950,Маріупольська міська організація,39905107,Донецька область,папір для принтера,2600214189,current,99.50,Прилипко Віктор Іванович,,фізична особа
Опозиційний Блок,"Донецька область, Маріуполь, вулиця Соборна, 7",79,2016-09-16,85,"Оренда будинків і приміщень та експлуатаційні витрати (прибирання, страхування орендованих будинків, охорона, сигналізація, ремонт, вивіз сміття, тощо)",Оренда нерухомості,369949,Маріупольська міська організація,39905107,Донецька область,За холодну воду,2600214189,current,25.90,"КП ""мвувкг""",03361508,юридична особа
Опозиційний Блок,"Київ, вулиця Андріївська, 4",70,2016-09-16,2.37314957,Банківські послуги,Інші витрати,369948,Маріупольська міська організація,39905107,Донецька область,комісія,2600214189,current,2.00,"ПАТ ""ПУМБ""",14282829,юридична особа
Опозиційний Блок,"Київ, вулиця Андріївська, 4",70,2016-09-16,159593540,Банківські послуги,Інші витрати,369947,Маріупольська міська організація,39905107,Донецька область,комісія,2600214189,current,0.85,"ПАТ ""ПУМБ""",14282829,юридична особа
Опозиційний Блок,"Київ, вулиця Андріївська, 4",70,2016-09-15,916.5027,Банківські послуги,Інші витрати,370073,Мангушська районна організація,39929882,Донецька область,Комісія банку,2600115288,current,120.00,"ПАТ ""ПУМБ""",14282829,юридична особа
Опозиційний Блок,"Київ, вулиця Ревуцького, 46",76,2016-09-15,78,Послуги зв’язку,Послуги зв’язку,369946,Маріупольська міська організація,39905107,Донецька область,послуги інтернет,2600214189,current,256.00,"ТОВ ""ТВП Формат""",40196287,юридична особа
Опозиційний Блок,"Донецька область, Маріуполь, проспект Миру, 68",63,2016-09-15,81,Податок на доходи,Податкові платежі,369945,Маріупольська міська організація,39905107,Донецька область,ПДФО,2600214189,current,2575.98,УДКСУ у м. Маріуполі Донецької області,37989721,юридична особа
Опозиційний Блок,"Донецька область, Маріуполь, вулиця 130-ї Таганрозької Дивізії, 114",62,2016-09-15,79,Сплата ЄСВ,Податкові платежі,369944,Маріупольська міська організація,39905107,Донецька область,ЄСВ 22%,2600214189,current,3300.00,Маріупольська ОДПІ,39883670,юридична особа
Опозиційний Блок,"Донецька область, Маріуполь, проспект Миру, 68",61,2016-09-15,80,Військовий збір,Податкові платежі,369943,Маріупольська міська організація,39905107,Донецька область,"Військовий збір 1,5%",2600214189,current,225.00,УДКСУ у м. Маріуполі Донецької області,37989721,юридична особа
Опозиційний Блок,"Дніпропетровська область, Дніпро́, вулиця Херсонська, 26",76,2016-09-15,84,Послуги зв’язку,Послуги зв’язку,369942,Маріупольська міська організація,39905107,Донецька область,Телекомунікаційні послуги,2600214189,current,200.00,"ПАТ ""Укртелеком""",21560766,юридична особа
Опозиційний Блок,"Київ, вулиця Андріївська, 4",70,2016-09-15,82,Банківські послуги,Інші витрати,369941,Маріупольська міська організація,39905107,Донецька область,комісія,2600214189,current,42.70,"ПАТ ""ПУМБ""",14282829,юридична особа
Опозиційний Блок,"Київ, вулиця Андріївська, 4",70,2016-09-15,101952403,Банківські послуги,Інші витрати,369940,Маріупольська міська організація,39905107,Донецька область,комісія,2600214189,current,2.00,"ПАТ ""ПУМБ""",14282829,юридична особа
Опозиційний Блок,"Київ, вулиця Андріївська, 4",70,2016-09-15,554323212,Банківські послуги,Інші витрати,369939,Маріупольська міська організація,39905107,Донецька область,комісія,2600214189,current,2.00,"ПАТ ""ПУМБ""",14282829,юридична особа
Опозиційний Блок,"Київ, вулиця Андріївська, 4",70,2016-09-15,190273035,Банківські послуги,Інші витрати,369938,Маріупольська міська організація,39905107,Донецька область,комісія,2600214189,current,2.00,"ПАТ ""ПУМБ""",14282829,юридична особа
Опозиційний Блок,"Київ, вулиця Андріївська, 4",70,2016-09-15,2.67066398,Банківські послуги,Інші витрати,369937,Маріупольська міська організація,39905107,Донецька область,комісія,2600214189,current,2.00,"ПАТ ""ПУМБ""",14282829,юридична особа
Опозиційний Блок,"Київ, вулиця Андріївська, 4",70,2016-09-15,903408424,Банківські послуги,Інші витрати,369936,Маріупольська міська організація,39905107,Донецька область,комісія,2600214189,current,2.00,"ПАТ ""ПУМБ""",14282829,юридична особа
Опозиційний Блок,"Донецька область, Маріуполь",84,2016-09-15,83,"Заробітна плата, премії","Заробітна плата, лікарняні, вагітності, відрядження, компенсації",369779,Маріупольська міська організація,39905107,Донецька область,Заробітна плата,2600214189,current,1851.50,Виборнова Наталя Михайлівна,,фізична особа
Опозиційний Блок,"Донецька область, Маріуполь",84,2016-09-15,83,"Заробітна плата, премії","Заробітна плата, лікарняні, вагітності, відрядження, компенсації",369778,Маріупольська міська організація,39905107,Донецька область,Заробітна плата,2600214189,current,1006.25,Петренко Наталія Дмитрівна,,фізична особа
Опозиційний Блок,"Донецька область, Маріуполь",84,2016-09-15,83,"Заробітна плата, премії","Заробітна плата, лікарняні, вагітності, відрядження, компенсації",369777,Маріупольська міська організація,39905107,Донецька область,Заробітна плата,2600214189,current,2576.00,Нагорна Ірина Вікторівна,,фізична особа
Опозиційний Блок,"Донецька область, Маріуполь",84,2016-09-15,83,"Заробітна плата, премії","Заробітна плата, лікарняні, вагітності, відрядження, компенсації",369776,Маріупольська міська організація,39905107,Донецька область,Заробітна плата,2600214189,current,665.76,Коновалова Євгенія Абрамівна,,фізична особа
Опозиційний Блок,"Київ, вулиця Андріївська, 4",70,2016-09-15,916.5181,Банківські послуги,Інші витрати,369575,Херсонська обласна організація,37542218,Херсонська область,договірне списання сум комісії,2600915358,current,120.00,"ПАТ ""ПУМБ""",14282829,юридична особа
Опозиційний Блок,"Київ, вулиця Андріївська, 4",70,2016-09-15,Пакеты_09 16.7749,Банківські послуги,Інші витрати,369255,Запорізька обласна організація,37526809,Запорізька область,Комісія банку,2600612837,current,120.00,"ПАТ ""ПУМБ""",14282829,юридична особа
Опозиційний Блок,"м. Запоріжжя, вул. Чуйкова, буд. 20, кв. 158",79,2016-09-15,73,"Оренда будинків і приміщень та експлуатаційні витрати (прибирання, страхування орендованих будинків, охорона, сигналізація, ремонт, вивіз сміття, тощо)",Оренда нерухомості,369189,Запорізька обласна організація,37526809,Запорізька область,Оплата за оренду • приміщення,2600612837,current,2500.00,Черкашина Л І,2046524805,фізична особа
Опозиційний Блок,"м. Запоріжжя, вул. Чуйкова, буд. 20, кв. 158",79,2016-09-15,74,"Оренда будинків і приміщень та експлуатаційні витрати (прибирання, страхування орендованих будинків, охорона, сигналізація, ремонт, вивіз сміття, тощо)",Оренда нерухомості,369188,Запорізька обласна організація,37526809,Запорізька область,Оплата за комунальні послуги,2600612837,current,355.95,Черкашина Л І,2046524805,фізична особа
Опозиційний Блок,"Дніпропетровська область, Дніпро́, вулиця Янтарна, 40",79,2016-09-15,56,"Оренда будинків і приміщень та експлуатаційні витрати (прибирання, страхування орендованих будинків, охорона, сигналізація, ремонт, вивіз сміття, тощо)",Оренда нерухомості,369003,Дніпропетровська обласна організація,39750015,Дніпропетровська область,"Передплата за комунальні послуги за вересень 2016 року, згідно рах. № 260804 від 2016-08-29 року, у т.ч. ПДВ 20% = 2 566,67 грн.",2600813320,current,15400.00,"ТОВ ""Комунгосп-сервіс""",36208390,юридична особа
Опозиційний Блок,"Київ, вулиця Андріївська, 4",70,2016-09-15,TR.12591325.3 0428715,Банківські послуги,Інші витрати,369002,Дніпропетровська обласна організація,39750015,Дніпропетровська область,Договорное списание комиссии за платеж в пользу клиента др. банка с-но п. 2.14 тарифов ПУМБ по дог. 260854602 от 24/06/2015,2600813320,current,2.00,"ПАТ ""ПУМБ""",14282829,юридична особа
Опозиційний Блок,"Дніпропетровська область, Дніпро́, вулиця Янтарна, 40",79,2016-09-15,57,"Оренда будинків і приміщень та експлуатаційні витрати (прибирання, страхування орендованих будинків, охорона, сигналізація, ремонт, вивіз сміття, тощо)",Оренда нерухомості,369001,Дніпропетровська обласна організація,39750015,Дніпропетровська область,"Передплата за комунальні послуги за вересень 2016 року, згідно рах. № 260804 від 29.08.2016 року, у т.ч. ПДВ 20% = 975,65 грн.",2600813320,current,5853.90,"ТОВ ""Комунгосп-сервіс""",36208390,юридична особа
Опозиційний Блок,"Київ, вулиця Андріївська, 4",70,2016-09-15,TR.12591325.3 5199082,Банківські послуги,Інші витрати,369000,Дніпропетровська обласна організація,39750015,Дніпропетровська область,Договорное списание комиссии за платеж в пользу клиента др. банка с-но п. 2.14 тарифов ПУМБ по дог. 260854602 от 24/06/2015,2600813320,current,2.00,"ПАТ ""ПУМБ""",14282829,юридична особа
Опозиційний Блок,"Київ, вулиця Андріївська, 4",70,2016-09-14,702302683,Банківські послуги,Інші витрати,369935,Маріупольська міська організація,39905107,Донецька область,комісія,2600214189,current,38.60,"ПАТ ""ПУМБ""",14282829,юридична особа
Опозиційний Блок,"Дніпропетровська область, Дніпро́, вулиця Курсантська, 24",70,2016-09-14,174456,Банківські послуги,Інші витрати,369531,Одеська обласна організація,39705145,Одеська область,розрахункове обслуговування рахунку,26007010349074,current,2.00,"ПАТ ""Банк Восток""",26237202,юридична особа
Опозиційний Блок,"Одеська область, Одеса, вулиця Канатна, 1",82,2016-09-14,473,"Гонорари, в тому числі за надані консультаційні послуги","Гонорари, в тому числі за надані консультаційні послуги",369530,Одеська обласна організація,39705145,Одеська область,за бухгалтерське обслуговування,26007010349074,current,2000.00,"ТОВ ""КФ ""Профіт фінанс""",39563816,юридична особа
Опозиційний Блок,"Донецька область, Маріуполь, бульвар Шевченка, 321",74,2016-09-13,чек 39685,"Придбання канцтоварів, паперу, інших предметів і матеріалів, а також госп товари",Придбання канцтоварів та госп. товарів,369934,Маріупольська міська організація,39905107,Донецька область,"пакети,серветки, туал.папір",2600214189,current,140.91,"ТОВ ""Український рітейл""",34604386,юридична особа
Опозиційний Блок,"Донецька область, Маріуполь, вулиця Італійська, 84",79,2016-09-13,75,"Оренда будинків і приміщень та експлуатаційні витрати (прибирання, страхування орендованих будинків, охорона, сигналізація, ремонт, вивіз сміття, тощо)",Оренда нерухомості,369933,Маріупольська міська організація,39905107,Донецька область,Послуги охорони,2600214189,current,423.73,Маріупольський міжрайонний відділ управління поліції охорони в Донецькій області,40109084,юридична особа
Опозиційний Блок,"Донецька область, Маріуполь, вулиця Італійська, 84",79,2016-09-13,76,"Оренда будинків і приміщень та експлуатаційні витрати (прибирання, страхування орендованих будинків, охорона, сигналізація, ремонт, вивіз сміття, тощо)",Оренда нерухомості,369932,Маріупольська міська організація,39905107,Донецька область,Послуги охорони,2600214189,current,83.63,Маріупольський міжрайонний відділ управління поліції охорони в Донецькій області,40109084,юридична особа
Опозиційний Блок,"Київ, вулиця Андріївська, 4",70,2016-09-13,312545507_1,Банківські послуги,Інші витрати,369931,Маріупольська міська організація,39905107,Донецька область,комісія,2600214189,current,0.85,"ПАТ ""ПУМБ""",14282829,юридична особа
Опозиційний Блок,"Київ, вулиця Андріївська, 4",70,2016-09-13,312545507,Банківські послуги,Інші витрати,369930,Маріупольська міська організація,39905107,Донецька область,комісія,2600214189,current,0.85,"ПАТ ""ПУМБ""",14282829,юридична особа
Опозиційний Блок,"Київ, вулиця Андріївська, 4",70,2016-09-13,897443819,Банківські послуги,Інші витрати,369929,Маріупольська міська організація,39905107,Донецька область,комісія,2600214189,current,0.85,"ПАТ ""ПУМБ""",14282829,юридична особа
Опозиційний Блок,"Одеська область, Одеса, Фонтанська дорога, 11",70,2016-09-12,ТД/01/26,Банківські послуги,Інші витрати,368865,Центральний офіс,37120464,Україна,Комісія банку,26008001030506,current,8.00,"Київська філія АТ ""Місто банк""",26410346,юридична особа
Опозиційний Блок,"Запорізька область, Запоріжжя, Південне шосе, 72",79,2016-09-09,71,"Оренда будинків і приміщень та експлуатаційні витрати (прибирання, страхування орендованих будинків, охорона, сигналізація, ремонт, вивіз сміття, тощо)",Оренда нерухомості,369254,Запорізька обласна організація,37526809,Запорізька область,Оплата за оренду приміщення,2600612837,current,9210.12,"ПАТ ""Запоріжсталь""",00191230,юридична особа
Опозиційний Блок,"Запорізька область, Запоріжжя, Південне шосе, 72",79,2016-09-09,72,"Оренда будинків і приміщень та експлуатаційні витрати (прибирання, страхування орендованих будинків, охорона, сигналізація, ремонт, вивіз сміття, тощо)",Оренда нерухомості,369253,Запорізька обласна організація,37526809,Запорізька область,Оплата за оренду приміщення,2600612837,current,9218.64,"ПАТ ""Запоріжсталь""",00191230,юридична особа
Опозиційний Блок,"Запорізька область, Запоріжжя, Південне шосе, 72",79,2016-09-09,67,"Оренда будинків і приміщень та експлуатаційні витрати (прибирання, страхування орендованих будинків, охорона, сигналізація, ремонт, вивіз сміття, тощо)",Оренда нерухомості,369252,Запорізька обласна організація,37526809,Запорізька область,Оплата за комунальні послуги,2600612837,current,5259.12,"ПАТ ""Запоріжсталь""",00191230,юридична особа
Опозиційний Блок,"Запорізька область, Запоріжжя, Південне шосе, 72",79,2016-09-09,68,"Оренда будинків і приміщень та експлуатаційні витрати (прибирання, страхування орендованих будинків, охорона, сигналізація, ремонт, вивіз сміття, тощо)",Оренда нерухомості,369251,Запорізька обласна організація,37526809,Запорізька область,Оплата за комунальні послуги,2600612837,current,3889.78,"ПАТ ""Запоріжсталь""",00191230,юридична особа
Опозиційний Блок,"Запорізька область, Запоріжжя, Південне шосе, 72",79,2016-09-09,69,"Оренда будинків і приміщень та експлуатаційні витрати (прибирання, страхування орендованих будинків, охорона, сигналізація, ремонт, вивіз сміття, тощо)",Оренда нерухомості,369250,Запорізька обласна організація,37526809,Запорізька область,Оплата за комунальні послуги,2600612837,current,5127.10,"ПАТ ""Запоріжсталь""",00191230,юридична особа
Опозиційний Блок,"Запорізька область, Запоріжжя, Південне шосе, 72",79,2016-09-09,70,"Оренда будинків і приміщень та експлуатаційні витрати (прибирання, страхування орендованих будинків, охорона, сигналізація, ремонт, вивіз сміття, тощо)",Оренда нерухомості,369249,Запорізька обласна організація,37526809,Запорізька область,Оплата за оренду приміщення,2600612837,current,8894.88,"ПАТ ""Запоріжсталь""",00191230,юридична особа
Опозиційний Блок,"Київ, вулиця Андріївська, 4",70,2016-09-09,55,Банківські послуги,Інші витрати,368999,Дніпропетровська обласна організація,39750015,Дніпропетровська область,"Комісія за зарахування банком коштів на КР співробітн. зг. заявки № 8 від 09.09,2016р, дог.№ 260899816 від 07.07.2015 р. (12,08 грн), без ПДВ7, без ПДВ",2600813320,current,12.08,"ПАТ ""ПУМБ""",14282829,юридична особа
Опозиційний Блок,"Дніпропетровська область, Дніпро́, площа Шевченка, 7",63,2016-09-09,51,Податок на доходи,Податкові платежі,368998,Дніпропетровська обласна організація,39750015,Дніпропетровська область,"НДФЛ 18% за серпень 2016 року, без ПДВ",2600813320,current,540.00,УДКСУ у Соборному районі м. Дніпра,37989269,юридична особа
Опозиційний Блок,"Київ, вулиця Андріївська, 4",70,2016-09-09,ТИ.12591325.7 3951890,Банківські послуги,Інші витрати,368997,Дніпропетровська обласна організація,39750015,Дніпропетровська область,Договорное списание комиссии за платеж в пользу клиента др. банка с-но п. 2.14 тарифов ПУМБ по дог. 260854602 от 24/06/2015,2600813320,current,2.00,"ПАТ ""ПУМБ""",14282829,юридична особа
Опозиційний Блок,"Дніпропетровська область, Дніпро́, площа Шевченка, 7",61,2016-09-09,52,Військовий збір,Податкові платежі,368996,Дніпропетровська обласна організація,39750015,Дніпропетровська область,"Військовий збір за серпень 2016 року, без ПДВ",2600813320,current,45.00,УДКСУ у Соборному районі м. Дніпра,37989269,юридична особа
Опозиційний Блок,"Київ, вулиця Андріївська, 4",70,2016-09-09,ТК.12591325.9 5563567,Банківські послуги,Інші витрати,368995,Дніпропетровська обласна організація,39750015,Дніпропетровська область,Договорное списание комиссии за платеж в пользу клиента др. банка с-но п. 2.14 тарифов ПУМБ по дог. 260854602 от 24/06/2015,2600813320,current,2.00,"ПАТ ""ПУМБ""",14282829,юридична особа
Опозиційний Блок,"Дніпропетровська область, Дніпро́, вулиця Високовольтна, 24",62,2016-09-09,53,Сплата ЄСВ,Податкові платежі,368994,Дніпропетровська обласна організація,39750015,Дніпропетровська область,"*"";""101"";""39260741"";""нарахуванн я ЄСВ 22,00% на зарплату за серпень 2016 року, без ПДВ",2600813320,current,660.00,ДПІ у Соборному районі м. Дніпро ГУ ДФС у Дніпропетровській області,39545734,юридична особа
Опозиційний Блок,"Київ, вулиця Андріївська, 4",70,2016-09-09,ТИ.12591325.2 4637221,Банківські послуги,Інші витрати,368993,Дніпропетровська обласна організація,39750015,Дніпропетровська область,Договорное списание комиссии за платеж в пользу клиента др. банка с-но п. 2.14 тарифов ПУМБ по дог. 260854602 от 24/06/2015,2600813320,current,2.00,"ПАТ ""ПУМБ""",14282829,юридична особа
Опозиційний Блок,"Дніпропетровська область, Дніпро́",84,2016-09-09,п/д 54,"Заробітна плата, премії","Заробітна плата, лікарняні, вагітності, відрядження, компенсації",368903,Дніпропетровська обласна організація,39750015,Дніпропетровська область,"Перерахування заробітної плати за серпень 2016 року {2415,00 грн) згідно дог. N9 260899816 від 2015-07-07 року та реєстру N9 8 від 2016-09-09 р, без ПДВ",2600813320,current,2415.00,Гончаренко Наталія Вікторівна,,фізична особа
Опозиційний Блок,"Київ, вулиця Бульварно-Кудрявська, 22",51,2016-09-09,33,Оплата ефірного часу на ТБ,Телереклама,368864,Центральний офіс,37120464,Україна,Розміщення рекламних матеріалів,26008001030506,current,270000.00,"ТОВ ""Інтер реклама центр""",30524103,юридична особа
Опозиційний Блок,"Київ, вулиця Бульварно-Кудрявська, 22",51,2016-09-09,36,Оплата ефірного часу на ТБ,Телереклама,368863,Центральний офіс,37120464,Україна,Розміщення рекламних матеріалів,26008001030506,current,420000.00,"ТОВ ""Інтер реклама центр""",30524103,юридична особа
Опозиційний Блок,"Київ, вулиця Джона Маккейна, 39",76,2016-09-09,34,Послуги зв’язку,Послуги зв’язку,368862,Центральний офіс,37120464,Україна,Послуги зв’язку,26008001030506,current,975.41,"ТОВ ""Компанія ""Конфіденційні телекомунікації України""",31305512,юридична особа
Опозиційний Блок,"Одеська область, Одеса, Фонтанська дорога, 11",70,2016-09-09,ТД/01/21,Банківські послуги,Інші витрати,368861,Центральний офіс,37120464,Україна,Комісія банку,26008001030506,current,2.00,"Київська філія АТ ""Місто банк""",26410346,юридична особа
Опозиційний Блок,Київ,79,2016-09-09,35,"Оренда будинків і приміщень та експлуатаційні витрати (прибирання, страхування орендованих будинків, охорона, сигналізація, ремонт, вивіз сміття, тощо)",Оренда нерухомості,368791,Центральний офіс,37120464,Україна,Оренда приміщення,26008001030506,current,411263.00,Яковенко Світлана Анатоліївна,,фізична особа
Опозиційний Блок,"Київ, провулок Євгена Гуцала, 3",76,2016-09-08,65,Послуги зв’язку,Послуги зв’язку,369248,Запорізька обласна організація,37526809,Запорізька область,Оплата за послуги звʼязку,2600612837,current,498.00,"ПАТ ""Фарлеп-інвест""",19199961,юридична особа
Опозиційний Блок,"Київ, провулок Євгена Гуцала, 3",76,2016-09-08,66,Послуги зв’язку,Послуги зв’язку,369247,Запорізька обласна організація,37526809,Запорізька область,Оплата за послуги звʼязку,2600612837,current,600.00,"ПАТ ""Фарлеп-інвест""",19199961,юридична особа
Опозиційний Блок,"Одеська область, Одеса, Фонтанська дорога, 11",70,2016-09-08,ТД/01/52,Банківські послуги,Інші витрати,368860,Центральний офіс,37120464,Україна,Комісія банку,26008001030506,current,4.00,"Київська філія АТ ""Місто банк""",26410346,юридична особа
Опозиційний Блок,"Київ, вулиця Магнітогорська, 1",66,2016-09-08,32,Повернення внесків приватних внесків (донорам),Повернення приватних внесків (донорам),368859,Центральний офіс,37120464,Україна,Повернення помилково перерахованих коштів,26008001030506,current,1000.00,"ТОВ ""Укроілгруп""",40575683,юридична особа
Опозиційний Блок,"Запорізька область, Запоріжжя, вулиця Сєдова, 16",58,2016-09-07,64,"Виготовлення друкованих матеріалів (плакатів, листівок, буклетів та інших агітаційних матеріалів)",Друкована агітація,369246,Запорізька обласна організація,37526809,Запорізька область,Оплата за друк газети,2600612837,current,17141.52,"ТОВ ВД ""Кераміст""",31122120,юридична особа
Опозиційний Блок,"Дніпропетровська область, Дніпро́, проспект Олександра Поля, 104А",74,2016-09-06,чек 333970,"Придбання канцтоварів, паперу, інших предметів і матеріалів, а також госп товари",Придбання канцтоварів та госп. товарів,369928,Маріупольська міська організація,39905107,Донецька область,"миючі засоби,серветки",2600214189,current,340.28,"ТОВ ""РУШ""",32007740,юридична особа
Опозиційний Блок,"Київ, вулиця Андріївська, 4",70,2016-09-06,2.46427653,Банківські послуги,Інші витрати,369927,Маріупольська міська організація,39905107,Донецька область,комісія,2600214189,current,0.85,"ПАТ ""ПУМБ""",14282829,юридична особа
Опозиційний Блок,"Одеська область, Одеса, Фонтанська дорога, 11",70,2016-09-06,ТД/01/111,Банківські послуги,Інші витрати,368858,Центральний офіс,37120464,Україна,Комісія банку,26008001030506,current,2.00,"Київська філія АТ ""Місто банк""",26410346,юридична особа
Опозиційний Блок,"Київ, вулиця Андріївська, 4",70,2016-09-05,707.12872,Банківські послуги,Інші витрати,369926,Маріупольська міська організація,39905107,Донецька область,комісія,2600214189,current,55.00,"ПАТ ""ПУМБ""",14282829,юридична особа
Опозиційний Блок,"Київ, вулиця Андріївська, 4",70,2016-09-05,707.12588,Банківські послуги,Інші витрати,369716,Володарська районна організація,39913123,Донецька область,комісія,2600614183,current,55.00,"ПАТ ""ПУМБ""",14282829,юридична особа
Опозиційний Блок,"Київ, вулиця Михайла Грушевського, 1Д",70,2016-09-05,№ AS66u2qzbp,Банківські послуги,Інші витрати,369657,Чернігівська обласна організація,37418136,Чернігівська область,Комісія за обслуговування рахунку,26003051415812,current,100.00,"ПАТ КБ ""Приватбанк""",14360570,юридична особа
Опозиційний Блок,"Київ, вулиця Андріївська, 4",70,2016-09-05,,Банківські послуги,Інші витрати,369444,Миколаївська обласна організація,39751851,Миколаївська область,послуги банка,2600313370,current,55.00,"ПАТ ""ПУМБ""",14282829,юридична особа
Опозиційний Блок,"Київ, вулиця Сурикова, 3",43,2016-09-05,109,Інші витрати,Інші витрати,369157,Закарпатська обласна організація,38222036,Закарпатська область,"ЦСК/Зк/8/2,9,16 За послуги ЕЦП з-но рах від 02.09.2016 Без ПДВ",26003016000800,current,356.00,"ТОВ ""Арт-мастер""",30404750,юридична особа
Опозиційний Блок,"Закарпатська область, Ужгород, вулиця Минайська, 15, 11",72,2016-09-05,110,"Придбання, ремонт офісної техніки та програмного забезпечення (Бухгалтерські програми, Ліга.закон, домени)",Придбання офісної техніки та програмного забезпечення,369156,Закарпатська обласна організація,38222036,Закарпатська область,Програмний продукт Ліцензія Арт-Звіт Плюс для юр осіб на 1 рік Без ПДВ,26003016000800,current,720.00,Бацко Іван Іванович,2033316499,фізична особа
Опозиційний Блок,"Закарпатська область, Ужгород, вулиця Гойди, 10",70,2016-09-05,171142,Банківські послуги,Інші витрати,369155,Закарпатська обласна організація,38222036,Закарпатська область,Комісія за розрахунково-касове обслуговування,26003016000800,current,5.00,"ПАТ ""Комінвестбанк""",19355562,юридична особа
Опозиційний Блок,"Київ, вулиця Андріївська, 4",70,2016-09-05,ТК.12591568.К КО.707.,Банківські послуги,Інші витрати,368992,Дніпропетровська обласна організація,39750015,Дніпропетровська область,Договорное списание комиссии за осуществление операций посредством СДО с-но тарифов ПУМБ ( 260854810 от 24/06/2015 )■,2600813320,current,55.00,"ПАТ ""ПУМБ""",14282829,юридична особа
Опозиційний Блок,"Дніпропетровська область, Дніпро́, вулиця Курсантська, 24",70,2016-09-02,24914,Банківські послуги,Інші витрати,369529,Одеська обласна організація,39705145,Одеська область,розрахункове обслуговування рахунку,26007010349074,current,4.00,"ПАТ ""Банк Восток""",26237202,юридична особа
Опозиційний Блок,"Одеська область, Одеса, вулиця Канатна, 1",82,2016-09-02,471,"Гонорари, в тому числі за надані консультаційні послуги","Гонорари, в тому числі за надані консультаційні послуги",369528,Одеська обласна організація,39705145,Одеська область,за бухгалтерське обслуговування,26007010349074,current,1000.00,"ТОВ ""КФ ""Профіт фінанс""",39563816,юридична особа
Опозиційний Блок,"Одеська область, Одеса",52,2016-09-02,472,Інша реклама (без класифікації),Реклама (без класифікації),369460,Одеська обласна організація,39705145,Одеська область,проведення рекламної компанії,26007010349074,current,10500.00,Новицький Олександр Олександрович,,фізична особа
Опозиційний Блок,"Миколаївська область, Миколаїв",79,2016-09-02,4,"Оренда будинків і приміщень та експлуатаційні витрати (прибирання, страхування орендованих будинків, охорона, сигналізація, ремонт, вивіз сміття, тощо)",Оренда нерухомості,369443,Миколаївська обласна організація,39751851,Миколаївська область,Оренда приміщення,2600313370,current,82231.84,"ТОВ ""Бізнес-Холл""",,юридична особа
Опозиційний Блок,"Київ, вулиця Андріївська, 4",70,2016-09-02,1,Банківські послуги,Інші витрати,369442,Миколаївська обласна організація,39751851,Миколаївська область,послуги банка,2600313370,current,165.20,"ПАТ ""ПУМБ""",14282829,юридична особа
Опозиційний Блок,"Київ, вулиця Андріївська, 4",70,2016-09-02,,Банківські послуги,Інші витрати,369441,Миколаївська обласна організація,39751851,Миколаївська область,послуги банка,2600313370,current,50.00,"ПАТ ""ПУМБ""",14282829,юридична особа
Опозиційний Блок,"Київ, вулиця Андріївська, 4",70,2016-09-02,,Банківські послуги,Інші витрати,369440,Миколаївська обласна організація,39751851,Миколаївська область,послуги банка,2600313370,current,46.28,"ПАТ ""ПУМБ""",14282829,юридична особа
Опозиційний Блок,"Київ, вулиця Андріївська, 4",70,2016-09-02,,Банківські послуги,Інші витрати,369439,Миколаївська обласна організація,39751851,Миколаївська область,послуги банка,2600313370,current,2.00,"ПАТ ""ПУМБ""",14282829,юридична особа
Опозиційний Блок,"Київ, вулиця Михайла Грушевського, 1Д",70,2016-08-31,№ 0831L10SGY,Банківські послуги,Інші витрати,369656,Чернігівська обласна організація,37418136,Чернігівська область,Комісія за обслуговування рахунку,26003051415812,current,3.00,"ПАТ КБ ""Приватбанк""",14360570,юридична особа
Опозиційний Блок,"Чернігівська область, Чернігів, вулиця Шевченка, 103-а",79,2016-08-31,№ 26,"Оренда будинків і приміщень та експлуатаційні витрати (прибирання, страхування орендованих будинків, охорона, сигналізація, ремонт, вивіз сміття, тощо)",Оренда нерухомості,369655,Чернігівська обласна організація,37418136,Чернігівська область,Орендна плата,26003051415812,current,3888.00,"ПАТ ""Чернігів турист""",14221225,юридична особа
Опозиційний Блок,"Чернігівська область, Чернігів",79,2016-08-31,№ 25,"Оренда будинків і приміщень та експлуатаційні витрати (прибирання, страхування орендованих будинків, охорона, сигналізація, ремонт, вивіз сміття, тощо)",Оренда нерухомості,369654,Чернігівська обласна організація,37418136,Чернігівська область,суборендна плата,26003051415812,current,12015.00,Чернігівська Міськспоживспілка,40268466,юридична особа
Опозиційний Блок,"Київ, вулиця Госпітальна, 12Г",70,2016-08-31,65033833,Банківські послуги,Інші витрати,369591,Черкаська обласна організація,39880926,Черкаська область,Плата за обслуговування тарифного пакету за лютий 2016 р.,26002301144523,current,99.00,"АТ ""Ощадбанк""",00032129,юридична особа
Опозиційний Блок,"Дніпропетровська область, Дніпро́, вулиця Курсантська, 24",70,2016-08-31,371672,Банківські послуги,Інші витрати,369527,Одеська обласна організація,39705145,Одеська область,розрахункове обслуговування рахунку,26007010349074,current,100.00,"ПАТ ""Банк Восток""",26237202,юридична особа
Опозиційний Блок,"Київ, вулиця Госпітальна, 12Г",70,2016-08-31,139243714,Банківські послуги,Інші витрати,369421,Луганська обласна організація,39697428,Луганська область,обслуговування тарифного пакету (банківські послуги),26008301680625,current,99.00,"АТ ""Ощадбанк""",00032129,юридична особа
Опозиційний Блок,"Одеська область, Одеса, вулиця Краснова, 6/1",70,2016-08-31,3,Банківські послуги,Інші витрати,369398,Кіровоградська обласна організація,39662568,Кіровоградська область,Розрахункове касове обслуговування,26000010007869,current,75.00,"АБ ""Південний""",20953647,юридична особа
Опозиційний Блок,"Одеська область, Одеса, вулиця Краснова, 6/1",70,2016-08-31,2,Банківські послуги,Інші витрати,369397,Кіровоградська обласна організація,39662568,Кіровоградська область,Розрахункове касове обслуговування,26000010007869,current,50.00,"АБ ""Південний""",20953647,юридична особа
Опозиційний Блок,"Одеська область, Одеса, вулиця Краснова, 6/1",70,2016-08-31,1,Банківські послуги,Інші витрати,369396,Кіровоградська обласна організація,39662568,Кіровоградська область,Розрахункове касове обслуговування,26000010007869,current,2.00,"АБ ""Південний""",20953647,юридична особа
Опозиційний Блок,"Київ, вулиця Андріївська, 4",70,2016-08-30,73,Банківські послуги,Інші витрати,369925,Маріупольська міська організація,39905107,Донецька область,комісія,2600214189,current,42.70,"ПАТ ""ПУМБ""",14282829,юридична особа
Опозиційний Блок,"Донецька область, Маріуполь",84,2016-08-30,72,"Заробітна плата, премії","Заробітна плата, лікарняні, вагітності, відрядження, компенсації",369775,Маріупольська міська організація,39905107,Донецька область,Заробітна плата,2600214189,current,1851.50,Виборнова Наталя Михайлівна,,фізична особа
Опозиційний Блок,"Донецька область, Маріуполь",84,2016-08-30,72,"Заробітна плата, премії","Заробітна плата, лікарняні, вагітності, відрядження, компенсації",369774,Маріупольська міська організація,39905107,Донецька область,Заробітна плата,2600214189,current,1006.25,Петренко Наталія Дмитрівна,,фізична особа
Опозиційний Блок,"Донецька область, Маріуполь",84,2016-08-30,72,"Заробітна плата, премії","Заробітна плата, лікарняні, вагітності, відрядження, компенсації",369773,Маріупольська міська організація,39905107,Донецька область,Заробітна плата,2600214189,current,2576.00,Нагорна Ірина Вікторівна,,фізична особа
Опозиційний Блок,"Донецька область, Маріуполь",84,2016-08-30,72,"Заробітна плата, премії","Заробітна плата, лікарняні, вагітності, відрядження, компенсації",369772,Маріупольська міська організація,39905107,Донецька область,Заробітна плата,2600214189,current,665.76,Коновалова Євгенія Абрамівна,,фізична особа
Опозиційний Блок,"Запорізька область, Запоріжжя, Південне шосе, 72",79,2016-08-30,63,"Оренда будинків і приміщень та експлуатаційні витрати (прибирання, страхування орендованих будинків, охорона, сигналізація, ремонт, вивіз сміття, тощо)",Оренда нерухомості,369245,Запорізька обласна організація,37526809,Запорізька область,Оплата за комунальні послуги,2600612837,current,5686.58,"ПАТ ""Запоріжсталь""",00191230,юридична особа
Опозиційний Блок,"Запорізька область, Запоріжжя, вулиця Сєдова, 16",58,2016-08-30,62,"Виготовлення друкованих матеріалів (плакатів, листівок, буклетів та інших агітаційних матеріалів)",Друкована агітація,369244,Запорізька обласна організація,37526809,Запорізька область,Оплата за друк газети,2600612837,current,17141.52,"ТОВ ВД ""Кераміст""",31122120,юридична особа
Опозиційний Блок,"Одеська область, Одеса, Фонтанська дорога, 11",70,2016-08-26,31,Банківські послуги,Інші витрати,369323,Київська обласна організація,39756467,Київська область,"Абонентська плата за використання системи ""Интернет-банкинг"" за 08.2016 р. згідно тарифів банку. Без мдв.",26006001030575,current,55.00,"Київська філія АТ ""Місто банк""",26410346,юридична особа
Опозиційний Блок,"Одеська область, Одеса, Фонтанська дорога, 11",70,2016-08-26,20,Банківські послуги,Інші витрати,368857,Центральний офіс,37120464,Україна,"Абонентська плата за використання системи ""Интернет-банкинг""",26008001030506,current,55.00,"Київська філія АТ ""Місто банк""",26410346,юридична особа
Опозиційний Блок,"Київ, вулиця Ревуцького, 46",76,2016-08-25,71,Послуги зв’язку,Послуги зв’язку,369924,Маріупольська міська організація,39905107,Донецька область,послуги інтернет,2600214189,current,256.00,"ТОВ ""ТВП Формат""",40196287,юридична особа
Опозиційний Блок,"Київ, вулиця Андріївська, 4",70,2016-08-25,949838319,Банківські послуги,Інші витрати,369923,Маріупольська міська організація,39905107,Донецька область,комісія,2600214189,current,2.00,"ПАТ ""ПУМБ""",14282829,юридична особа
Опозиційний Блок,"Кіровоградська область, Кропивницький район, Федорівка",49,2016-08-25,1,Публікування матеріалів у друкованих ЗМІ,Реклама в друкованих ЗМІ,369395,Кіровоградська обласна організація,39662568,Кіровоградська область,Інформаційні послуги зг.рах.№185 від 25.08.2016р.,26000010007869,current,180.00,"Редакція газети ""Зоря""",23226936,юридична особа
Опозиційний Блок,"Дніпропетровська область, Дніпро́, вулиця Курсантська, 24",70,2016-08-19,256970,Банківські послуги,Інші витрати,369526,Одеська обласна організація,39705145,Одеська область,розрахункове обслуговування рахунку,26007010349074,current,2.00,"ПАТ ""Банк Восток""",26237202,юридична особа
Опозиційний Блок,"Одеська область, Одеса, площадь Бориса Деревянко, 1",58,2016-08-19,470,"Виготовлення друкованих матеріалів (плакатів, листівок, буклетів та інших агітаційних матеріалів)",Друкована агітація,369525,Одеська обласна організація,39705145,Одеська область,за інформаційний бюллетень,26007010349074,current,1000.00,"КП ""Видавництво ""Чорноморʼя""",05905705,юридична особа
Опозиційний Блок,"Запорізька область, Запоріжжя, Портова вулиця, 12",57,2016-08-19,61,Виготовлення брендованої продукції,"Виготовлення брендованої продукції (футболки, кепки, парасольки)",369243,Запорізька обласна організація,37526809,Запорізька область,"Оплата за прапори, манішкі та ленти",2600612837,current,25980.01,"ПП ""Вертекс""",31449310,юридична особа
Опозиційний Блок,"Запорізька область, Запоріжжя",57,2016-08-19,60,Виготовлення брендованої продукції,"Виготовлення брендованої продукції (футболки, кепки, парасольки)",369187,Запорізька обласна організація,37526809,Запорізька область,Оплата за друк на повітряних кульках,2600612837,current,18000.00,Новікова Ю М,,фізична особа
Опозиційний Блок,"Закарпатська область, Ужгород, вулиця Гойди, 10",70,2016-08-19,171142,Банківські послуги,Інші витрати,369154,Закарпатська обласна організація,38222036,Закарпатська область,Комісія за розрахунково-касове обслуговування,26003016000800,current,75.00,"ПАТ ""Комінвестбанк""",19355562,юридична особа
Опозиційний Блок,"Одеська область, Одеса, Фонтанська дорога, 11",70,2016-08-16,ТД/01/26,Банківські послуги,Інші витрати,368856,Центральний офіс,37120464,Україна,Комісія банку,26008001030506,current,2.00,"Київська філія АТ ""Місто банк""",26410346,юридична особа
Опозиційний Блок,"Донецька область, Мангушський район, Мангуш, проспект Миру, 60",79,2016-08-15,6,"Оренда будинків і приміщень та експлуатаційні витрати (прибирання, страхування орендованих будинків, охорона, сигналізація, ремонт, вивіз сміття, тощо)",Оренда нерухомості,370072,Мангушська районна організація,39929882,Донецька область,Оренда приміщення,2600115288,current,374.96,Відділ культури і туризму Мангушської РДА,00183638,юридична особа
Опозиційний Блок,"Донецька область, Мангушський район, Мангуш, проспект Миру, 60",79,2016-08-15,6,"Оренда будинків і приміщень та експлуатаційні витрати (прибирання, страхування орендованих будинків, охорона, сигналізація, ремонт, вивіз сміття, тощо)",Оренда нерухомості,370071,Мангушська районна організація,39929882,Донецька область,Оренда приміщення,2600115288,current,300.00,Відділ культури і туризму Мангушської РДА,00183638,юридична особа
Опозиційний Блок,"Київ, вулиця Андріївська, 4",70,2016-08-15,816.4648,Банківські послуги,Інші витрати,370070,Мангушська районна організація,39929882,Донецька область,Комісія банку,2600115288,current,120.00,"ПАТ ""ПУМБ""",14282829,юридична особа
Опозиційний Блок,"Київ, вулиця Андріївська, 4",70,2016-08-15,171808621,Банківські послуги,Інші витрати,370069,Мангушська районна організація,39929882,Донецька область,Комісія банку,2600115288,current,10.00,"ПАТ ""ПУМБ""",14282829,юридична особа
Опозиційний Блок,"Донецька область, Маріуполь, проспект Миру, 68",63,2016-08-15,69,Податок на доходи,Податкові платежі,369922,Маріупольська міська організація,39905107,Донецька область,ПДФО,2600214189,current,2575.98,УДКСУ у м. Маріуполі Донецької області,37989721,юридична особа
Опозиційний Блок,"Донецька область, Маріуполь, вулиця 130-ї Таганрозької Дивізії, 114",62,2016-08-15,67,Сплата ЄСВ,Податкові платежі,369921,Маріупольська міська організація,39905107,Донецька область,ЄСВ 22%,2600214189,current,3300.00,Маріупольська ОДПІ,39883670,юридична особа
Опозиційний Блок,"Донецька область, Маріуполь, проспект Миру, 68",61,2016-08-15,68,Військовий збір,Податкові платежі,369920,Маріупольська міська організація,39905107,Донецька область,"Військовий збір 1,5%",2600214189,current,225.00,УДКСУ у м. Маріуполі Донецької області,37989721,юридична особа
Опозиційний Блок,"Донецька область, Маріуполь, вулиця Італійська, 84",79,2016-08-15,64,"Оренда будинків і приміщень та експлуатаційні витрати (прибирання, страхування орендованих будинків, охорона, сигналізація, ремонт, вивіз сміття, тощо)",Оренда нерухомості,369919,Маріупольська міська організація,39905107,Донецька область,Послуги охорони,2600214189,current,423.73,Маріупольський міжрайонний відділ управління поліції охорони в Донецькій області,40109084,юридична особа
Опозиційний Блок,"Донецька область, Маріуполь, вулиця Італійська, 84",79,2016-08-15,65,"Оренда будинків і приміщень та експлуатаційні витрати (прибирання, страхування орендованих будинків, охорона, сигналізація, ремонт, вивіз сміття, тощо)",Оренда нерухомості,369918,Маріупольська міська організація,39905107,Донецька область,Послуги охорони,2600214189,current,83.63,Маріупольський міжрайонний відділ управління поліції охорони в Донецькій області,40109084,юридична особа
Опозиційний Блок,"Київ, вулиця Андріївська, 4",70,2016-08-15,70,Банківські послуги,Інші витрати,369917,Маріупольська міська організація,39905107,Донецька область,комісія,2600214189,current,42.70,"ПАТ ""ПУМБ""",14282829,юридична особа
Опозиційний Блок,"Київ, вулиця Андріївська, 4",70,2016-08-15,2.20222807,Банківські послуги,Інші витрати,369916,Маріупольська міська організація,39905107,Донецька область,комісія,2600214189,current,39.16,"ПАТ ""ПУМБ""",14282829,юридична особа
Опозиційний Блок,"Донецька область, Маріуполь, вулиця Соборна, 7",79,2016-08-15,63,"Оренда будинків і приміщень та експлуатаційні витрати (прибирання, страхування орендованих будинків, охорона, сигналізація, ремонт, вивіз сміття, тощо)",Оренда нерухомості,369915,Маріупольська міська організація,39905107,Донецька область,За холодну воду,2600214189,current,25.90,"КП ""мвувкг""",03361508,юридична особа
Опозиційний Блок,"Київ, вулиця Андріївська, 4",70,2016-08-15,751504475,Банківські послуги,Інші витрати,369914,Маріупольська міська організація,39905107,Донецька область,комісія,2600214189,current,2.00,"ПАТ ""ПУМБ""",14282829,юридична особа
Опозиційний Блок,"Київ, вулиця Андріївська, 4",70,2016-08-15,491998189,Банківські послуги,Інші витрати,369913,Маріупольська міська організація,39905107,Донецька область,комісія,2600214189,current,2.00,"ПАТ ""ПУМБ""",14282829,юридична особа
Опозиційний Блок,"Київ, вулиця Андріївська, 4",70,2016-08-15,2.20047869,Банківські послуги,Інші витрати,369912,Маріупольська міська організація,39905107,Донецька область,комісія,2600214189,current,2.00,"ПАТ ""ПУМБ""",14282829,юридична особа
Опозиційний Блок,"Київ, вулиця Андріївська, 4",70,2016-08-15,528373868,Банківські послуги,Інші витрати,369911,Маріупольська міська організація,39905107,Донецька область,комісія,2600214189,current,2.00,"ПАТ ""ПУМБ""",14282829,юридична особа
Опозиційний Блок,"Київ, вулиця Андріївська, 4",70,2016-08-15,583072427,Банківські послуги,Інші витрати,369910,Маріупольська міська організація,39905107,Донецька область,комісія,2600214189,current,0.85,"ПАТ ""ПУМБ""",14282829,юридична особа
Опозиційний Блок,"Київ, вулиця Андріївська, 4",70,2016-08-15,392578141,Банківські послуги,Інші витрати,369909,Маріупольська міська організація,39905107,Донецька область,комісія,2600214189,current,0.85,"ПАТ ""ПУМБ""",14282829,юридична особа
Опозиційний Блок,"Донецька область, Маріуполь",84,2016-08-15,66,"Заробітна плата, премії","Заробітна плата, лікарняні, вагітності, відрядження, компенсації",369771,Маріупольська міська організація,39905107,Донецька область,Заробітна плата,2600214189,current,1851.50,Виборнова Наталя Михайлівна,,фізична особа
Опозиційний Блок,"Донецька область, Маріуполь",84,2016-08-15,66,"Заробітна плата, премії","Заробітна плата, лікарняні, вагітності, відрядження, компенсації",369770,Маріупольська міська організація,39905107,Донецька область,Заробітна плата,2600214189,current,1006.25,Петренко Наталія Дмитрівна,,фізична особа
Опозиційний Блок,"Донецька область, Маріуполь",84,2016-08-15,66,"Заробітна плата, премії","Заробітна плата, лікарняні, вагітності, відрядження, компенсації",369769,Маріупольська міська організація,39905107,Донецька область,Заробітна плата,2600214189,current,665.76,Коновалова Євгенія Абрамівна,,фізична особа
Опозиційний Блок,"Донецька область, Маріуполь",84,2016-08-15,66,"Заробітна плата, премії","Заробітна плата, лікарняні, вагітності, відрядження, компенсації",369768,Маріупольська міська організація,39905107,Донецька область,Заробітна плата,2600214189,current,2576.00,Нагорна Ірина Вікторівна,,фізична особа
Опозиційний Блок,"Київ, вулиця Джона Маккейна, 39",76,2016-08-15,31,Послуги зв’язку,Послуги зв’язку,368855,Центральний офіс,37120464,Україна,Послуги зв’язку,26008001030506,current,1971.42,"ТОВ ""Компанія ""Конфіденційні телекомунікації України""",31305512,юридична особа
Опозиційний Блок,"Київ, вулиця Андріївська, 4",70,2016-08-12,816.6135,Банківські послуги,Інші витрати,369574,Херсонська обласна організація,37542218,Херсонська область,договірне списання сум комісії,2600915358,current,120.00,"ПАТ ""ПУМБ""",14282829,юридична особа
Опозиційний Блок,"Київ, вулиця Андріївська, 4",70,2016-08-12,Пакеты_08 16.6243,Банківські послуги,Інші витрати,369242,Запорізька обласна організація,37526809,Запорізька область,Комісія банку,2600612837,current,120.00,"ПАТ ""ПУМБ""",14282829,юридична особа
Опозиційний Блок,"м. Запоріжжя, вул. Чуйкова, буд. 20, кв. 158",79,2016-08-11,58,"Оренда будинків і приміщень та експлуатаційні витрати (прибирання, страхування орендованих будинків, охорона, сигналізація, ремонт, вивіз сміття, тощо)",Оренда нерухомості,369186,Запорізька обласна організація,37526809,Запорізька область,Оплата за комунальні послуги,2600612837,current,335.68,Черкашина Л І,2046524805,фізична особа
Опозиційний Блок,"м. Запоріжжя, вул. Чуйкова, буд. 20, кв. 158",79,2016-08-11,59,"Оренда будинків і приміщень та експлуатаційні витрати (прибирання, страхування орендованих будинків, охорона, сигналізація, ремонт, вивіз сміття, тощо)",Оренда нерухомості,369185,Запорізька обласна організація,37526809,Запорізька область,Оплата за оренду приміщення,2600612837,current,2500.00,Черкашина Л І,2046524805,фізична особа
Опозиційний Блок,"Київ, провулок Євгена Гуцала, 3",76,2016-08-10,56,Послуги зв’язку,Послуги зв’язку,369241,Запорізька обласна організація,37526809,Запорізька область,Оплата за послуги звʼязку,2600612837,current,498.00,"ПАТ ""Фарлеп-інвест""",19199961,юридична особа
Опозиційний Блок,"Київ, провулок Євгена Гуцала, 3",76,2016-08-10,55,Послуги зв’язку,Послуги зв’язку,369240,Запорізька обласна організація,37526809,Запорізька область,Оплата за послуги звʼязку,2600612837,current,600.00,"ПАТ ""Фарлеп-інвест""",19199961,юридична особа
Опозиційний Блок,"Запорізька область, Запоріжжя, вулиця Сєдова, 16",58,2016-08-10,57,"Виготовлення друкованих матеріалів (плакатів, листівок, буклетів та інших агітаційних матеріалів)",Друкована агітація,369239,Запорізька обласна організація,37526809,Запорізька область,Оплата за друк газети,2600612837,current,17141.52,"ТОВ ВД ""Кераміст""",31122120,юридична особа
Опозиційний Блок,"Дніпропетровська область, Дніпро́, вулиця Курсантська, 24",70,2016-08-08,106893,Банківські послуги,Інші витрати,369524,Одеська обласна організація,39705145,Одеська область,розрахункове обслуговування рахунку,26007010349074,current,10.00,"ПАТ ""Банк Восток""",26237202,юридична особа
Опозиційний Блок,"Одеська область, Одеса, вулиця Канатна, 1",82,2016-08-08,467,"Гонорари, в тому числі за надані консультаційні послуги","Гонорари, в тому числі за надані консультаційні послуги",369523,Одеська обласна організація,39705145,Одеська область,за бухгалтерське обслуговування,26007010349074,current,1000.00,"ТОВ ""КФ ""Профіт фінанс""",39563816,юридична особа
Опозиційний Блок,"Одеська область, Одеса, вулиця Канатна, 1",82,2016-08-08,469,"Гонорари, в тому числі за надані консультаційні послуги","Гонорари, в тому числі за надані консультаційні послуги",369522,Одеська обласна організація,39705145,Одеська область,за бухгалтерське обслуговування,26007010349074,current,1000.00,"ТОВ ""КФ ""Профіт фінанс""",39563816,юридична особа
Опозиційний Блок,"Одеська область, Одеса, вулиця Канатна, 1",82,2016-08-08,468,"Гонорари, в тому числі за надані консультаційні послуги","Гонорари, в тому числі за надані консультаційні послуги",369521,Одеська обласна організація,39705145,Одеська область,за бухгалтерське обслуговування,26007010349074,current,1000.00,"ТОВ ""КФ ""Профіт фінанс""",39563816,юридична особа
Опозиційний Блок,"Одеська область, Одеса",52,2016-08-08,466,Інша реклама (без класифікації),Реклама (без класифікації),369459,Одеська обласна організація,39705145,Одеська область,проведення рекламної компанії,26007010349074,current,15400.00,Новицький Олександр Олександрович,,фізична особа
Опозиційний Блок,"Одеська область, Одеса",52,2016-08-08,465,Інша реклама (без класифікації),Реклама (без класифікації),369458,Одеська обласна організація,39705145,Одеська область,проведення рекламної компанії,26007010349074,current,5600.00,Кордюк Олена Анатоліївна,,фізична особа
Опозиційний Блок,"Дніпропетровська область, Дніпро́",84,2016-08-08,п/д 29,"Заробітна плата, премії","Заробітна плата, лікарняні, вагітності, відрядження, компенсації",368899,Дніпропетровська обласна організація,39750015,Дніпропетровська область,"Перерахування заробітної плати за квітень 2016 року {2415,00 грн) згідно дог. N° 260899816 від 2015-07-07 року та реєстру № від 2016-05-05 р , без ПДВ",2600813320,current,2415.00,Гончаренко Наталія Вікторівна,,фізична особа
Опозиційний Блок,"Київ, вулиця Андріївська, 4",70,2016-08-05,707.12474,Банківські послуги,Інші витрати,369908,Маріупольська міська організація,39905107,Донецька область,комісія,2600214189,current,55.00,"ПАТ ""ПУМБ""",14282829,юридична особа
Опозиційний Блок,"Київ, вулиця Андріївська, 4",70,2016-08-05,707.12431,Банківські послуги,Інші витрати,369715,Володарська районна організація,39913123,Донецька область,комісія,2600614183,current,55.00,"ПАТ ""ПУМБ""",14282829,юридична особа
Опозиційний Блок,"Закарпатська область, Ужгород, вулиця Митна, 56",62,2016-08-05,108,Сплата ЄСВ,Податкові платежі,369153,Закарпатська обласна організація,38222036,Закарпатська область,Сплата ЄСВ нарахованого утриманого на \із суми з-ти за липень м-ць 2016 без ПДВ,26003016000800,current,132.00,УДКСУ в Ужгородському районі Закарпатської області,38015605,юридична особа
Опозиційний Блок,"Закарпатська область, Ужгород, вулиця Митна, 56",63,2016-08-05,107,Податок на доходи,Податкові платежі,369152,Закарпатська обласна організація,38222036,Закарпатська область,Податок з доходів ФО за липень м-ць 2016 без ПДВ,26003016000800,current,108.00,УДКСУ в Ужгородському районі Закарпатської області,38015605,юридична особа
Опозиційний Блок,"Закарпатська область, Ужгород, вулиця Гойди, 10",70,2016-08-05,171142,Банківські послуги,Інші витрати,369151,Закарпатська обласна організація,38222036,Закарпатська область,Комісія за розрахунково-касове обслуговування,26003016000800,current,5.00,"ПАТ ""Комінвестбанк""",19355562,юридична особа
Опозиційний Блок,"Закарпатська область, Ужгород",84,2016-08-05,15,"Заробітна плата, премії","Заробітна плата, лікарняні, вагітності, відрядження, компенсації",369086,Закарпатська обласна організація,38222036,Закарпатська область,Зарплата за липень м-ць 2016,26003016000800,current,483.00,Іванцик Світлана Михайлівна,,фізична особа
Опозиційний Блок,"Київ, вулиця Андріївська, 4",70,2016-08-05,TR.12591568.R КО.707.,Банківські послуги,Інші витрати,368991,Дніпропетровська обласна організація,39750015,Дніпропетровська область,Договорное списание комиссии за осуществление операций посредством СДО с-но тарифов ПУМБ ( 260854810 от 24/06/2015 )•,2600813320,current,55.00,"ПАТ ""ПУМБ""",14282829,юридична особа
Опозиційний Блок,"Київ, вулиця Андріївська, 4",70,2016-08-02,49,Банківські послуги,Інші витрати,368990,Дніпропетровська обласна організація,39750015,Дніпропетровська область,"Комісія за зарахування банком коштів на КР співробітн. зг. заявки № 6 від 02.08.2016р, дог.№ 260899816 від 07.07.2015 р. (12,08 грн), без ПДВ7",2600813320,current,12.08,"ПАТ ""ПУМБ""",14282829,юридична особа
Опозиційний Блок,"Дніпропетровська область, Дніпро́, вулиця Янтарна, 40",79,2016-08-02,47,"Оренда будинків і приміщень та експлуатаційні витрати (прибирання, страхування орендованих будинків, охорона, сигналізація, ремонт, вивіз сміття, тощо)",Оренда нерухомості,368989,Дніпропетровська обласна організація,39750015,Дніпропетровська область,"Передплата за комунальні послуги за серпень 2016 року, згідно pax. № 260704 від 26.07.2016 року, у т.ч. ПДВ 20% = 2 566,67 грн.",2600813320,current,15400.00,"ТОВ ""Комунгосп-сервіс""",36208390,юридична особа
Опозиційний Блок,"Київ, вулиця Андріївська, 4",70,2016-08-02,TR.12591325.9 0286228,Банківські послуги,Інші витрати,368988,Дніпропетровська обласна організація,39750015,Дніпропетровська область,Договорное списание комиссии за платеж в пользу клиента др. банка с-но п. 2.14 тарифов ПУМБ по дог. 260854602 от 24/06/2015,2600813320,current,2.00,"ПАТ ""ПУМБ""",14282829,юридична особа
Опозиційний Блок,"Дніпропетровська область, Дніпро́, вулиця Янтарна, 40",79,2016-08-02,48,"Оренда будинків і приміщень та експлуатаційні витрати (прибирання, страхування орендованих будинків, охорона, сигналізація, ремонт, вивіз сміття, тощо)",Оренда нерухомості,368987,Дніпропетровська обласна організація,39750015,Дніпропетровська область,"Передплата за комунальні послуги за серпень 2016 року, згідно pax. № 260704 від 26.07.2016 року, у т.ч. ПДВ 20% = 2 368,92 грн.",2600813320,current,14213.49,"ТОВ ""Комунгосп-сервіс""",36208390,юридична особа
Опозиційний Блок,"Київ, вулиця Андріївська, 4",70,2016-08-02,TR.12591325.1 5812256,Банківські послуги,Інші витрати,368986,Дніпропетровська обласна організація,39750015,Дніпропетровська область,Договорное списание комиссии за платеж в пользу клиента др. банка с-но п. 2.14 тарифов ПУМБ по дог. 260854602 от 24/06/2015,2600813320,current,2.00,"ПАТ ""ПУМБ""",14282829,юридична особа
Опозиційний Блок,"Дніпропетровська область, Дніпро́, площа Шевченка, 7",61,2016-08-02,45,Військовий збір,Податкові платежі,368985,Дніпропетровська обласна організація,39750015,Дніпропетровська область,"Військовий збір за липень 2016 року, без ПДВ",2600813320,current,45.00,УДКСУ у Соборному районі м. Дніпра,37989269,юридична особа
Опозиційний Блок,"Київ, вулиця Андріївська, 4",70,2016-08-02,ТК.12591325.1 2819307,Банківські послуги,Інші витрати,368984,Дніпропетровська обласна організація,39750015,Дніпропетровська область,Договорное списание комиссии за платеж в пользу клиента др. банка с-но п. 2.14 тарифов ПУМБ по дог. 260854602 от 24/06/2015,2600813320,current,2.00,"ПАТ ""ПУМБ""",14282829,юридична особа
Опозиційний Блок,"Дніпропетровська область, Дніпро́, площа Шевченка, 7",63,2016-08-02,44,Податок на доходи,Податкові платежі,368983,Дніпропетровська обласна організація,39750015,Дніпропетровська область,"НДФЛ 18% за липень 2016 року, без ПДВ",2600813320,current,540.00,УДКСУ у Соборному районі м. Дніпра,37989269,юридична особа
Опозиційний Блок,"Київ, вулиця Андріївська, 4",70,2016-08-02,ТК.12591325.8 1867434,Банківські послуги,Інші витрати,368982,Дніпропетровська обласна організація,39750015,Дніпропетровська область,Договорное списание комиссии за платеж в пользу клиента др. банка с-но п. 2.14 тарифов ПУМБ по дог. 260854602 от 2015-06-24,2600813320,current,2.00,"ПАТ ""ПУМБ""",14282829,юридична особа
Опозиційний Блок,"Дніпропетровська область, Дніпро́, вулиця Високовольтна, 24",62,2016-08-02,46,Сплата ЄСВ,Податкові платежі,368981,Дніпропетровська обласна організація,39750015,Дніпропетровська область,"*"";""101"";""39260741"";""нарахуванн я ЄСВ 22,00% на зарплату за , липень 2016 року , без ПДВ",2600813320,current,660.00,ДПІ у Соборному районі м. Дніпро ГУ ДФС у Дніпропетровській області,39545734,юридична особа
Опозиційний Блок,"Київ, вулиця Андріївська, 4",70,2016-08-02,TR.12591.325.9 8737664,Банківські послуги,Інші витрати,368980,Дніпропетровська обласна організація,39750015,Дніпропетровська область,Договорное списание комиссии за платеж в пользу клиента др. банка с-но п. 2.14 тарифов ПУМБ по дог. 260854602 от 24/06/2015,2600813320,current,2.00,"ПАТ ""ПУМБ""",14282829,юридична особа
Опозиційний Блок,"Дніпропетровська область, Дніпро́",84,2016-08-02,П/Д50,"Заробітна плата, премії","Заробітна плата, лікарняні, вагітності, відрядження, компенсації",368902,Дніпропетровська обласна організація,39750015,Дніпропетровська область,"Перерахування заробітної плати за липень 2016 року {2415,00 грн) згідно дог. № 260899816 від 07.07.2015 року та реєстру N9 7 від 02.08.2016 р , без ПДВ",2600813320,current,2415.00,Гончаренко Наталія Вікторівна,,фізична особа
Опозиційний Блок,"Дніпропетровська область, Дніпро́, вулиця Курсантська, 24",70,2016-08-01,/5100,Банківські послуги,Інші витрати,369520,Одеська обласна організація,39705145,Одеська область,розрахункове обслуговування рахунку,26007010349074,current,150.00,"ПАТ ""Банк Восток""",26237202,юридична особа
Опозиційний Блок,"Київ, вулиця Михайла Грушевського, 1Д",70,2016-08-01,Б67іЗ\усІяр,Банківські послуги,Інші витрати,369052,Житомирська обласна організація,39929086,Житомирська область,Комісія банку за обслуговування рахунку,26008055807991,current,100.00,"ПАТ КБ ""Приватбанк""",14360570,юридична особа
Опозиційний Блок,"Київ, вулиця Госпітальна, 12Г",70,2016-07-29,247362651,Банківські послуги,Інші витрати,370086,Покровська міська організація,39949060,Донецька область,Комісія банку,26005300845391,current,10.00,"АТ ""Ощадбанк""",00032129,юридична особа
Опозиційний Блок,,74,2016-07-29,чек 00043409,"Придбання канцтоварів, паперу, інших предметів і матеріалів, а також госп товари",Придбання канцтоварів та госп. товарів,369907,Маріупольська міська організація,39905107,Донецька область,папір для принтера,2600214189,current,164.99,Прилипко Віктор Іванович,,фізична особа
Опозиційний Блок,"Дніпропетровська область, Дніпро́, вулиця Херсонська, 26",76,2016-07-29,61,Послуги зв’язку,Послуги зв’язку,369906,Маріупольська міська організація,39905107,Донецька область,Телекомунікаційні послуги,2600214189,current,160.00,"ПАТ ""Укртелеком""",21560766,юридична особа
Опозиційний Блок,"Київ, вулиця Андріївська, 4",70,2016-07-29,58,Банківські послуги,Інші витрати,369905,Маріупольська міська організація,39905107,Донецька область,комісія,2600214189,current,42.70,"ПАТ ""ПУМБ""",14282829,юридична особа
Опозиційний Блок,"Київ, вулиця Андріївська, 4",70,2016-07-29,294855089,Банківські послуги,Інші витрати,369904,Маріупольська міська організація,39905107,Донецька область,комісія,2600214189,current,2.00,"ПАТ ""ПУМБ""",14282829,юридична особа
Опозиційний Блок,"Київ, вулиця Андріївська, 4",70,2016-07-29,988071868,Банківські послуги,Інші витрати,369903,Маріупольська міська організація,39905107,Донецька область,комісія,2600214189,current,0.85,"ПАТ ""ПУМБ""",14282829,юридична особа
Опозиційний Блок,"Донецька область, Маріуполь",84,2016-07-29,62,"Заробітна плата, премії","Заробітна плата, лікарняні, вагітності, відрядження, компенсації",369767,Маріупольська міська організація,39905107,Донецька область,Заробітна плата,2600214189,current,1006.25,Петренко Наталія Дмитрівна,,фізична особа
Опозиційний Блок,"Донецька область, Маріуполь",84,2016-07-29,62,"Заробітна плата, премії","Заробітна плата, лікарняні, вагітності, відрядження, компенсації",369766,Маріупольська міська організація,39905107,Донецька область,Заробітна плата,2600214189,current,665.76,Коновалова Євгенія Абрамівна,,фізична особа
Опозиційний Блок,"Донецька область, Маріуполь",84,2016-07-29,62,"Заробітна плата, премії","Заробітна плата, лікарняні, вагітності, відрядження, компенсації",369765,Маріупольська міська організація,39905107,Донецька область,Заробітна плата,2600214189,current,1851.50,Виборнова Наталя Михайлівна,,фізична особа
Опозиційний Блок,"Донецька область, Маріуполь",84,2016-07-29,62,"Заробітна плата, премії","Заробітна плата, лікарняні, вагітності, відрядження, компенсації",369764,Маріупольська міська організація,39905107,Донецька область,Заробітна плата,2600214189,current,2576.00,Нагорна Ірина Вікторівна,,фізична особа
Опозиційний Блок,"Київ, вулиця Госпітальна, 12Г",70,2016-07-29,63173877,Банківські послуги,Інші витрати,369590,Черкаська обласна організація,39880926,Черкаська область,Плата за обслуговування тарифного пакету за січень 2016 р.,26002301144523,current,99.00,"АТ ""Ощадбанк""",00032129,юридична особа
Опозиційний Блок,"Дніпропетровська область, Дніпро́, вулиця Курсантська, 24",70,2016-07-29,353206,Банківські послуги,Інші витрати,369519,Одеська обласна організація,39705145,Одеська область,розрахункове обслуговування рахунку,26007010349074,current,100.00,"ПАТ ""Банк Восток""",26237202,юридична особа
Опозиційний Блок,"Київ, вулиця Госпітальна, 12Г",70,2016-07-29,136652854,Банківські послуги,Інші витрати,369420,Луганська обласна організація,39697428,Луганська область,обслуговування тарифного пакету (банківські послуги),26008301680625,current,99.00,"АТ ""Ощадбанк""",00032129,юридична особа
Опозиційний Блок,"Запорізька область, Запоріжжя, вулиця Сєдова, 16",58,2016-07-27,54,"Виготовлення друкованих матеріалів (плакатів, листівок, буклетів та інших агітаційних матеріалів)",Друкована агітація,369238,Запорізька обласна організація,37526809,Запорізька область,Оплата за друк газети,2600612837,current,17521.20,"ТОВ ВД ""Кераміст""",31122120,юридична особа
Опозиційний Блок,"Київ, вулиця Андріївська, 4",70,2016-07-26,26032.3042,Банківські послуги,Інші витрати,369714,Володарська районна організація,39913123,Донецька область,комісія,2600614183,current,50.00,"ПАТ ""ПУМБ""",14282829,юридична особа
Опозиційний Блок,"Київ, вулиця Андріївська, 4",70,2016-07-26,26011.3042,Банківські послуги,Інші витрати,369713,Володарська районна організація,39913123,Донецька область,комісія,2600614183,current,50.00,"ПАТ ""ПУМБ""",14282829,юридична особа
Опозиційний Блок,"Дніпропетровська область, Дніпро́, вулиця Курсантська, 24",70,2016-07-26,320234,Банківські послуги,Інші витрати,369518,Одеська обласна організація,39705145,Одеська область,розрахункове обслуговування рахунку,26007010349074,current,10.00,"ПАТ ""Банк Восток""",26237202,юридична особа
Опозиційний Блок,"Одеська область, Одеса, Фонтанська дорога, 11",70,2016-07-25,19,Банківські послуги,Інші витрати,369322,Київська обласна організація,39756467,Київська область,"Абонентська плата за використання системи ""Интернет-банкинг""за 07.2016 р. згідно тарифів банку. Без ПДВ.",26006001030575,current,55.00,"Київська філія АТ ""Місто банк""",26410346,юридична особа
Опозиційний Блок,"Одеська область, Одеса, Фонтанська дорога, 11",70,2016-07-25,113,Банківські послуги,Інші витрати,368854,Центральний офіс,37120464,Україна,"Абонентська плата за використання системи ""Интернет-банкинг""",26008001030506,current,55.00,"Київська філія АТ ""Місто банк""",26410346,юридична особа
Опозиційний Блок,"Закарпатська область, Ужгород, вулиця Гойди, 10",70,2016-07-22,171142,Банківські послуги,Інші витрати,369150,Закарпатська обласна організація,38222036,Закарпатська область,Комісія за розрахунково-касове обслуговування,26003016000800,current,7.50,"ПАТ ""Комінвестбанк""",19355562,юридична особа
Опозиційний Блок,"Закарпатська область, Ужгород, вулиця Другетів, 60",76,2016-07-22,105,Послуги зв’язку,Послуги зв’язку,369149,Закарпатська обласна організація,38222036,Закарпатська область,Абонплата за послуги інтернетз-но рах № 0013911 від 31.06.2016,26003016000800,current,1585.00,"ТОВ ""Корсі""",22104527,юридична особа
Опозиційний Блок,"Закарпатська область, Ужгород, вулиця Митна, 56",62,2016-07-20,102,Сплата ЄСВ,Податкові платежі,369148,Закарпатська обласна організація,38222036,Закарпатська область,"1 ,іиі,38222и36, Сплата ЄСВ нарахованого утриманого на \із суми з-ти за липень м-ць 2016 без ПДВ",26003016000800,current,264.00,УДКСУ в Ужгородському районі Закарпатської області,38015605,юридична особа
Опозиційний Блок,"Закарпатська область, Ужгород, вулиця Митна, 56",63,2016-07-20,103,Податок на доходи,Податкові платежі,369147,Закарпатська обласна організація,38222036,Закарпатська область,Податок з доходів ФО за липень м-ць 2016 без ПДВ,26003016000800,current,216.00,УДКСУ в Ужгородському районі Закарпатської області,38015605,юридична особа
Опозиційний Блок,"Закарпатська область, Ужгород, вулиця Гойди, 10",70,2016-07-20,171142,Банківські послуги,Інші витрати,369146,Закарпатська обласна організація,38222036,Закарпатська область,Комісія за розрахунково-касове обслуговування,26003016000800,current,5.00,"ПАТ ""Комінвестбанк""",19355562,юридична особа
Опозиційний Блок,"Закарпатська область, Ужгород, вулиця Гойди, 10",70,2016-07-20,171142,Банківські послуги,Інші витрати,369145,Закарпатська обласна організація,38222036,Закарпатська область,Комісія за розрахунково-касове обслуговування,26003016000800,current,75.00,"ПАТ ""Комінвестбанк""",19355562,юридична особа
Опозиційний Блок,"Закарпатська область, Ужгород",84,2016-07-20,13,"Заробітна плата, премії","Заробітна плата, лікарняні, вагітності, відрядження, компенсації",369085,Закарпатська обласна організація,38222036,Закарпатська область,Зарплата за липень м-ць 2016,26003016000800,current,966.00,Іванцик Світлана Михайлівна,,фізична особа
Опозиційний Блок,"Одеська область, Одеса, Фонтанська дорога, 11",70,2016-07-19,ТД/01/27,Банківські послуги,Інші витрати,368853,Центральний офіс,37120464,Україна,Комісія банку,26008001030506,current,2.00,"Київська філія АТ ""Місто банк""",26410346,юридична особа
Опозиційний Блок,"Київ, вулиця Бульварно-Кудрявська, 22",51,2016-07-18,ЗО,Оплата ефірного часу на ТБ,Телереклама,368852,Центральний офіс,37120464,Україна,Розміщення рекламних матеріалів,26008001030506,current,1080000.00,"ТОВ ""Інтер реклама центр""",30524103,юридична особа
Опозиційний Блок,"Донецька область, Маріуполь, проспект Миру, 68",63,2016-07-15,54,Податок на доходи,Податкові платежі,369902,Маріупольська міська організація,39905107,Донецька область,ПДФО,2600214189,current,2575.98,УДКСУ у м. Маріуполі Донецької області,37989721,юридична особа
Опозиційний Блок,"Донецька область, Маріуполь, вулиця 130-ї Таганрозької Дивізії, 114",62,2016-07-15,52,Сплата ЄСВ,Податкові платежі,369901,Маріупольська міська організація,39905107,Донецька область,ЄСВ 22%,2600214189,current,3300.00,Маріупольська ОДПІ,39883670,юридична особа
Опозиційний Блок,"Донецька область, Маріуполь, проспект Миру, 68",61,2016-07-15,53,Військовий збір,Податкові платежі,369900,Маріупольська міська організація,39905107,Донецька область,"Військовий збір 1,5%",2600214189,current,225.00,УДКСУ у м. Маріуполі Донецької області,37989721,юридична особа
Опозиційний Блок,"Донецька область, Маріуполь, вулиця Соборна, 7",79,2016-07-15,57,"Оренда будинків і приміщень та експлуатаційні витрати (прибирання, страхування орендованих будинків, охорона, сигналізація, ремонт, вивіз сміття, тощо)",Оренда нерухомості,369899,Маріупольська міська організація,39905107,Донецька область,За холодну воду,2600214189,current,38.84,"КП ""мвувкг""",03361508,юридична особа
Опозиційний Блок,"Київ, вулиця Андріївська, 4",70,2016-07-15,55,Банківські послуги,Інші витрати,369898,Маріупольська міська організація,39905107,Донецька область,комісія,2600214189,current,42.70,"ПАТ ""ПУМБ""",14282829,юридична особа
Опозиційний Блок,"Київ, вулиця Андріївська, 4",70,2016-07-15,905757258_1,Банківські послуги,Інші витрати,369897,Маріупольська міська організація,39905107,Донецька область,комісія,2600214189,current,2.00,"ПАТ ""ПУМБ""",14282829,юридична особа
Опозиційний Блок,"Київ, вулиця Андріївська, 4",70,2016-07-15,905757258,Банківські послуги,Інші витрати,369896,Маріупольська міська організація,39905107,Донецька область,комісія,2600214189,current,2.00,"ПАТ ""ПУМБ""",14282829,юридична особа
Опозиційний Блок,"Київ, вулиця Андріївська, 4",70,2016-07-15,370696016,Банківські послуги,Інші витрати,369895,Маріупольська міська організація,39905107,Донецька область,комісія,2600214189,current,2.00,"ПАТ ""ПУМБ""",14282829,юридична особа
Опозиційний Блок,"Київ, вулиця Андріївська, 4",70,2016-07-15,350171069,Банківські послуги,Інші витрати,369894,Маріупольська міська організація,39905107,Донецька область,комісія,2600214189,current,2.00,"ПАТ ""ПУМБ""",14282829,юридична особа
Опозиційний Блок,"Донецька область, Маріуполь",84,2016-07-15,56,"Заробітна плата, премії","Заробітна плата, лікарняні, вагітності, відрядження, компенсації",369763,Маріупольська міська організація,39905107,Донецька область,Заробітна плата,2600214189,current,665.76,Коновалова Євгенія Абрамівна,,фізична особа
Опозиційний Блок,"Донецька область, Маріуполь",84,2016-07-15,56,"Заробітна плата, премії","Заробітна плата, лікарняні, вагітності, відрядження, компенсації",369762,Маріупольська міська організація,39905107,Донецька область,Заробітна плата,2600214189,current,1851.50,Виборнова Наталя Михайлівна,,фізична особа
Опозиційний Блок,"Донецька область, Маріуполь",84,2016-07-15,56,"Заробітна плата, премії","Заробітна плата, лікарняні, вагітності, відрядження, компенсації",369761,Маріупольська міська організація,39905107,Донецька область,Заробітна плата,2600214189,current,1006.25,Петренко Наталія Дмитрівна,,фізична особа
Опозиційний Блок,"Донецька область, Маріуполь",84,2016-07-15,56,"Заробітна плата, премії","Заробітна плата, лікарняні, вагітності, відрядження, компенсації",369760,Маріупольська міська організація,39905107,Донецька область,Заробітна плата,2600214189,current,2576.00,Нагорна Ірина Вікторівна,,фізична особа
Опозиційний Блок,"Київ, вулиця Андріївська, 4",70,2016-07-15,8236 11306,Банківські послуги,Інші витрати,369712,Володарська районна організація,39913123,Донецька область,комісія,2600614183,current,100.00,"ПАТ ""ПУМБ""",14282829,юридична особа
Опозиційний Блок,"Одеська область, Одеса, Фонтанська дорога, 11",70,2016-07-15,ТД/01/58,Банківські послуги,Інші витрати,368851,Центральний офіс,37120464,Україна,Комісія банку,26008001030506,current,2.00,"Київська філія АТ ""Місто банк""",26410346,юридична особа
Опозиційний Блок,"Дніпропетровська область, Дніпро́, вулиця Курсантська, 24",70,2016-07-13,17166,Банківські послуги,Інші витрати,369517,Одеська обласна організація,39705145,Одеська область,розрахункове обслуговування рахунку,26007010349074,current,10.00,"ПАТ ""Банк Восток""",26237202,юридична особа
Опозиційний Блок,"Одеська область, Одеса, площадь Бориса Деревянко, 1",58,2016-07-13,459,"Виготовлення друкованих матеріалів (плакатів, листівок, буклетів та інших агітаційних матеріалів)",Друкована агітація,369516,Одеська обласна організація,39705145,Одеська область,за інформаційний бюллетень,26007010349074,current,2000.00,"КП ""Видавництво ""Чорноморʼя""",,юридична особа
Опозиційний Блок,"Одеська область, Одеса, вулиця Канатна, 1",82,2016-07-13,460,"Гонорари, в тому числі за надані консультаційні послуги","Гонорари, в тому числі за надані консультаційні послуги",369515,Одеська обласна організація,39705145,Одеська область,за бухгалтерське обслуговування,26007010349074,current,1000.00,"ТОВ ""КФ ""Профіт фінанс""",39563816,юридична особа
Опозиційний Блок,"Одеська область, Одеса, вулиця Канатна, 1",82,2016-07-13,462,"Гонорари, в тому числі за надані консультаційні послуги","Гонорари, в тому числі за надані консультаційні послуги",369514,Одеська обласна організація,39705145,Одеська область,за бухгалтерське обслуговування,26007010349074,current,1000.00,"ТОВ ""КФ ""Профіт фінанс""",39563816,юридична особа
Опозиційний Блок,"Одеська область, Одеса, вулиця Канатна, 1",82,2016-07-13,463,"Гонорари, в тому числі за надані консультаційні послуги","Гонорари, в тому числі за надані консультаційні послуги",369513,Одеська обласна організація,39705145,Одеська область,за бухгалтерське обслуговування,26007010349074,current,1000.00,"ТОВ ""КФ ""Профіт фінанс""",39563816,юридична особа
Опозиційний Блок,"Одеська область, Одеса, вулиця Канатна, 1",82,2016-07-13,464,"Гонорари, в тому числі за надані консультаційні послуги","Гонорари, в тому числі за надані консультаційні послуги",369512,Одеська обласна організація,39705145,Одеська область,за бухгалтерське обслуговування,26007010349074,current,1000.00,"ТОВ ""КФ ""Профіт фінанс""",39563816,юридична особа
Опозиційний Блок,"Київ, провулок Євгена Гуцала, 3",76,2016-07-13,52,Послуги зв’язку,Послуги зв’язку,369237,Запорізька обласна організація,37526809,Запорізька область,Оплата за послуги звʼязку,2600612837,current,498.00,"ПАТ ""Фарлеп-інвест""",19199961,юридична особа
Опозиційний Блок,"Київ, провулок Євгена Гуцала, 3",76,2016-07-13,53,Послуги зв’язку,Послуги зв’язку,369236,Запорізька обласна організація,37526809,Запорізька область,Оплата за послуги звʼязку,2600612837,current,600.00,"ПАТ ""Фарлеп-інвест""",19199961,юридична особа
Опозиційний Блок,"Запорізька область, Запоріжжя, вулиця Сєдова, 16",58,2016-07-13,51,"Виготовлення друкованих матеріалів (плакатів, листівок, буклетів та інших агітаційних матеріалів)",Друкована агітація,369235,Запорізька обласна організація,37526809,Запорізька область,Оплата за друк газети,2600612837,current,17141.52,"ТОВ ВД ""Кераміст""",31122120,юридична особа
Опозиційний Блок,"Одеська область, Одеса, Фонтанська дорога, 11",70,2016-07-13,ТД/01/25,Банківські послуги,Інші витрати,368850,Центральний офіс,37120464,Україна,Комісія банку,26008001030506,current,4.00,"Київська філія АТ ""Місто банк""",26410346,юридична особа
Опозиційний Блок,"Донецька область, Мангушський район, Мангуш, проспект Миру, 60",79,2016-07-12,4,"Оренда будинків і приміщень та експлуатаційні витрати (прибирання, страхування орендованих будинків, охорона, сигналізація, ремонт, вивіз сміття, тощо)",Оренда нерухомості,370068,Мангушська районна організація,39929882,Донецька область,Оренда приміщення,2600115288,current,300.00,Відділ культури і туризму Мангушської РДА,00183638,юридична особа
Опозиційний Блок,"Київ, вулиця Андріївська, 4",70,2016-07-12,07.16.7256,Банківські послуги,Інші витрати,370067,Мангушська районна організація,39929882,Донецька область,Комісія банку,2600115288,current,120.00,"ПАТ ""ПУМБ""",14282829,юридична особа
Опозиційний Блок,"Київ, вулиця Андріївська, 4",70,2016-07-12,111855189,Банківські послуги,Інші витрати,370066,Мангушська районна організація,39929882,Донецька область,Комісія банку,2600115288,current,10.00,"ПАТ ""ПУМБ""",14282829,юридична особа
Опозиційний Блок,"Київ, вулиця Госпітальна, 12Г",70,2016-07-12,244258148,Банківські послуги,Інші витрати,369724,Марʼїнська районна організація,39904009,Донецька область,за надання довідок,26001300831495,current,30.00,"АТ ""Ощадбанк""",00032129,юридична особа
Опозиційний Блок,"Київ, вулиця Бульварно-Кудрявська, 22",51,2016-07-12,27,Оплата ефірного часу на ТБ,Телереклама,368849,Центральний офіс,37120464,Україна,Розміщення рекламних матеріалів,26008001030506,current,700000.00,"ТОВ ""Інтер реклама центр""",30524103,юридична особа
Опозиційний Блок,Київ,79,2016-07-12,28,"Оренда будинків і приміщень та експлуатаційні витрати (прибирання, страхування орендованих будинків, охорона, сигналізація, ремонт, вивіз сміття, тощо)",Оренда нерухомості,368790,Центральний офіс,37120464,Україна,Оренда приміщення,26008001030506,current,383639.00,Яковенко Світлана Анатоліївна,,фізична особа
Опозиційний Блок,"Донецька область, Маріуполь, вулиця Італійська, 84",79,2016-07-11,51,"Оренда будинків і приміщень та експлуатаційні витрати (прибирання, страхування орендованих будинків, охорона, сигналізація, ремонт, вивіз сміття, тощо)",Оренда нерухомості,369893,Маріупольська міська організація,39905107,Донецька область,Послуги охорони,2600214189,current,423.73,Маріупольський міжрайонний відділ управління поліції охорони в Донецькій області,40109084,юридична особа
Опозиційний Блок,"Донецька область, Маріуполь, вулиця Італійська, 84",79,2016-07-11,50,"Оренда будинків і приміщень та експлуатаційні витрати (прибирання, страхування орендованих будинків, охорона, сигналізація, ремонт, вивіз сміття, тощо)",Оренда нерухомості,369892,Маріупольська міська організація,39905107,Донецька область,Послуги охорони,2600214189,current,83.63,Маріупольський міжрайонний відділ управління поліції охорони в Донецькій області,40109084,юридична особа
Опозиційний Блок,"Київ, вулиця Андріївська, 4",70,2016-07-11,2.80021203,Банківські послуги,Інші витрати,369891,Маріупольська міська організація,39905107,Донецька область,комісія,2600214189,current,0.85,"ПАТ ""ПУМБ""",14282829,юридична особа
Опозиційний Блок,"Київ, вулиця Андріївська, 4",70,2016-07-11,543807194,Банківські послуги,Інші витрати,369890,Маріупольська міська організація,39905107,Донецька область,комісія,2600214189,current,0.85,"ПАТ ""ПУМБ""",14282829,юридична особа
Опозиційний Блок,"Київ, вулиця Андріївська, 4",70,2016-07-11,07.16.8971,Банківські послуги,Інші витрати,369573,Херсонська обласна організація,37542218,Херсонська область,договірне списання сум комісії,2600915358,current,120.00,"ПАТ ""ПУМБ""",14282829,юридична особа
Опозиційний Блок,"Одеська область, Одеса, Фонтанська дорога, 11",70,2016-07-11,ТД/01/27,Банківські послуги,Інші витрати,369321,Київська обласна організація,39756467,Київська область,Комісія їм проведення роїрих. докум. за 08.07.2016 зг. тарифів банку.Без ПДВ.,26006001030575,current,2.00,"Київська філія АТ ""Місто банк""",26410346,юридична особа
Опозиційний Блок,"Київ, вулиця Андріївська, 4",70,2016-07-11,Пакеты07.1 6.11321,Банківські послуги,Інші витрати,369234,Запорізька обласна організація,37526809,Запорізька область,Комісія банку,2600612837,current,120.00,"ПАТ ""ПУМБ""",14282829,юридична особа
Опозиційний Блок,"Одеська область, Одеса, Фонтанська дорога, 11",70,2016-07-11,ТД/01/54,Банківські послуги,Інші витрати,368848,Центральний офіс,37120464,Україна,Комісія банку,26008001030506,current,2.00,"Київська філія АТ ""Місто банк""",26410346,юридична особа
Опозиційний Блок,"Київ, вулиця Андріївська, 4",70,2016-07-08,928004461,Банківські послуги,Інші витрати,369889,Маріупольська міська організація,39905107,Донецька область,комісія,2600214189,current,38.56,"ПАТ ""ПУМБ""",14282829,юридична особа
